Workbook

Sheet Info

Sheet Trial (hidden)

Sheet Instructions (hidden)
A1: Excel Skills UK | Financial Statements Template
A2: Instructions
A3: www.excel-skills.co.uk
A5: This template enables users to compile comprehensive financial statements in accordance with International Financial Reporting Standards for Small & Medium Enterprises (IFRS for SME's) based on any trial balance regardless of the account structure. The financial statements are compiled by linking each account in the trial balance to a pre-defined financial statement reporting class and all the amounts that are included on the financial statements are automatically calculated based on the linked reporting classes. The template also facilitates including financial information which is not derived from a trial balance and can easily be rolled forward or back by simply changing the reporting year in a single input cell.
A7: Disclaimer: The aim of this template is to assist users in compiling a standard set of annual financial statements and we can therefore not guarantee that all the annual financial statement disclosures that are required for the particular business will be accommodated in the template design. The user therefore remains solely responsible for ensuring the accuracy and completeness of financial statement disclosure.
A9: Note: The standard template has been designed for companies but you can use the same functionality for other entity types by saving a separate version of the template and changing the financial statement terminology to suit the required entity type.
A11: The template includes the following sheets:
A12: Setup - enter your business name, add a currency symbol and specify the financial year-end month and the reporting year. The reporting year that is specified determines which annual periods will be included in the current and comparative periods on the financial statements.
A13: Classes - this sheet contains all the pre-defined financial statement reporting classes that should be used to link the accounts on the trial balance to the calculations on the financial statements. The class descriptions that are included on this sheet are displayed on the financial statements and the sheet also includes error checking in the columns with light blue column headings which highlights errors in the linking of the reporting classes.
A14: TB - a complete trial balance for each annual period should be included on this sheet and each account in the trial balance should be linked to the appropriate financial statement reporting class by entering or copying the class code into column B. The amounts that are included on the financial statements are automatically updated based on the classes that are specified on this sheet.
A15: FinInfo - this sheet contains financial statement information that is incorporated in the financial statements but not derived from the trial balance. Users are therefore required to enter the appropriate values for each annual period that is included in the template. The values that are specified on this sheet are automatically included on the financial statements based on the pre-defined code that is included in column B.
A16: AFS - this sheet includes a complete set of financial statements which is automatically compiled based on the reporting year that is selected on the Setup sheet, the account balances that are included on the TB sheet and the financial information that is included on the FinInfo sheet. The reporting class codes that are used to populate each line item are included in column A.
A17: TBImport - the calculations on this sheet enables users to review the sequence of trial balance accounts before copying the account balances to the TB sheet. The sequence of accounts can be amended until no errors are reflected and the calculations in column E round all trial balance amounts to the nearest integer value thereby ensuring that all the totals on the annual financial statements are accurate.
A19: In order to start using the template, you basically need to complete the following steps:
A20: ■ Change the default settings in the cells with yellow cell backgrounds on the Setup sheet.
A21: ■ If you do not want to use your own account structure and you would rather use our standard template setup, you only need to include your annual trial balance values on the TB sheet. All the reporting classes will automatically be linked to the appropriate account balances and populated on the financial statements (AFS sheet).
A22: ■ If you want to use your own account structure, replace our default data by copying the account numbers, account descriptions and balances of all the accounts on your trial balance onto the TB sheet and then link each individual account to the appropriate reporting class by copying or entering the class code into column B. The full list of all the classes that are linked to the financial statements are included on the Classes sheet.
A23: ■ We recommend using the TBImport sheet when copying trial balance data into the template. This sheet checks whether the sequence of accounts on the sheet and the sequence of accounts on the TB sheet are the same which makes it easier to copy your account balances. The sheet also rounds all balances to the nearest integer which ensures that the totals on the financial statements are always displayed correctly.
A24: ■ Once you have added your trial balance data, add the appropriate non-trial balance financial statement data to the FinInfo sheet.
A25: ■ Review your financial statements on the AFS sheet and customize the data that needs to be entered on this sheet (as indicated in the columns next to the financial statements). The reporting class codes that relate to each line on the financial statements are included in column A which makes it easy to determine which account balances or other financial information is included in each financial statement line item.
A26: ■ You can now hide the lines that you do not want to include in your financial statements and then move the column headings to the appropriate locations based on your amended page setup.
A28: Note: These are only the main steps that need to be completed and we strongly recommend that you go through the instructions below in order to obtain a more thorough understanding of the template design.
A30: Setup
A32: The input cells with yellow cell backgrounds on the Setup sheet need to be completed in order to set the template up for your business. The business name is included as a heading on all the sheets and also as a heading on all the financial statement pages.
A34: The currency symbol is included below the year headings on the financial statements. The year-end month is used to determine the appropriate year-end date and previous year-end date which are included in a number of notes to the financial statements.
A36: The reporting year determines which annual period is used as the current reporting period in the financial statements. The comparative year is also determined based on the input in this cell and all the values that are included on the TB sheet and the FinInfo sheet are included in the automated financial statement calculations based on the year that is entered in this cell.
A38: Note: You can therefore automatically roll the financial statements forward or back by simply changing the reporting year on the Setup sheet. All the calculations on the financial statements will be updated automatically after editing the value in this cell.
A40: The reporting date and the first day, last day and last day text next to it are all determined based on the year-end month and reporting year which have been specified. These dates are used in the headings of the financial statements and in multiple notes.
A42: The total number of pages is only used to determine the total number of pages that needs to be included in the table of contents on the financial statements. The default value is 18 but may need to be changed after customizing the financial statements and determining the total number of pages which will be printed.
A44: The input in the date of approval cell is used as the financial statement approval date below the table of contents in the financial statements. If the cell is left blank, the month-end date of the month which is two months after the year-end date is used.
A46: Reporting Classes
A48: The default reporting classes that are used to link the trial balance values to the financial statement line items are included on the Classes sheet. These reporting classes need to be linked to each account in the trial balance and are included in column A on the AFS sheet next to the line items that are calculated based on the respective reporting classes.
A50: Note: We strongly recommend using our default reporting classes and only adding new classes if they are required. Changing the structure of the reporting class codes may lead to inaccuracies in the financial statements.
A52: The first letter of all reporting class codes should start with the type of account which it will be used for. All income statement accounts should start with an "I" and all balance sheet accounts should start with a "B". This is followed by a hyphen, a two-digit account group number, a two-digit account number (if needed) and all reporting class codes should end with a "G".
A54: Note: There are exceptions to this general reporting class code structure which will be covered later on in these instructions. The code convention that is used in this template is also consistent with the code convention that we use in some of our other accounting templates.
A56: Most of the line items on the financial statements are automatically populated based on the reporting classes that are included in column A on the AFS sheet. We have used different colours to indicate the type of reporting class that is used for each line item - there are basically 5 types of reporting class codes:
A57: GREEN - these reporting class codes are based on the trial balance values on the TB sheet and use a universal formula which can be copied to any line on the financial statements.
A58: ORANGE - these reporting class codes are based on the financial information on the FinInfo sheet but also use a universal formula which can be copied to any line on the financial statements. The sheet from which the calculation is sourced is different but the formula is exactly the same as the green class formula. The formulas for orange and green items are therefore inter-changeable.
A59: BLUE - these reporting class codes are based on the trial balance values on the TB sheet but use a formula which is specific for the note on the financial statement that the reporting class forms part of. These formulas should only be copied within the same note if you need to add additional items and cannot be copied to any other location in the financial statements otherwise it will result in inaccuracies.
A60: RED - these reporting class codes are based on the financial information on the FinInfo sheet and use a formula which is specific for the note on the financial statement that the reporting class forms part of. These formulas should only be copied within the same note if you need to add additional items and cannot be copied to any other location in the financial statements otherwise it will result in inaccuracies.
A61: PURPLE - these calculations are balancing calculations which means that they have been included in order to ensure that the financial statements balance. The calculations should therefore always result in nil values. These items are typically used where the appropriate balance sheet item is included in one account on the trial balance but require multiple lines on the financial statements. The multiple lines are then included individually and the balancing entry is added to ensure that the multiple lines add up to the account balance on the trial balance. If a balancing line item therefore contains values, it means that there is something wrong!
A63: The reporting classes that are included on the Classes sheet should only be used to link the trial balance values on the TB sheet to the financial statements. The reporting classes that should be used for the financial information on the FinInfo sheet are covered later on in the instructions.
A65: The default reporting class that is used for each income statement and balance sheet item that is included on the trial balance are based on the same reporting classes that we use in our other accounting templates. Each account group has its own two-digit account number as indicated on the Classes sheet.
A67: Linking account groups to financial statement items is the main premise of the template design but we have also accommodated variations of the account group links in order to facilitate flexible reporting functionality. The flexibility of these variations is best explained by way of a few examples:
A69: Example 1 - Account Group Links
A71: Account groups can be identified by the two-digit number which follows the hyphen in the reporting class code. The reporting class for the sales account group is IS-01 and the reporting class of the cost of sales account group is IS-02. If you want to include all the accounts that form part of an account group in a single line on the financial statements, you can use the account group followed by a "G" (because all reporting classes need to end with a "G") as the reporting class and link multiple accounts in the trial balance to the same reporting class code.
A73: For example, there are three cost of sales accounts on our default trial balance and all three accounts are linked to the same reporting class which means that they will report in one line on the income statement in the financial statements (AFS sheet). Refer to the cost of sales line on the income statement (AFS sheet) and you will see the IS-02G code in column A.
A75: Example 2 - Account Number Links
A77: A good example of these links are the operating expense accounts that we have included in the detailed income statement which we have added to the AFS sheet. If we used the account group code for operating expenses (IS-03G), linked each IS-03 account on the trial balance to this reporting class and included this reporting class on the income statement on the AFS sheet, all operating expenses would have been included in one line.
A79: We wanted to include a detailed income statement and we therefore had to separate the IS-03 account group into multiple reporting class codes so that we could include multiple lines for the same account group on the income statement. We did this by simply adding another two-digit number after the account group number and before the "G" and included the new reporting classes in column A next to the income statement on the AFS sheet.
A81: Note: The four-digit reporting class number does not need to be the same as the account numbers on the trial balance - it can be any number as long as it is unique. You can also link multiple trial balance accounts to these account level reporting classes by using the same reporting class codes for the appropriate individual accounts on the trial balance.
A83: Example 3 - Additional Disclosure
A85: In some instances, you may want to be able to include an account in the financial statements as part of an account group but also to include the account individually as an additional disclosure. In cases like these, you need to link the account to a reporting class which has the same characters as the account group reporting class and to then include additional unique characters at the end of the reporting class code.
A87: For example, a loss on the disposal of property, plant & equipment needs to be included in the other expenses account group total but also as an additional disclosure under the profit before tax note. The first part of the reporting class therefore needs to be the same as the other expenses account group reporting class (I-08G) and we then add additional characters to this class which results in a unique reporting class for this account.
A89: We therefore use a reporting class of I-08G02G for this account. Note that the first 5 characters are the same as the account group reporting class which means that this account will be included in the other expenses total on the income statement but the "02" makes it unique and enables us to include just the amount for this item under the profit before tax note. We end with another "G" because all reporting classes need to end with a "G".
A91: New reporting classes
A93: If you want to create a new reporting class for an item which we have not provided for in our standard template setup, you can add the new reporting class in the appropriate location on the Classes sheet by inserting a new row (anywhere above the "End of list" row), entering a new unique reporting class code in column A (remember to end with a "G") and entering a description for the reporting class. You also need to copy the formulas in the other columns on the Classes sheet to ensure that error checking is applied to your new reporting class.
A95: Once you have added your new reporting class to the Classes sheet, you can use it to link accounts in your trial balance (on the TB sheet) to the reporting class by simply copying the new reporting class into column B next to the appropriate account numbers on the TB sheet.
A97: You also need to add the new reporting class to the AFS sheet to ensure that the appropriate amounts are included in your financial statements. If the new reporting class needs to be included on the face of the income statement or balance sheet, you can insert a new row in the appropriate location, copy the formulas from any row with a green reporting class and replace the copied class in column A with your new reporting class code.
A99: If you want to include the new reporting class in the notes to the financial statements, you need to insert the appropriate number of rows required for your new note, copy one of the other notes with a similar structure, change the reporting class code in column A to your new reporting class code and then link your note to the appropriate row on the income statement or balance sheet.
A101: Class Descriptions
A103: The line item formulas in column B on the AFS sheet include the descriptions in column B on the Classes sheet as the line item descriptions for all lines that are linked to a green reporting class. If you therefore want to edit the line item descriptions on the financial statements, you need to edit the class descriptions in column B on the Classes sheet.
A105: Error Checking
A107: The Classes sheet also contains four columns with light blue column headings which include formulas that are used for error checking. These formulas should be copied for all new reporting classes that are added to the sheet.
A109: The Code Status column contains formulas which check that all reporting classes start with either an "I" for income statement accounts or a "B" for balance sheet accounts and that all codes end with a "G". If this is not the case, the appropriate row will contain an error status.
A111: The TB Status column indicates whether the reporting class code has been linked to an account on the trial balance (TB sheet). If the reporting class is used on the TB sheet, the status will display "ok". The AFS Status column indicates whether the reporting class code has been added to the financial statements on the AFS sheet. If the reporting class has been added to the AFS sheet, the status will display "ok".
A113: The Error Status column checks whether all reporting class codes which have been linked to accounts on the TB sheet are included on the AFS sheet. If a class has been linked to an account on the TB sheet and not included on the AFS sheet, an "add!" status will be displayed.
A115: Note: If classes are linked to accounts on the TB sheet and not included on the AFS sheet, your financial statements will not balance. We have therefore included conditional formatting on the Classes sheet which highlights the Error Status column heading in red if there are any errors in this column. If the Error Status column heading is highlighted in red, find the class which displays an "add!" status in this column and add it in the appropriate location on the financial statements (AFS sheet).
A117: Trial Balance
A119: A complete trial balance should be included on the TB sheet for each annual reporting period that needs to be included in the financial statements. All the account numbers and account descriptions that form part of the trial balance need to be included in column C and D on the TB sheet and the account balances need to be entered into the columns from column E onwards.
A121: Each account in the trial balance needs to be linked to one of the pre-defined reporting classes on the Classes sheet by entering or copying the appropriate class code into column B. These class codes determine where in the financial statements the appropriate account balances will be included.
A123: Note: The Status column (A) contains a formula which needs to be copied for all new lines that are added to the TB sheet. This column will contain a "class!" status if the reporting class that has been included in column B is not included on the Classes sheet and an "add!" status of the reporting class has not been included in the financial statements (column A of the AFS sheet). If the reporting class is included on the Classes and AFS sheets, the status will reflect "ok".
A125: There are two ways of including your trial balance data into the template. You can use our existing account numbers and descriptions and just include your annual trial balance values in the other columns on the TB sheet which means that all the accounts will already be linked to the financial statements or you can replace our default data with your own trial balance data.
A127: If you follow the second approach, each account in your trial balance needs to be linked to one of the financial statement reporting classes that are listed on the Classes sheet. The template will contain default data on the TB sheet when you use it for the first time but you can replace all the account numbers and descriptions with your own and clear all the class codes in column B before you commence with the exercise of linking your accounts to the appropriate pre-defined financial statement reporting classes.
A129: After clearing all the class codes from column B, you need to refer to the Classes sheet in order to determine which accounts need to be linked to which financial statement reporting classes. Note that you do not need to use all the default classes if they are not required but it is imperative that each account is linked to a class. After completing the linking exercise, there should therefore be no blank values in column B.
A131: Note: All the accounts that are included in your trial balance should be entered in a continuous cell range on the TB sheet - there should not be any blank rows or columns in between account numbers or financial periods otherwise all the accounts or periods may not be included in the financial statement calculations and your balance sheet may therefore not balance!
A133: We have also included totals above the column headings which will indicate if the sum of the account balances for any annual period does not equal nil. If the total of all the account balances in a trial balance does not equal nil, it means that the financial statements will not be accurate and that the balance sheet will not balance. You should therefore always ensure that the trial balance for each annual period adds up to a nil value.
A135: New businesses
A137: When compiling financial statements for a new business, you only need to include the account balances of the current financial reporting period on the TB sheet. All the amounts for the comparative financial year on the financial statements will be nil.
A139: The TB sheet contains a number of default years - you can therefore change the column heading in column E to the appropriate current financial year and change all the subsequent columns to the appropriate subsequent years. Also remember to enter the correct reporting year on the Setup sheet.
A141: Note: The financial statements on the AFS sheet contain a current and comparative period. If you use the financial statements for a new business and only include values for one year, the comparative year will contain zero values in all rows. You cannot delete these values but you can format them as white text so that they are not visible when you print the financial statements.
A143: Existing businesses
A145: When compiling financial statements for an existing business, you need to include the trial balances of at least the last two financial years on the TB sheet but you will also need to include the balance sheet balances of a third year so that the cash flow calculations in the financial statements are accurate.
A147: We therefore recommend that users include the complete trial balances of at least three financial years on the TB sheet when using the template to compile financial statements for existing businesses. If you only include the balance sheet of the third financial year (the year prior to the comparative financial period), it is absolutely essential that the trial balance still balances and that the retained earnings balance is calculated accurately, otherwise your financial statements for the comparative year may not be accurate.
A149: The TB sheet contains four financial periods by default and in most instances, these financial periods will represent the financial periods that are required for existing businesses. If you are compiling financial statements for previous periods, you may however need to change the column headings accordingly (start with the year before the comparative period in column E). Also remember to enter the correct reporting year on the Setup sheet so that the financial statements are compiled for the correct period!
A151: Adding new financial periods
A153: After using the template to compile your first set of financial statements, you can add subsequent financial periods by simply copying the last column on the TB sheet to the next available column, changing the column heading to the next financial period and clearing all the account balances in the new column (we recommend replacing the existing values with nil values before entering or copying the appropriate account balances into the new column).
A155: Note: The same procedure can be followed to also add the new financial period to the FinInfo sheet but before you replace all the values in the new column with nil values, note that some of these values will need to remain unchanged for the next financial period.
A157: Note: All the trial balance data on the TB sheet should form part of a continuous cell range and you should therefore not include any blank rows or columns between rows or columns that contain data otherwise the financial statement calculations will not be accurate.
A159: Trial balance check & import
A161: If you use a trail balance export file in order to compile financial statements, the trial balance export will have to be converted so that the account numbers are in the exact same sequence as the accounts on the TB sheet before you will be able to copy the balances onto the TB sheet. This is an absolute necessity in order to ensure that the correct account balances are included next to the correct account number.
A163: New accounts may also have been added during the current financial period which may not be included in the previous trial balance on the TB sheet. These accounts therefore need to be identified and inserted in the correct row position before the account balances can be copied. This could be quite a time-consuming exercise and we have therefore created the TBImport sheet to assist users in simplifying this exercise.
A165: The following steps need to be completed in order to ensure that the trial balance for the new financial period is correctly included on the TB sheet:
A166: ■ Sort the data on the TB sheet in an ascending order based on the account number in column C.
A167: ■ Sort the data on the trial balance export file in an ascending order based on the account number column.
A168: ■ Copy the account number, account description and account balance from the export file and paste the data into column A to C on the TBImport sheet (replace the existing data on this sheet).
A169: ■ Copy cells D5 and E5 and paste these cells into all the rows in column D and E that contain account numbers. Note that these two cells contain formulas and formatting that will assist you in identifying new accounts or changes that need to be made to the sequence of the accounts in the export file.
A170: ■ Review the contents in column D - a row that contains a green "ok" cell is in the correct sequence but if an "error" is displayed in orange, it means that the sequence of accounts on the TBImport sheet is not the same as the accounts on the TB sheet.
A171: ■ Compare the contents of all the rows that contain errors by comparing the account sequence on the TBImport sheet with the account sequence on the TB sheet.
A172: ■ Where an account is included on the TBImport sheet but not on the TB sheet, insert a new row on the TB sheet, copy the account number and description into column C and D and enter a nil value into all the columns that relate to previous financial periods. After completing these steps, the error in the particular row will automatically be removed from the TBImport sheet.
A173: ■ Where an account is included on the TB sheet but not on the TBImport sheet, insert a new row on the TBImport sheet, copy the account number & description from the TB sheet and copy the formulas in column D and E from one of the existing rows. Column D should now contain a green "ok" message.
A174: ■ Repeat the previous two steps until the TBImport sheet contains no errors.
A175: ■ Ensure that the total of the amounts in column E on the TBImport sheet is nil - the total calculation is included in the row above the column headings. If the total is not nil, the difference will be reflected in orange in the cell above the column headings with an "error" message next to it. The difference may be attributable to rounding which is covered in the next section of these instructions.
A176: ■ If the column E total is not nil and the difference cannot be attributable to rounding, review your trial balance export and make sure that the total of the export file is in fact nil. Also review the TBImport sheet and ensure that all the accounts on the trial balance export have been added to this sheet.
A177: ■ Rounding errors can be corrected by amending the trial balance amounts of selected accounts in column C. When the orange cell background is removed from the total calculation and the "error" text is replaced by an "ok" message, it means that the trial balance has been corrected.
A178: ■ The amounts in column E can now be copied and pasted as values in the appropriate column (for the new period) on the TB sheet. After completing this step, the trial balance has successfully been imported into the template.
A180: Rounding in financial statements
A182: Rounding can have a significant impact on financial statements because the amounts that are displayed on the financial statements may not always add up to the totals that are displayed. Even the most insignificant of errors could result in financial statements appearing to be inaccurate and as a consequence also result in the value of the financial information that is included in the financial statements being questioned.
A184: Checking all the calculations in financial statements and making the appropriate adjustments could be quite a time consuming and cumbersome approach and we therefore recommend making the required adjustments on a trial balance level instead. This approach will ensure that the calculations that are included in the financial statements are always accurate and negate the need to go through the entire cumbersome (manual) calculation exercise.
A186: The problem with rounding in financial statement terms is that a trial balance typically includes two decimal values while financial statements are typically compiled to the nearest integer value. When two amounts that contain decimal values are rounded and added, the result is not necessarily the same as the rounded value of the total but if the decimal values are rounded to the nearest integer value and then added, the total that is calculated is guaranteed to be accurate.
A188: This approach is followed in the calculations in column E on the TBImport sheet in that the trial balance amounts in column C are rounded to the nearest integer value in column E. If you therefore use the TBImport sheet to round all the amounts on the trial balance to the nearest integer values before correcting any rounding differences that may exist and copying & pasting the values onto the TB sheet, your financial statements are guaranteed to be accurate. We therefore recommend always using the TBImport sheet before including the appropriate trial balance amounts for a new financial period on the TB sheet.
A190: Financial Information
A192: The FinInfo sheet contains the financial information that needs to be included in our standard financial statements but can typically not be derived from the amounts on a trail balance. These values therefore need to be entered for each financial period that is included in the financial statements and for which a trial balance is therefore included on the TB sheet.
A194: In terms of new and existing businesses and the addition of new columns, the same procedure that needs to be followed in order to add new columns to the TB sheet needs to be completed for the FinInfo sheet. Refer to the Trial Balance section of the instructions for guidance on how to amend the default columns and how to add new columns to this sheet.
A196: Note: Some of the financial information that is listed on the FinInfo sheet may not be applicable to all businesses but we recommend that you retain all the data on this sheet and that you simply enter nil values for the items that are not applicable. Do not therefore delete any of these items as you may need some of them in future.
A198: Note: All the data on the FinInfo sheet should form part of a continuous cell range and you should not include any blank rows or columns between rows or columns that contain data otherwise the financial statement calculations may not be accurate.
A200: The values on the FinInfo sheet will have no bearing on whether the financial statements balance or not - this aspect of the financial statements is entirely determined by the account balances that are included on the TB sheet. The values on the FinInfo sheet are mainly used to provide additional disclosures that may be required and in some instances to include amounts that are required to be disclosed but typically do not get allocated to separate accounts in a general ledger (and therefore trial balance).
A202: Note: We are not going to cover each individual item on the FinInfo sheet in these instructions but you can trace the codes in column B to column A on the AFS sheet in order to see where the information is included in the financial statements. Note that all the codes for the financial information that originates from the FinInfo sheet are displayed in orange or red on the AFS sheet.
A204: Note: The reporting class codes of the items on the FinInfo sheet that require negative values to be entered have been formatted with orange text. Most of the items in black text require positive values to be entered. Some items like deferred tax can be positive or negative.
A206: All the values on the FinInfo sheet are included on the financial statements based on the reporting class code that is included in column B. There are four types of line items that are included on the FinInfo sheet which we will now cover individually.
A208: Items with descriptions that are based on specific TB reporting classes
A210: The items that are listed in this section all relate to specific trial balance reporting classes which have been included on the Classes sheet. The line item descriptions in column C can therefore be determined based on the original trial balance reporting classes which are included on the Classes sheet. These items basically all relate to three balance sheet items namely property, plant & equipment, intangible assets and provisions.
A212: The property, plant & equipment and intangible assets items basically have the same reporting classes as the corresponding classes that are listed on the Classes sheet but each of these codes on the FinInfo sheet starts with an "F" and ends in a different character (the items on the Classes sheet end with a "G").
A214: The "F" at the start is the default reporting class character for the items on the FinInfo sheet but the character at the end has a special meaning and purpose:
A215: R - if the code ends in a "R", the value is included in the accounting policies section of the notes to the financial statements and refers to the depreciation or amortisation rate of the appropriate item.
A216: D - if the code ends in a "D", the value is included in the disposals column of the appropriate item in the property, plant & equipment or intangible asset note. All values must be entered as negative values and there are separate codes for the cost and accumulated depreciation or amortisation sections which are based on the appropriate account group numbers.
A217: I - if the code ends in an "I", the value is included in the impairment column of the appropriate item in the property, plant & equipment or intangible asset note. All values must be entered as negative values and there are separate codes for the cost and accumulated depreciation or amortisation sections which are based on the appropriate account group numbers. Net impairment totals are also included in a paragraph below the appropriate note.
A219: Note: If the description in column C contains the text "PPE Class" or "Intangibles Class" at the end of the description, it means that the code on the FinInfo sheet could not be matched to the code on the Classes sheet. You need to check the code included in this section to determine why it has not been matched to the Classes sheet. The relevant code on the classes sheet will have a "B" at the start of the code and a "G" at the end of the code but all the other characters will be the same.
A221: The section on the FinInfo sheet also contains classes for the Provisions balance sheet item. These classes again contain the same characters as the code for Provisions on the Classes sheet with only the first and last characters being different. The code again starts with an "F" and ends in either a "C" or a "R". The values that are entered for codes ending in a "C" and a "R" are included in the Charges & Reversals column of the Provisions note. Both need to be entered as positive values.
A223: The provisions line items have been included on the FinInfo sheet because provisions are typically recorded in one account on the trial balance and then need to be separated into individual items for financial statement purposes. We have included three default items in the template and the description of each is included in the next section of the FinInfo sheet. These descriptions can be amended and you can add additional items if required.
A225: Items with descriptions and balances that are used on the financial statements
A227: The items that are included in this section of the FinInfo sheet are typically included in one account on the trial balance but are required to be separated into multiple line items for financial statement purposes. There are only two balance sheet items in this section - deferred tax and provisions.
A229: The deferred tax and provisions notes contain a total line which is based on the trial balance values and individual lines that are based on the values that are entered on the FinInfo sheet. We have therefore also included a balancing line to ensure that imbalances between the FinInfo sheet values and the trial balance values do not cause balance sheet imbalances.
A231: The values that are entered in this section of the FinInfo sheet represent the closing balances for each of the line items. For deferred tax, positive values represent deferred tax liabilities and negative values represent deferred tax assets. For provisions, values should be entered as negative values which represent liabilities.
A233: Each section contains three default line items and the descriptions of the items on the financial statement are based on the description of the items that are included in this section on the FinInfo sheet. You can therefore change the descriptions in this section if you want to change the item description on the financial statements.
A235: If you need more than three line items for deferred tax or provisions, you can insert a new row below the last item, copy one of the existing rows, change the reporting class & description of the new item and replace the copied item's balances with nil values. You then also need to add the new item to the note in the financial statements by inserting a new row below the last default item, copying one of the existing items and entering the new class code in column A on the AFS sheet.
A237: Note: If a new line item is created for provisions, the new line item also needs to be added to the previous section on the FinInfo sheet by creating reporting codes which end in a "C" and a "R" for the new item.
A239: Items with balances that are linked to specific reporting classes (as per Classes sheet)
A241: This section of the FinInfo sheet provides for items which are included with other items in trial balance accounts but need to be disclosed separately on the financial statements. If you therefore want to remove an item from the trial balance calculation and disclose it separately on the financial statements, you can include it in this section.
A243: What is important to note is that the formulas on the AFS sheet will automatically remove the item as long as you enter the correct reporting class on the FinInfo sheet which corresponds to the reporting class which has been included on the Classes sheet and linked to the appropriate accounts on the trial balance.
A245: The reporting class that you need to use should be the same as the reporting class on the Classes sheet but for income statement accounts, the "I" at the start of the code needs to be replaced with an "E" and for balance sheet items, the "B" needs to be replaced with an "F".
A247: Examples of these types of entries have been set up in our default template design and include related party transactions that are typically included in trade debtors and trade creditors, short term loans which need to be included separately on financial statements, interest paid on leases which may be included with other interest paid amounts in a single trial balance account and interest received which may be included with interest paid amounts in a single trial balance account.
A249: You can however use the same principle that is applied in this section for any income statement or balance sheet item but it is important to remember to include the new class which is created on the FinInfo sheet on the AFS sheet otherwise your financial statements will not balance.
A251: Note: Values should be entered consistently with the type of balance that is included in the trial balance. If the item has a debit balance, a positive value should be entered and if the item has a credit balance on the trial balance, a negative value should be entered.
A253: Items that are used in other disclosures
A255: The last section on the FinInfo sheet basically includes all other non-trial balance related disclosures that need to be included on the financial statements. Refer to the matching reporting classes in column A on the AFS sheet to see where these items are included on the financial statements.
A257: Error Checking
A259: The formula in column A on the FinInfo sheet need to be copied for all new items that are added to the sheet. Different formulas are used in the different sections of the sheet and you therefore need to copy the formula from one of the existing lines in the appropriate section.
A261: The formula in the first section checks whether there is a corresponding trial balance class on the Classes sheet. If an error is displayed for any item, you need to check the Classes sheet for a corresponding item which has the same class code but starts with a "B" and ends in a "G". You should either fix the class code on the FinInfo sheet or add the appropriate item to the Classes sheet in order to fix the error.
A263: The formula in the second section also checks the Classes sheet for a corresponding code and the same process should be followed to resolve the error. An "add!" status will be displayed if the items cannot be matched to the Classes sheet.
A265: The formula in the third section displays a "no G!" status if the reporting class code on the FinInfo sheet does not contain a "G" at the end. It displays a "class!" status if a corresponding class cannot be found on the Classes sheet and it displays an "add!" status if the class on the FinInfo sheet has not been added to the AFS sheet. Note that an "add!" status may result in a financial statement imbalance because the appropriate value will have been removed from the trial balance amount but not added to the financial statements on the AFS sheet.
A267: The formula in the last section displays a "missing!" status if the appropriate reporting class on the FinInfo sheet cannot be found on the AFS sheet. If it is a new reporting class, you need to add it to the appropriate location on the AFS sheet but if it is not a new class, it indicates that you may have deleted the row which included the reporting class code.
A269: Annual Financial Statements
A271: The annual financial statements are included on the AFS sheet. All the amounts that are included in the financial statements are calculated from the trial balance that is included on the TB sheet and the additional financial information that is included on the FinInfo sheet based on the reporting class codes that are included in column A on the AFS sheet. It is therefore imperative that you do not delete these codes (this column does not form part of the printed pages).
A273: The codes that are included in column A on the AFS sheet can be used to trace the appropriate amounts back to the source sheet. Codes that are displayed in orange or red text can be found on the FinInfo sheet (all these codes begin with an "E" or "F") and codes that are displayed in green or blue text can be found on the TB sheet (all these codes begin with either an "I" for income statement or a "B" for balance sheet).
A275: Note: In some instances, multiple accounts on the Trial Balance may be linked to the same financial reporting class code. We recommend that you filter the TB sheet based on the code by using the filter feature in the column heading row in column B on the TB sheet. The totals that are displayed above the column headings are calculated by including only filtered data and should therefore agree to the appropriate amount on the financial statements. Where a reporting class consists of account group and account number codes, you will need to select all the codes that form part of the account group code when filtering data.
A277: Note: All the financial statement reporting class codes are pre-defined - you should therefore not amend any of these default codes because this will result in an amendment in the appropriate calculation which may lead to inaccuracies in the financial statement calculations.
A279: Basic Principles
A281: The print range of the financial statements is from column B to column J. The reporting classes in column A and the data in the columns after column J therefore do not appear on the financial statements but play an important role in the automated calculations and should not be deleted.
A283: Do not delete any of the contents on the AFS sheet because you will not be able to recover the data and some of the data may also affect other calculations on this sheet. If you therefore do not want to include any of the rows or notes in your version of the financial statements, we recommend hiding the appropriate rows instead of deleting them. This will ensure that none of the other calculations are affected.
A285: If you hide an entire note, you also need to remove the note number by deleting the formula next to the note heading in column A. Note numbers are calculated based on the previous maximum value and if you do not delete the note numbers of the notes that are not visible, the notes in your financial statements will not be sequential.
A287: The input for rows which contain data in a paragraph layout has been included in column P. The financial statements consist of multiple columns and it is not possible to merge and wrap text in a single cell in Excel. We have therefore wrapped the paragraph text in a single column in column P and used a formula to display the text in the financial statements based on the text wrapping in this column. If you want to edit any of the data that forms part of a paragraph, you need to edit the data in column P.
A289: All the calculations of amounts on the AFS sheet are automated but some areas (especially the general information page) requires user input on the AFS sheet. We have indicated where user input is required in the columns next to the financial statements.
A291: Customizing the standard financial statement data
A293: After linking your trial balance to the reporting class codes on the TB sheet and entering all the required values on the FinInfo sheet, we recommend that you review the standard financial statements on the AFS sheet. You can then hide all the content that is not applicable to your business and delete the note numbers next to the note headings if you hide entire notes. You should hide data and not delete anything from the AFS sheet!
A295: Note: We also recommend unhiding all hidden data before you start with the financial statements for a new year. This will ensure that you have not hidden rows or notes which contain amounts for the new reporting year.
A297: It is imperative that you read through all the contents that are included on the AFS sheet to determine whether all the standard information is applicable to your business. This is especially necessary for the notes on the accounting policies that have been applied in compiling the financial statements because these policies may very well differ between different types of businesses.
A299: It is practically impossible to include financial statement information that will be suitable to all types of businesses in a financial statement template and the responsibility for ensuring that all the required disclosures are included in the financial statements remains that of the user. We will also not be able to assist you in adding additional notes to the standard financial statements - you should be able to do this on your own by following the steps that we covered earlier on in these instructions.
A301: If you need to add new reporting classes to the template which are based on either the trial balance data or the financial information on the FinInfo sheet, you need to insert a new row in the appropriate location, copy one of the existing lines with an orange or green reporting class code in column A and change the reporting class in column A to the new reporting class. The formulas in the rows with green or range reporting classes are all the same and copying them will result in the correct calculations being included for the new reporting class.
A303: Printing Financial Statements
A305: The full set of financial statements that are compiled with this template are included on the AFS sheet and you therefore only need to print this sheet in order to print your full set of financial statements. After hiding some rows or even entire notes or making other changes, the page setup of your version would have changed from the page setup of our standard version and you will need to make some amendments especially for printing purposes.
A307: It is mostly the notes section of the financial statements which will be affected because all the pages before this section fit onto a single page and should therefore not be affected by any of your changes. The notes section contains headings which consist of the company name, the notes section heading and the date for which the financial statements are compiled in three separate rows.
A309: After hiding content, you need to review where these headings are printed and move the rows to the appropriate row locations so that the headings are printed at the top of all of the pages. If you need more headings than what we have included in the standard template, you can simply copy one of the existing headings.
A311: If you've hidden notes, you should also check your note numbers to see that they are all in sequence. If not, you have probably hidden a note without removing its note number.
A313: The final aspect of printing that we need to mention is the rows that contain paragraphs. All of these rows should be wrapped automatically but in isolated cases, the row height may not be correct when the pages are printed. You therefore need to review your printed financial statements to ensure that there are no extra spaces. If you note any of these occurrences, you can fix the issue by changing the row height of the affected row.
A315: AFS Components
A317: In this section of the instructions, we provide guidance on the information that is included in each section of the financial statements on the AFS sheet. One of the most important points to note is that the current and comparative periods are determined based on the year that is specified on the Setup sheet. Users therefore don't need to change the individual dates on the AFS sheet when compiling financial statements for a new period.
A319: Cover page
A321: The first page which forms part of the financial statements is the cover page which is included at the top of the AFS sheet. The business name is specified on the Setup sheet and the registration number is included in the general information section of the financial statements. The cover page also includes a logo placeholder which can be replaced with your company logo.
A323: Table of contents
A325: Most of the information on this page is fixed. The only items that you may need to change is the number of pages and the financial statements approval date which can be specified on the Setup sheet.
A327: General Information
A329: All the details on this sheet need to be entered in column E.
A331: Audit Exemption Statement
A333: We have included a standard audit exemption statement on this page. If you need to include a different statement or report or if you are setting up financial statements for a different type of entity which requires a different type of statement or report, you can replace our statement with your own.
A335: Note: Remember that all paragraph type text needs to be edited in column P. You should therefore replace the data in column P to ensure that it displays correctly on the financial statements.
A337: The director details at the bottom of the sheet should also be replaced with your own data.
A339: Directors' Report
A341: We have included a standard directors report on this page. The only user input that is required on this sheet is to enter the names of the directors. You can also make changes to the default content and hide any items that may not be applicable to your business.
A343: Statement of comprehensive income and retained earnings
A345: The revenue, other income, finance costs and income tax line items are calculated in the respective notes to the financial statements. Cost of sales, dividends paid and the default operating expenses are calculated on the statement of comprehensive income and retained earnings. The reporting class codes for these calculations are included in column A.
A347: Note: Descriptions of all line items that are linked to the trial balance reporting classes (green or blue text in column A) can be edited on the Classes sheet and the descriptions of all the financial information reporting classes (orange and red text) can be edited on the FinInfo sheet.
A349: Note: If the number of expense line items are not sufficient, additional expenses line items can be added by inserting a new row, copying one of the existing rows and entering a new reporting class code in column A.
A351: Note: If the line item description contains a "no class!" error, it means that the appropriate reporting class in column A has not been added to the Classes sheet. If the description is "Add to FinInfo sheet!", it means that the code in column A starts with an "E" or a "F" but cannot be matched to a class on the FinInfo sheet.
A353: The retained earnings balances at the start of the year are calculated based on the prior year's trial balances by adding the balance sheet retained earnings to the total of all income statement accounts for the appropriate year. If this calculation differs from the current year's trial balance value for retained earnings (which represents the opening balance), the difference will be displayed in the prior year adjustments line.
A355: Note: If no prior year adjustments have been processed in your trial balance, balances in the prior year adjustment line indicate that there is an inconsistency between the retained earnings opening balance for the current year (as per the trial balance) and the retained earnings closing balance for the prior year.
A357: We have included control totals next to the profit or loss line next to the financial statements. If any of these control totals contain a balance, it indicates that not all income statement accounts have been included in the income statement. You should then review your trial balance data on the TB sheet in order to identify the accounts that may not have been included in the financial statements.
A359: Statement of financial position
A361: Most of the amounts that are included on the balance sheet are calculated in the notes to the financial statements. The only exceptions are the interest payable, dividends payable and the provision for taxation lines which are all calculated on the balance sheet based on the reporting codes included in column A. The retained earnings amounts are calculated on the income statement.
A363: Note: The balance sheet includes three years but only the current and comparative years are included in the printed pages. The third year is only included in order to facilitate accurate cash flow calculations for the comparative financial year.
... 117 more rows

Sheet Setup (hidden)
A1: =IF(ISBLANK($B$4),"Example (Pty) Limited",$B$4) -> Example Limited
A2: Set-up
A3: © www.excel-skills.co.uk
A4: Business Name | B4: Example Limited
A6: Currency Symbol | B6: £ | C6: =IF(ISBLANK($B$6)=TRUE,"CU",$B$6) -> £
A8: Year End Month | B8: 2021-03-01
A10: Reporting Year | B10: 2022
D11: First Day | E11: Last Day | F11: Last Day Text
A12: Year End Reporting Date | B12: =IF(ISBLANK($B$10),IF(ISBLANK($B$8),DATE(YEAR(TODAY()),MONTH(TODAY())+1,0),DATE(YEAR(TODAY()),MONTH($B$8)+1,0)),IF(ISBLANK($B$8),DATE($B$10,MONTH(TODAY())+1,0),DATE($B$10,MONTH($B$8)+1,0))) -> 2022-03-31 | D12: =DATE(YEAR($B$12)-1,MONTH($B$12)+1,1) -> 2021-04-01 | E12: =DATE(YEAR(Setup!$B$12),MONTH(Setup!$B$12)+1,0) -> 2022-03-31 | F12: =TEXT($E$12,"dd mmmm yyyy") -> 31 March 2022
A14: Total Number of Pages | B14: 18
A16: Date of Approval | C16: =IF(ISBLANK($B$16),DATE(YEAR($B$12),MONTH($B$12)+3,0),$B$16) -> 2022-05-31
B18: =DATE(YEAR(TODAY()),1,1) -> 2022-01-01
B19: =DATE(YEAR(TODAY()),2,1) -> 2022-02-01
B20: =DATE(YEAR(TODAY()),3,1) -> 2022-03-01
B21: =DATE(YEAR(TODAY()),4,1) -> 2022-04-01
B22: =DATE(YEAR(TODAY()),5,1) -> 2022-05-01
B23: =DATE(YEAR(TODAY()),6,1) -> 2022-06-01
B24: =DATE(YEAR(TODAY()),7,1) -> 2022-07-01
B25: =DATE(YEAR(TODAY()),8,1) -> 2022-08-01
B26: =DATE(YEAR(TODAY()),9,1) -> 2022-09-01
B27: =DATE(YEAR(TODAY()),10,1) -> 2022-10-01
B28: =DATE(YEAR(TODAY()),11,1) -> 2022-11-01
B29: =DATE(YEAR(TODAY()),12,1) -> 2022-12-01

Sheet Classes (hidden)
A1: =IF(ISBLANK(Setup!$B$4),"Example (Pty) Limited",Setup!$B$4) -> Example Limited
A2: Financial Statement Reporting Classes
A3: © www.excel-skills.co.uk
A4: Class | B4: Description | C4: Code Status | D4: TB Status | E4: AFS Status | F4: Error Status
A5: Income Statement
A6: I-01G | B6: Turnover | C6: =IF(OR(LEFT($A6,1)="I",LEFT($A6,1)="B")=FALSE,"error!",IF(RIGHT($A6,1)<>"G","error!","ok")) -> ok | D6: =IF(ISNA(VLOOKUP($A6,TBData,COLUMN(TB!$B$4),0)),"-","ok") -> - | E6: =IF(ISNA(VLOOKUP($A6,AFSClass,1,0)),"-","ok") -> - | F6: =IF(AND(D6="ok",E6<>"ok"),"add!","ok") -> ok
A7: I-0101G | B7: Sales - fruit juice | C7: ok | D7: =IF(ISNA(VLOOKUP($A7,TBData,COLUMN(TB!$B$4),0)),"-","ok") -> ok | E7: ok | F7: =IF(AND(D7="ok",E7<>"ok"),"add!","ok") -> ok
A8: I-0102G | B8: Sales - vegetable juice | C8: ok | D8: =IF(ISNA(VLOOKUP($A8,TBData,COLUMN(TB!$B$4),0)),"-","ok") -> ok | E8: ok | F8: ok
A9: I-02G | B9: Cost of sales | C9: ok | D9: =IF(ISNA(VLOOKUP($A9,TBData,COLUMN(TB!$B$4),0)),"-","ok") -> ok | E9: ok | F9: ok
A10: I-03G | B10: Operating expenses | C10: ok | D10: =IF(ISNA(VLOOKUP($A10,TBData,COLUMN(TB!$B$4),0)),"-","ok") -> - | E10: - | F10: ok
A11: I-0301G | B11: Accounting fees | C11: ok | D11: =IF(ISNA(VLOOKUP($A11,TBData,COLUMN(TB!$B$4),0)),"-","ok") -> ok | E11: ok | F11: ok
A12: I-0302G | B12: Advertising & marketing | C12: ok | D12: =IF(ISNA(VLOOKUP($A12,TBData,COLUMN(TB!$B$4),0)),"-","ok") -> ok | E12: ok | F12: ok
A13: I-0303G | B13: Bank charges | C13: ok | D13: =IF(ISNA(VLOOKUP($A13,TBData,COLUMN(TB!$B$4),0)),"-","ok") -> ok | E13: ok | F13: ok
A14: I-0304G | B14: Commission | C14: ok | D14: =IF(ISNA(VLOOKUP($A14,TBData,COLUMN(TB!$B$4),0)),"-","ok") -> ok | E14: ok | F14: ok
A15: I-0305G | B15: Computer expenses | C15: ok | D15: =IF(ISNA(VLOOKUP($A15,TBData,COLUMN(TB!$B$4),0)),"-","ok") -> ok | E15: ok | F15: ok
A16: I-0306G | B16: Consumables & cleaning | C16: ok | D16: =IF(ISNA(VLOOKUP($A16,TBData,COLUMN(TB!$B$4),0)),"-","ok") -> ok | E16: ok | F16: ok
A17: I-0307G | B17: Entertainment | C17: ok | D17: =IF(ISNA(VLOOKUP($A17,TBData,COLUMN(TB!$B$4),0)),"-","ok") -> ok | E17: ok | F17: ok
A18: I-0308G | B18: Insurance | C18: ok | D18: =IF(ISNA(VLOOKUP($A18,TBData,COLUMN(TB!$B$4),0)),"-","ok") -> ok | E18: ok | F18: ok
A19: I-0309G | B19: Office expenses | C19: ok | D19: =IF(ISNA(VLOOKUP($A19,TBData,COLUMN(TB!$B$4),0)),"-","ok") -> ok | E19: ok | F19: ok
A20: I-0310G | B20: Office rent | C20: ok | D20: =IF(ISNA(VLOOKUP($A20,TBData,COLUMN(TB!$B$4),0)),"-","ok") -> ok | E20: ok | F20: ok
A21: I-0311G | B21: Postage | C21: ok | D21: =IF(ISNA(VLOOKUP($A21,TBData,COLUMN(TB!$B$4),0)),"-","ok") -> ok | E21: ok | F21: ok
A22: I-0312G | B22: Professional & legal fees | C22: ok | D22: =IF(ISNA(VLOOKUP($A22,TBData,COLUMN(TB!$B$4),0)),"-","ok") -> ok | E22: ok | F22: ok
A23: I-0313G | B23: Stationery | C23: ok | D23: =IF(ISNA(VLOOKUP($A23,TBData,COLUMN(TB!$B$4),0)),"-","ok") -> ok | E23: ok | F23: ok
A24: I-0314G | B24: Subscriptions & memberships | C24: ok | D24: =IF(ISNA(VLOOKUP($A24,TBData,COLUMN(TB!$B$4),0)),"-","ok") -> ok | E24: ok | F24: ok
A25: I-0315G | B25: Telephone & internet | C25: ok | D25: =IF(ISNA(VLOOKUP($A25,TBData,COLUMN(TB!$B$4),0)),"-","ok") -> ok | E25: ok | F25: ok
A26: I-0316G | B26: Training | C26: ok | D26: =IF(ISNA(VLOOKUP($A26,TBData,COLUMN(TB!$B$4),0)),"-","ok") -> ok | E26: ok | F26: ok
A27: I-0317G | B27: Travelling & accommodation | C27: ok | D27: =IF(ISNA(VLOOKUP($A27,TBData,COLUMN(TB!$B$4),0)),"-","ok") -> ok | E27: ok | F27: ok
A28: I-0318G | B28: Utilities | C28: ok | D28: =IF(ISNA(VLOOKUP($A28,TBData,COLUMN(TB!$B$4),0)),"-","ok") -> ok | E28: ok | F28: ok
A29: I-04G | B29: Staff costs | C29: ok | D29: =IF(ISNA(VLOOKUP($A29,TBData,COLUMN(TB!$B$4),0)),"-","ok") -> - | E29: - | F29: ok
A30: I-0401G | B30: Salaries & wages | C30: ok | D30: =IF(ISNA(VLOOKUP($A30,TBData,COLUMN(TB!$B$4),0)),"-","ok") -> ok | E30: ok | F30: ok
A31: I-05G | B31: Depreciation & amortization | C31: ok | D31: =IF(ISNA(VLOOKUP($A31,TBData,COLUMN(TB!$B$4),0)),"-","ok") -> - | E31: - | F31: ok
A32: I-0501G | B32: Depreciation on property, plant & equipment | C32: ok | D32: =IF(ISNA(VLOOKUP($A32,TBData,COLUMN(TB!$B$4),0)),"-","ok") -> ok | E32: ok | F32: ok
A33: I-0502G | B33: Amortisation of intangible assets | C33: ok | D33: =IF(ISNA(VLOOKUP($A33,TBData,COLUMN(TB!$B$4),0)),"-","ok") -> ok | E33: ok | F33: ok
A34: I-06G | B34: Interest on loans and overdraft | C34: ok | D34: =IF(ISNA(VLOOKUP($A34,TBData,COLUMN(TB!$B$4),0)),"-","ok") -> ok | E34: ok | F34: ok
A35: I-07G | B35: Taxation paid | C35: ok | D35: =IF(ISNA(VLOOKUP($A35,TBData,COLUMN(TB!$B$4),0)),"-","ok") -> ok | E35: ok | F35: ok
A36: I-08G | B36: Other expenses | C36: ok | D36: =IF(ISNA(VLOOKUP($A36,TBData,COLUMN(TB!$B$4),0)),"-","ok") -> ok | E36: ok | F36: ok
A37: I-08G01G | B37: Foreign exchange (gains) / losses | C37: ok | D37: =IF(ISNA(VLOOKUP($A37,TBData,COLUMN(TB!$B$4),0)),"-","ok") -> ok | E37: ok | F37: ok
A38: I-08G02G | B38: Loss on disposal of property, plant & equipment | C38: ok | D38: =IF(ISNA(VLOOKUP($A38,TBData,COLUMN(TB!$B$4),0)),"-","ok") -> ok | E38: ok | F38: ok
A39: I-09G | B39: Other income | C39: ok | D39: =IF(ISNA(VLOOKUP($A39,TBData,COLUMN(TB!$B$4),0)),"-","ok") -> - | E39: - | F39: ok
A40: I-0900G | B40: Miscellaneous income | C40: ok | D40: =IF(ISNA(VLOOKUP($A40,TBData,COLUMN(TB!$B$4),0)),"-","ok") -> ok | E40: ok | F40: ok
A41: I-0905G | B41: Dividends received | C41: ok | D41: =IF(ISNA(VLOOKUP($A41,TBData,COLUMN(TB!$B$4),0)),"-","ok") -> ok | E41: ok | F41: ok
A42: I-0910G | B42: Gain on disposal of property, plant & equipment | C42: ok | D42: =IF(ISNA(VLOOKUP($A42,TBData,COLUMN(TB!$B$4),0)),"-","ok") -> ok | E42: ok | F42: ok
A43: I-0915G | B43: Interest received | C43: ok | D43: =IF(ISNA(VLOOKUP($A43,TBData,COLUMN(TB!$B$4),0)),"-","ok") -> ok | E43: ok | F43: ok
A44: I-10G | B44: Dividends paid | C44: ok | D44: =IF(ISNA(VLOOKUP($A44,TBData,COLUMN(TB!$B$4),0)),"-","ok") -> ok | E44: ok | F44: ok
A45: Balance Sheet - Assets
A46: B-00G | B46: Property, plant & equipment - cost | C46: ok | D46: =IF(ISNA(VLOOKUP($A46,TBData,COLUMN(TB!$B$4),0)),"-","ok") -> - | E46: =IF(ISNA(VLOOKUP($A46,AFSClass,1,0)),"-","ok") -> - | F46: =IF(AND(D46="ok",E46<>"ok"),"add!","ok") -> ok
A47: B-0001G | B47: Land & buildings | C47: ok | D47: =IF(ISNA(VLOOKUP($A47,TBData,COLUMN(TB!$B$4),0)),"-","ok") -> ok | E47: ok | F47: ok
A48: B-0002G | B48: Plant & equipment | C48: ok | D48: =IF(ISNA(VLOOKUP($A48,TBData,COLUMN(TB!$B$4),0)),"-","ok") -> ok | E48: ok | F48: ok
A49: B-0003G | B49: Furniture & fittings | C49: ok | D49: =IF(ISNA(VLOOKUP($A49,TBData,COLUMN(TB!$B$4),0)),"-","ok") -> ok | E49: ok | F49: ok
A50: B-0004G | B50: Office equipment | C50: ok | D50: =IF(ISNA(VLOOKUP($A50,TBData,COLUMN(TB!$B$4),0)),"-","ok") -> ok | E50: ok | F50: ok
A51: B-0005G | B51: Computer equipment | C51: ok | D51: =IF(ISNA(VLOOKUP($A51,TBData,COLUMN(TB!$B$4),0)),"-","ok") -> ok | E51: ok | F51: ok
A52: B-0006G | B52: Motor vehicles | C52: ok | D52: =IF(ISNA(VLOOKUP($A52,TBData,COLUMN(TB!$B$4),0)),"-","ok") -> ok | E52: ok | F52: ok
A53: B-01G | B53: Property, plant & equipment - accum dep | C53: ok | D53: =IF(ISNA(VLOOKUP($A53,TBData,COLUMN(TB!$B$4),0)),"-","ok") -> - | E53: - | F53: ok
A54: B-0101G | B54: Land & buildings | C54: ok | D54: =IF(ISNA(VLOOKUP($A54,TBData,COLUMN(TB!$B$4),0)),"-","ok") -> ok | E54: ok | F54: ok
A55: B-0102G | B55: Plant & equipment | C55: ok | D55: =IF(ISNA(VLOOKUP($A55,TBData,COLUMN(TB!$B$4),0)),"-","ok") -> ok | E55: ok | F55: ok
A56: B-0103G | B56: Furniture & fittings | C56: ok | D56: =IF(ISNA(VLOOKUP($A56,TBData,COLUMN(TB!$B$4),0)),"-","ok") -> ok | E56: ok | F56: ok
A57: B-0104G | B57: Office equipment | C57: ok | D57: =IF(ISNA(VLOOKUP($A57,TBData,COLUMN(TB!$B$4),0)),"-","ok") -> ok | E57: ok | F57: ok
A58: B-0105G | B58: Computer equipment | C58: ok | D58: =IF(ISNA(VLOOKUP($A58,TBData,COLUMN(TB!$B$4),0)),"-","ok") -> ok | E58: ok | F58: ok
A59: B-0106G | B59: Motor vehicles | C59: ok | D59: =IF(ISNA(VLOOKUP($A59,TBData,COLUMN(TB!$B$4),0)),"-","ok") -> ok | E59: ok | F59: ok
A60: B-02G | B60: Intangible assets - cost | C60: ok | D60: =IF(ISNA(VLOOKUP($A60,TBData,COLUMN(TB!$B$4),0)),"-","ok") -> - | E60: - | F60: ok
A61: B-0201G | B61: Goodwill | C61: ok | D61: =IF(ISNA(VLOOKUP($A61,TBData,COLUMN(TB!$B$4),0)),"-","ok") -> ok | E61: ok | F61: ok
A62: B-0202G | B62: Trademarks | C62: ok | D62: =IF(ISNA(VLOOKUP($A62,TBData,COLUMN(TB!$B$4),0)),"-","ok") -> ok | E62: ok | F62: ok
A63: B-0203G | B63: Software | C63: ok | D63: =IF(ISNA(VLOOKUP($A63,TBData,COLUMN(TB!$B$4),0)),"-","ok") -> ok | E63: ok | F63: ok
A64: B-03G | B64: Intangible assets - amortization | C64: ok | D64: =IF(ISNA(VLOOKUP($A64,TBData,COLUMN(TB!$B$4),0)),"-","ok") -> - | E64: - | F64: ok
A65: B-0301G | B65: Goodwill | C65: ok | D65: =IF(ISNA(VLOOKUP($A65,TBData,COLUMN(TB!$B$4),0)),"-","ok") -> ok | E65: ok | F65: ok
A66: B-0302G | B66: Trademarks | C66: ok | D66: =IF(ISNA(VLOOKUP($A66,TBData,COLUMN(TB!$B$4),0)),"-","ok") -> ok | E66: ok | F66: ok
A67: B-0303G | B67: Software | C67: ok | D67: =IF(ISNA(VLOOKUP($A67,TBData,COLUMN(TB!$B$4),0)),"-","ok") -> ok | E67: ok | F67: ok
A68: B-03G | B68: Investments | C68: ok | D68: =IF(ISNA(VLOOKUP($A68,TBData,COLUMN(TB!$B$4),0)),"-","ok") -> - | E68: - | F68: ok
A69: B-0401G | B69: Shares - XYZ Company | C69: =IF(OR(LEFT($A69,1)="I",LEFT($A69,1)="B")=FALSE,"error!",IF(RIGHT($A69,1)<>"G","error!","ok")) -> ok | D69: =IF(ISNA(VLOOKUP($A69,TBData,COLUMN(TB!$B$4),0)),"-","ok") -> ok | E69: ok | F69: ok
A70: B-0402G | B70: Fixed deposit - Bank One | C70: ok | D70: =IF(ISNA(VLOOKUP($A70,TBData,COLUMN(TB!$B$4),0)),"-","ok") -> ok | E70: ok | F70: ok
A71: B-05G | B71: Loans & advances | C71: ok | D71: =IF(ISNA(VLOOKUP($A71,TBData,COLUMN(TB!$B$4),0)),"-","ok") -> ok | E71: ok | F71: ok
A72: B-06G | B72: Cash at bank | C72: ok | D72: =IF(ISNA(VLOOKUP($A72,TBData,COLUMN(TB!$B$4),0)),"-","ok") -> ok | E72: ok | F72: ok
A73: B-07G | B73: Cash on hand | C73: ok | D73: =IF(ISNA(VLOOKUP($A73,TBData,COLUMN(TB!$B$4),0)),"-","ok") -> ok | E73: ok | F73: ok
A74: B-08G | B74: Trade debtors | C74: ok | D74: =IF(ISNA(VLOOKUP($A74,TBData,COLUMN(TB!$B$4),0)),"-","ok") -> ok | E74: ok | F74: ok
A75: B-09G | B75: Other debtors | C75: ok | D75: =IF(ISNA(VLOOKUP($A75,TBData,COLUMN(TB!$B$4),0)),"-","ok") -> - | E75: - | F75: ok
A76: B-0901G | B76: Prepayments | C76: ok | D76: =IF(ISNA(VLOOKUP($A76,TBData,COLUMN(TB!$B$4),0)),"-","ok") -> ok | E76: ok | F76: ok
A77: B-0902G | B77: Other debtors | C77: ok | D77: =IF(ISNA(VLOOKUP($A77,TBData,COLUMN(TB!$B$4),0)),"-","ok") -> ok | E77: ok | F77: ok
A78: B-10G | B78: Inventory | C78: ok | D78: =IF(ISNA(VLOOKUP($A78,TBData,COLUMN(TB!$B$4),0)),"-","ok") -> - | E78: - | F78: ok
A79: B-1001G | B79: Raw materials | C79: ok | D79: =IF(ISNA(VLOOKUP($A79,TBData,COLUMN(TB!$B$4),0)),"-","ok") -> ok | E79: ok | F79: ok
A80: B-1002G | B80: Work in progress | C80: ok | D80: =IF(ISNA(VLOOKUP($A80,TBData,COLUMN(TB!$B$4),0)),"-","ok") -> ok | E80: ok | F80: ok
A81: B-1003G | B81: Finished goods | C81: ok | D81: =IF(ISNA(VLOOKUP($A81,TBData,COLUMN(TB!$B$4),0)),"-","ok") -> ok | E81: ok | F81: ok
A82: Balance Sheet - Liabilities
A83: B-11G | B83: Bank overdraft | C83: ok | D83: =IF(ISNA(VLOOKUP($A83,TBData,COLUMN(TB!$B$4),0)),"-","ok") -> ok | E83: =IF(ISNA(VLOOKUP($A83,AFSClass,1,0)),"-","ok") -> ok | F83: =IF(AND(D83="ok",E83<>"ok"),"add!","ok") -> ok
A84: B-12G | B84: Trade creditors | C84: ok | D84: =IF(ISNA(VLOOKUP($A84,TBData,COLUMN(TB!$B$4),0)),"-","ok") -> ok | E84: ok | F84: ok
A85: B-13G | B85: Accrued expenses | C85: ok | D85: =IF(ISNA(VLOOKUP($A85,TBData,COLUMN(TB!$B$4),0)),"-","ok") -> ok | E85: ok | F85: ok
A86: B-1310G | B86: Interest payable | C86: ok | D86: =IF(ISNA(VLOOKUP($A86,TBData,COLUMN(TB!$B$4),0)),"-","ok") -> ok | E86: ok | F86: ok
A87: B-14G | B87: Dividends payable | C87: ok | D87: =IF(ISNA(VLOOKUP($A87,TBData,COLUMN(TB!$B$4),0)),"-","ok") -> ok | E87: ok | F87: ok
A88: B-15G | B88: Provision for taxation | C88: ok | D88: =IF(ISNA(VLOOKUP($A88,TBData,COLUMN(TB!$B$4),0)),"-","ok") -> ok | E88: ok | F88: ok
A89: B-16G | B89: Other provisions | C89: ok | D89: =IF(ISNA(VLOOKUP($A89,TBData,COLUMN(TB!$B$4),0)),"-","ok") -> ok | E89: ok | F89: ok
A90: B-17G | B90: Sales tax | C90: ok | D90: =IF(ISNA(VLOOKUP($A90,TBData,COLUMN(TB!$B$4),0)),"-","ok") -> ok | E90: ok | F90: ok
A91: B-18G | B91: Long term loans | C91: ok | D91: =IF(ISNA(VLOOKUP($A91,TBData,COLUMN(TB!$B$4),0)),"-","ok") -> - | E91: - | F91: ok
A92: B-1801G | B92: Long term loan - Bank One | C92: ok | D92: =IF(ISNA(VLOOKUP($A92,TBData,COLUMN(TB!$B$4),0)),"-","ok") -> ok | E92: ok | F92: ok
A93: B-1802G | B93: Long term loan - Bank Two | C93: ok | D93: =IF(ISNA(VLOOKUP($A93,TBData,COLUMN(TB!$B$4),0)),"-","ok") -> ok | E93: ok | F93: ok
A94: B-22G | B94: Deferred tax | C94: ok | D94: =IF(ISNA(VLOOKUP($A94,TBData,COLUMN(TB!$B$4),0)),"-","ok") -> ok | E94: ok | F94: ok
A95: B-23G | B95: Finance leases | C95: ok | D95: =IF(ISNA(VLOOKUP($A95,TBData,COLUMN(TB!$B$4),0)),"-","ok") -> - | E95: - | F95: ok
A96: B-2301G | B96: Non-current liability | C96: ok | D96: =IF(ISNA(VLOOKUP($A96,TBData,COLUMN(TB!$B$4),0)),"-","ok") -> ok | E96: ok | F96: ok
A97: Balance Sheet - Equity
A98: B-19G | B98: Revaluation reserve | C98: ok | D98: =IF(ISNA(VLOOKUP($A98,TBData,COLUMN(TB!$B$4),0)),"-","ok") -> ok | E98: =IF(ISNA(VLOOKUP($A98,AFSClass,1,0)),"-","ok") -> ok | F98: =IF(AND(D98="ok",E98<>"ok"),"add!","ok") -> ok
A99: B-20G | B99: Issued share capital | C99: ok | D99: =IF(ISNA(VLOOKUP($A99,TBData,COLUMN(TB!$B$4),0)),"-","ok") -> ok | E99: =IF(ISNA(VLOOKUP($A99,AFSClass,1,0)),"-","ok") -> ok | F99: ok
A100: B-21G | B100: Retained earnings | C100: ok | D100: =IF(ISNA(VLOOKUP($A100,TBData,COLUMN(TB!$B$4),0)),"-","ok") -> ok | E100: =IF(ISNA(VLOOKUP($A100,AFSClass,1,0)),"-","ok") -> ok | F100: ok
A101: End of list

Sheet TB (hidden)
A1: =IF(ISBLANK(Setup!$B$4),"Example (Pty) Limited",Setup!$B$4) -> Example Limited
A2: Trial Balance
A3: © www.excel-skills.co.uk | E3: =SUBTOTAL(9,OFFSET(E$4,1,0,TBRowCount,1)) -> 0 | F3: =SUBTOTAL(9,OFFSET(F$4,1,0,TBRowCount,1)) -> 0 | G3: =SUBTOTAL(9,OFFSET(G$4,1,0,TBRowCount,1)) -> 0 | H3: =SUBTOTAL(9,OFFSET(H$4,1,0,TBRowCount,1)) -> 0 | I3: =SUBTOTAL(9,OFFSET(I$4,1,0,TBRowCount,1)) -> 0 | J3: =SUBTOTAL(9,OFFSET(J$4,1,0,TBRowCount,1)) -> 0 | K3: =SUBTOTAL(9,OFFSET(K$4,1,0,TBRowCount,1)) -> 0 | L3: =SUBTOTAL(9,OFFSET(L$4,1,0,TBRowCount,1)) -> 0
A4: Status | B4: Class | C4: Acc No | D4: Account Description | E4: 2020 | F4: 2021 | G4: 2022 | H4: 2023 | I4: 2024 | J4: 2025 | K4: 2026 | L4: 2027
A5: =IF(ISNA(VLOOKUP($B5,ClassCode,1,0)),"class!",IF(ISNA(VLOOKUP($B5,AFSClass,1,0)),"add!","ok")) -> ok | B5: B-0001G | C5: BS-0005 | D5: Land & Buildings - Cost | E5: 2500000 | F5: 2500000 | G5: 2400000 | H5: 0 | I5: 0 | J5: 0 | K5: 0 | L5: 0
A6: ok | B6: B-0002G | C6: BS-0010 | D6: Plant & Equipment - Cost | E6: 1246045 | F6: 1316045 | G6: 1546045 | H6: 0 | I6: 0 | J6: 0 | K6: 0 | L6: 0
A7: ok | B7: B-0003G | C7: BS-0015 | D7: Furniture & Fittings - Cost | E7: 300000 | F7: 350000 | G7: 410000 | H7: 0 | I7: 0 | J7: 0 | K7: 0 | L7: 0
A8: ok | B8: B-0004G | C8: BS-0020 | D8: Office Equipment - Cost | E8: 225000 | F8: 240000 | G8: 240000 | H8: 0 | I8: 0 | J8: 0 | K8: 0 | L8: 0
A9: ok | B9: B-0005G | C9: BS-0025 | D9: Computer Equipment - Cost | E9: 120750 | F9: 150500 | G9: 165500 | H9: 0 | I9: 0 | J9: 0 | K9: 0 | L9: 0
A10: ok | B10: B-0006G | C10: BS-0030 | D10: Motor Vehicles - Cost | E10: 318000 | F10: 318000 | G10: 452000 | H10: 0 | I10: 0 | J10: 0 | K10: 0 | L10: 0
A11: ok | B11: B-0101G | C11: BS-0105 | D11: Land & Buildings - Accum Depreciation | E11: 0 | F11: 0 | G11: 0 | H11: 0 | I11: 0 | J11: 0 | K11: 0 | L11: 0
A12: ok | B12: B-0102G | C12: BS-0110 | D12: Plant & Equipment - Accum Depreciation | E12: -498418 | F12: -712418 | G12: -1051018 | H12: 0 | I12: 0 | J12: 0 | K12: 0 | L12: 0
A13: ok | B13: B-0103G | C13: BS-0115 | D13: Furniture & Fittings - Accum Depreciation | E13: -100000 | F13: -158300 | G13: -224700 | H13: 0 | I13: 0 | J13: 0 | K13: 0 | L13: 0
A14: ok | B14: B-0104G | C14: BS-0120 | D14: Office Equipment - Accum Depreciation | E14: -91500 | F14: -139850 | G14: -186980 | H14: 0 | I14: 0 | J14: 0 | K14: 0 | L14: 0
A15: ok | B15: B-0105G | C15: BS-0125 | D15: Computer Equipment - Accum Depreciation | E15: -80500 | F15: -130650 | G15: -145550 | H15: 0 | I15: 0 | J15: 0 | K15: 0 | L15: 0
A16: ok | B16: B-0106G | C16: BS-0130 | D16: Motor Vehicles - Accum Depreciation | E16: -159000 | F16: -238500 | G16: -56500 | H16: 0 | I16: 0 | J16: 0 | K16: 0 | L16: 0
A17: ok | B17: B-0201G | C17: BS-0205 | D17: Goodwill - Cost | E17: 500000 | F17: 500000 | G17: 500000 | H17: 0 | I17: 0 | J17: 0 | K17: 0 | L17: 0
A18: ok | B18: B-0202G | C18: BS-0210 | D18: Trademarks - Cost | E18: 390500 | F18: 390500 | G18: 390500 | H18: 0 | I18: 0 | J18: 0 | K18: 0 | L18: 0
A19: ok | B19: B-0203G | C19: BS-0215 | D19: Software - Cost | E19: 150000 | F19: 150000 | G19: 150000 | H19: 0 | I19: 0 | J19: 0 | K19: 0 | L19: 0
A20: ok | B20: B-0301G | C20: BS-0305 | D20: Goodwill - Accum Amortization | E20: -100000 | F20: -150000 | G20: -200000 | H20: 0 | I20: 0 | J20: 0 | K20: 0 | L20: 0
A21: ok | B21: B-0302G | C21: BS-0310 | D21: Trademarks - Accum Amortization | E21: -78100 | F21: -117150 | G21: -156200 | H21: 0 | I21: 0 | J21: 0 | K21: 0 | L21: 0
A22: ok | B22: B-0303G | C22: BS-0315 | D22: Software - Accum Amortization | E22: -30000 | F22: -45000 | G22: -60000 | H22: 0 | I22: 0 | J22: 0 | K22: 0 | L22: 0
A23: ok | B23: B-0401G | C23: BS-0400 | D23: Share Investment - XYZ | E23: 0 | F23: 802500 | G23: 802500 | H23: 0 | I23: 0 | J23: 0 | K23: 0 | L23: 0
A24: ok | B24: B-0402G | C24: BS-0405 | D24: Fixed Deposit - Bank One | E24: 300000 | F24: 880000 | G24: 1500000 | H24: 0 | I24: 0 | J24: 0 | K24: 0 | L24: 0
A25: ok | B25: B-05G | C25: BS-0500 | D25: Loans & Advances | E25: 30220 | F25: 48200 | G25: 60000 | H25: 0 | I25: 0 | J25: 0 | K25: 0 | L25: 0
A26: ok | B26: B-07G | C26: BS-0700 | D26: Cash On Hand | E26: 0 | F26: 0 | G26: 0 | H26: 0 | I26: 0 | J26: 0 | K26: 0 | L26: 0
A27: ok | B27: B-07G | C27: BS-0799 | D27: Cash Transfer Control | E27: 0 | F27: 0 | G27: 0 | H27: 0 | I27: 0 | J27: 0 | K27: 0 | L27: 0
A28: ok | B28: B-0902G | C28: BS-0900 | D28: Other Debtors | E28: 0 | F28: 0 | G28: 0 | H28: 0 | I28: 0 | J28: 0 | K28: 0 | L28: 0
A29: ok | B29: B-0901G | C29: BS-0905 | D29: Prepayments | E29: 22600 | F29: 44500 | G29: 24000 | H29: 0 | I29: 0 | J29: 0 | K29: 0 | L29: 0
A30: ok | B30: B-1001G | C30: BS-1001 | D30: Raw Materials | E30: 53699 | F30: 64120 | G30: 85200 | H30: 0 | I30: 0 | J30: 0 | K30: 0 | L30: 0
A31: ok | B31: B-1002G | C31: BS-1002 | D31: Work in progress | E31: 25100 | F31: 15380 | G31: 22653 | H31: 0 | I31: 0 | J31: 0 | K31: 0 | L31: 0
A32: ok | B32: B-1003G | C32: BS-1003 | D32: Finished goods | E32: 0 | F32: 0 | G32: 0 | H32: 0 | I32: 0 | J32: 0 | K32: 0 | L32: 0
A33: ok | B33: B-11G | C33: BS-1100 | D33: Bank Overdraft | E33: 0 | F33: 0 | G33: 0 | H33: 0 | I33: 0 | J33: 0 | K33: 0 | L33: 0
A34: ok | B34: B-13G | C34: BS-1300 | D34: Accruals | E34: -58600 | F34: -72020 | G34: -90365 | H34: 0 | I34: 0 | J34: 0 | K34: 0 | L34: 0
A35: ok | B35: B-13G | C35: BS-1305 | D35: Payroll Accruals | E35: -13108 | F35: -14500 | G35: -20572 | H35: 0 | I35: 0 | J35: 0 | K35: 0 | L35: 0
A36: ok | B36: B-1310G | C36: BS-1310 | D36: Interest Payable | E36: -15061 | F36: -17696 | G36: -16185 | H36: 0 | I36: 0 | J36: 0 | K36: 0 | L36: 0
A37: =IF(ISNA(VLOOKUP($B37,ClassCode,1,0)),"class!",IF(ISNA(VLOOKUP($B37,AFSClass,1,0)),"add!","ok")) -> ok | B37: B-14G | C37: BS-1405 | D37: Dividends Payable | E37: -75000 | F37: -100000 | G37: -150000 | H37: 0 | I37: 0 | J37: 0 | K37: 0 | L37: 0
A38: ok | B38: B-15G | C38: BS-1505 | D38: Provision For Taxation | E38: -118400 | F38: -131926 | G38: -215724 | H38: 0 | I38: 0 | J38: 0 | K38: 0 | L38: 0
A39: ok | B39: B-16G | C39: BS-1610 | D39: Other provisions | E39: -211637 | F39: -214870 | G39: -214823 | H39: 0 | I39: 0 | J39: 0 | K39: 0 | L39: 0
A40: ok | B40: B-17G | C40: BS-1700 | D40: Sales Tax Control | E40: -55891 | F40: -59835 | G40: -75891 | H40: 0 | I40: 0 | J40: 0 | K40: 0 | L40: 0
A41: ok | B41: B-1801G | C41: BS-1805 | D41: Loan - Bank One | E41: -1646180 | F41: -1151104 | G41: -604187 | H41: 0 | I41: 0 | J41: 0 | K41: 0 | L41: 0
A42: ok | B42: B-1802G | C42: BS-1810 | D42: Loan - Bank Two | E42: 0 | F42: -816581 | G42: -661805
A43: ok | B43: B-2301G | C43: BS-1815 | D43: Finance Leases | E43: -209394 | F43: -146420 | G43: -416240 | H43: 0 | I43: 0 | J43: 0 | K43: 0 | L43: 0
A44: ok | B44: B-19G | C44: BS-1900 | D44: Reserves | E44: 0 | F44: 0 | G44: 0 | H44: 0 | I44: 0 | J44: 0 | K44: 0 | L44: 0
A45: ok | B45: B-20G | C45: BS-2000 | D45: Shareholders' Contributions | E45: -1000 | F45: -1000 | G45: -1000 | H45: 0 | I45: 0 | J45: 0 | K45: 0 | L45: 0
A46: ok | B46: B-22G | C46: BS-2200 | D46: Deferred Tax | E46: 47278 | F46: -17377 | G46: 33790 | H46: 0 | I46: 0 | J46: 0 | K46: 0 | L46: 0
A47: ok | B47: I-0101G | C47: IS-0105 | D47: Sales - Fruit Juice | E47: -3310790 | F47: -3972950 | G47: -4370245 | H47: 0 | I47: 0 | J47: 0 | K47: 0 | L47: 0
A48: ok | B48: I-0102G | C48: IS-0110 | D48: Sales - Vegetable Juice | E48: -1890906 | F48: -2269087 | G48: -2541378 | H48: 0 | I48: 0 | J48: 0 | K48: 0 | L48: 0
A49: ok | B49: I-02G | C49: IS-0205 | D49: Cost of Sales - Fruit Juice | E49: 1622287 | F49: 1827557 | G49: 1966610 | H49: 0 | I49: 0 | J49: 0 | K49: 0 | L49: 0
A50: ok | B50: I-02G | C50: IS-0210 | D50: Cost of Sales - Vegetable Juice | E50: 850908 | F50: 975707 | G50: 914965 | H50: 0 | I50: 0 | J50: 0 | K50: 0 | L50: 0
A51: ok | B51: I-02G | C51: IS-0299 | D51: Cost of Sales - Direct Costs | E51: 0 | F51: 0 | G51: 0 | H51: 0 | I51: 0 | J51: 0 | K51: 0 | L51: 0
A52: ok | B52: I-0301G | C52: IS-0305 | D52: Accounting Fees | E52: 15500 | F52: 18000 | G52: 24000 | H52: 0 | I52: 0 | J52: 0 | K52: 0 | L52: 0
A53: ok | B53: I-0302G | C53: IS-0310 | D53: Advertising & Marketing | E53: 110520 | F53: 170000 | G53: 143644 | H53: 0 | I53: 0 | J53: 0 | K53: 0 | L53: 0
A54: ok | B54: I-0303G | C54: IS-0315 | D54: Bank Charges | E54: 780 | F54: 935 | G54: 1180 | H54: 0 | I54: 0 | J54: 0 | K54: 0 | L54: 0
A55: ok | B55: I-0304G | C55: IS-0320 | D55: Commission | E55: 18450 | F55: 22120 | G55: 27850 | H55: 0 | I55: 0 | J55: 0 | K55: 0 | L55: 0
A56: ok | B56: I-0305G | C56: IS-0325 | D56: Computer Expenses | E56: 5625 | F56: 7210 | G56: 3477 | H56: 0 | I56: 0 | J56: 0 | K56: 0 | L56: 0
A57: ok | B57: I-0306G | C57: IS-0330 | D57: Consumables & Cleaning | E57: 2500 | F57: 2000 | G57: 2500 | H57: 0 | I57: 0 | J57: 0 | K57: 0 | L57: 0
A58: ok | B58: I-0307G | C58: IS-0335 | D58: Entertainment | E58: 11020 | F58: 10875 | G58: 12420 | H58: 0 | I58: 0 | J58: 0 | K58: 0 | L58: 0
A59: ok | B59: I-0308G | C59: IS-0340 | D59: Insurance | E59: 3100 | F59: 3420 | G59: 3840 | H59: 0 | I59: 0 | J59: 0 | K59: 0 | L59: 0
A60: ok | B60: I-0309G | C60: IS-0345 | D60: Office Expenses | E60: 350 | F60: 660 | G60: 996 | H60: 0 | I60: 0 | J60: 0 | K60: 0 | L60: 0
A61: ok | B61: I-0310G | C61: IS-0350 | D61: Office Rent | E61: 114000 | F61: 120000 | G61: 144000 | H61: 0 | I61: 0 | J61: 0 | K61: 0 | L61: 0
A62: ok | B62: I-0311G | C62: IS-0355 | D62: Postage | E62: 685 | F62: 452 | G62: 524 | H62: 0 | I62: 0 | J62: 0 | K62: 0 | L62: 0
A63: ok | B63: I-0312G | C63: IS-0360 | D63: Professional & Legal Fees | E63: 0 | F63: 36250 | G63: 5652 | H63: 0 | I63: 0 | J63: 0 | K63: 0 | L63: 0
A64: ok | B64: I-0313G | C64: IS-0365 | D64: Stationery | E64: 1150 | F64: 1257 | G64: 2491 | H64: 0 | I64: 0 | J64: 0 | K64: 0 | L64: 0
A65: ok | B65: I-0314G | C65: IS-0370 | D65: Subscriptions & Memberships | E65: 4400 | F65: 4800 | G65: 5200 | H65: 0 | I65: 0 | J65: 0 | K65: 0 | L65: 0
A66: ok | B66: I-0315G | C66: IS-0375 | D66: Telephone & Internet | E66: 7220 | F66: 7504 | G66: 8867 | H66: 0 | I66: 0 | J66: 0 | K66: 0 | L66: 0
A67: ok | B67: I-0316G | C67: IS-0380 | D67: Training | E67: 875 | F67: 1521 | G67: 4043 | H67: 0 | I67: 0 | J67: 0 | K67: 0 | L67: 0
A68: ok | B68: I-0317G | C68: IS-0385 | D68: Travelling & Accommodation | E68: 10420 | F68: 4589 | G68: 13705 | H68: 0 | I68: 0 | J68: 0 | K68: 0 | L68: 0
A69: =IF(ISNA(VLOOKUP($B69,ClassCode,1,0)),"class!",IF(ISNA(VLOOKUP($B69,AFSClass,1,0)),"add!","ok")) -> ok | B69: I-0318G | C69: IS-0390 | D69: Utilities | E69: 5872 | F69: 6090 | G69: 6540 | H69: 0 | I69: 0 | J69: 0 | K69: 0 | L69: 0
A70: ok | B70: I-0401G | C70: IS-0405 | D70: Salaries & Wages - Staff | E70: 385260 | F70: 435500 | G70: 548600 | H70: 0 | I70: 0 | J70: 0 | K70: 0 | L70: 0
A71: ok | B71: I-0401G | C71: IS-0410 | D71: Salaries & Wages - Management | E71: 401250 | F71: 434640 | G71: 685720 | H71: 0 | I71: 0 | J71: 0 | K71: 0 | L71: 0
A72: ok | B72: I-0501G | C72: IS-0505 | D72: Depreciation | E72: 500300 | F72: 550300 | G72: 513280 | H72: 0 | I72: 0 | J72: 0 | K72: 0 | L72: 0
A73: ok | B73: I-0502G | C73: IS-0510 | D73: Amortisation | E73: 104050 | F73: 104050 | G73: 104050 | H73: 0 | I73: 0 | J73: 0 | K73: 0 | L73: 0
A74: ok | B74: I-06G | C74: IS-0605 | D74: Interest Paid | E74: 180742 | F74: 212354 | G74: 194222 | H74: 0 | I74: 0 | J74: 0 | K74: 0 | L74: 0
A75: ok | B75: I-07G | C75: IS-0700 | D75: Taxation | E75: 236801 | F75: 263853 | G75: 442236 | H75: 0 | I75: 0 | J75: 0 | K75: 0 | L75: 0
A76: ok | B76: I-08G | C76: IS-0800 | D76: Other Expenses | E76: 12589 | F76: 20998 | G76: 125362 | H76: 0 | I76: 0 | J76: 0 | K76: 0 | L76: 0
A77: ok | B77: I-08G01G | C77: IS-0805 | D77: Foreign Exchange Loss | E77: 10250 | F77: 15240 | G77: 6260 | H77: 0 | I77: 0 | J77: 0 | K77: 0 | L77: 0
A78: ok | B78: I-08G02G | C78: IS-0810 | D78: Loss on Disposal of Assets | E78: 0 | F78: 18000 | G78: 0 | H78: 0 | I78: 0 | J78: 0 | K78: 0 | L78: 0
A79: ok | B79: I-0900G | C79: IS-0900 | D79: Other Income | E79: -23564 | F79: -30900 | G79: -41850 | H79: 0 | I79: 0 | J79: 0 | K79: 0 | L79: 0
A80: ok | B80: I-0905G | C80: IS-0905 | D80: Dividends Received | E80: 0 | F80: -3050 | G80: -4065 | H80: 0 | I80: 0 | J80: 0 | K80: 0 | L80: 0
A81: ok | B81: I-0910G | C81: IS-0910 | D81: Profit on Disposal of Assets | E81: 0 | F81: 0 | G81: -48250 | H81: 0 | I81: 0 | J81: 0 | K81: 0 | L81: 0
A82: ok | B82: I-0915G | C82: IS-0915 | D82: Interest Received | E82: -562 | F82: -4562 | G82: -5100 | H82: 0 | I82: 0 | J82: 0 | K82: 0 | L82: 0
A83: ok | B83: I-10G | C83: IS-1000 | D83: Dividends | E83: 75000 | F83: 100000 | G83: 150000 | H83: 0 | I83: 0 | J83: 0 | K83: 0 | L83: 0
A84: ok | B84: B-06G | C84: BS-BB1 | D84: B1 Bank Account | E84: 187624 | F84: 360300 | G84: 276526 | H84: 0 | I84: 0 | J84: 0 | K84: 0 | L84: 0
A85: ok | B85: B-06G | C85: BS-BB2 | D85: B2 Bank Account | E85: 0 | F85: 33680 | G85: 40691 | H85: 0 | I85: 0 | J85: 0 | K85: 0 | L85: 0
A86: ok | B86: B-06G | C86: BS-BB3 | D86: B3 Bank Account | E86: 0 | F86: 0 | G86: 9457 | H86: 0 | I86: 0 | J86: 0 | K86: 0 | L86: 0
A87: ok | B87: B-07G | C87: BS-BPC | D87: PC Petty Cash | E87: 1000 | F87: 990 | G87: 1000 | H87: 0 | I87: 0 | J87: 0 | K87: 0 | L87: 0
A88: ok | B88: B-06G | C88: BS-BJC | D88: GL Journal Control | E88: 0 | F88: 0 | G88: 0 | H88: 0 | I88: 0 | J88: 0 | K88: 0 | L88: 0
A89: ok | B89: B-1003G | C89: BS-STG | D89: Inventory | E89: 169397 | F89: 234245 | G89: 245060 | H89: 0 | I89: 0 | J89: 0 | K89: 0 | L89: 0
A90: ok | B90: B-08G | C90: BS-RCG | D90: Trade Debtors | E90: 456039 | F90: 495942 | G90: 568079 | H90: 0 | I90: 0 | J90: 0 | K90: 0 | L90: 0
A91: ok | B91: B-12G | C91: BS-PAG | D91: Trade Creditors | E91: -166325 | F91: -219900 | G91: -186802 | H91: 0 | I91: 0 | J91: 0 | K91: 0 | L91: 0
A92: ok | B92: B-21G | C92: BS-RTG | D92: Retained Earnings | E92: -2801220 | F92: -3335138 | G92: -4239805 | H92: 0 | I92: 0 | J92: 0 | K92: 0 | L92: 0

Sheet FinInfo (hidden)
A1: =IF(ISBLANK(Setup!$B$4),"Example (Pty) Limited",Setup!$B$4) -> Example Limited
A2: Financial Statement Information (orange classes require negative values)
A3: © www.excel-skills.co.uk
A4: Status | B4: Class | C4: Description | D4: 2020 | E4: 2021 | F4: 2022 | G4: 2023 | H4: 2024 | I4: 2025 | J4: 2026 | K4: 2027
B5: Items with descriptions that are based on specific TB reporting classes (as per Classes sheet or this sheet)
A6: =IF(ISNA(VLOOKUP("B"&MID($B6,2,LEN($B6)-2)&"G",ClassAll,COLUMN(Classes!$B$4),0)),"error!","ok") -> ok | B6: F-0001R | C6: ="Depreciation Rate - "&IF(ISNA(VLOOKUP("B"&MID($B6,2,LEN($B6)-2)&"G",ClassAll,COLUMN(Classes!$B$4),0)),"PPE Class",VLOOKUP("B"&MID($B6,2,LEN($B6)-2)&"G",ClassAll,COLUMN(Classes!$B$4),0)) -> Depreciation Rate - Land & buildings | D6: 0 | E6: 0 | F6: 0 | G6: 0 | H6: 0 | I6: 0 | J6: 0 | K6: 0
A7: =IF(ISNA(VLOOKUP("B"&MID($B7,2,LEN($B7)-2)&"G",ClassAll,COLUMN(Classes!$B$4),0)),"error!","ok") -> ok | B7: F-0002R | C7: ="Depreciation Rate - "&IF(ISNA(VLOOKUP("B"&MID($B7,2,LEN($B7)-2)&"G",ClassAll,COLUMN(Classes!$B$4),0)),"PPE Class",VLOOKUP("B"&MID($B7,2,LEN($B7)-2)&"G",ClassAll,COLUMN(Classes!$B$4),0)) -> Depreciation Rate - Plant & equipment | D7: 0.2 | E7: 0.2 | F7: 0.2 | G7: 0.2 | H7: 0.2 | I7: 0.2 | J7: 0.2 | K7: 0.2
A8: =IF(ISNA(VLOOKUP("B"&MID($B8,2,LEN($B8)-2)&"G",ClassAll,COLUMN(Classes!$B$4),0)),"error!","ok") -> ok | B8: F-0003R | C8: ="Depreciation Rate - "&IF(ISNA(VLOOKUP("B"&MID($B8,2,LEN($B8)-2)&"G",ClassAll,COLUMN(Classes!$B$4),0)),"PPE Class",VLOOKUP("B"&MID($B8,2,LEN($B8)-2)&"G",ClassAll,COLUMN(Classes!$B$4),0)) -> Depreciation Rate - Furniture & fittings | D8: 0.167 | E8: 0.167 | F8: 0.167 | G8: 0.167 | H8: 0.167 | I8: 0.167 | J8: 0.167 | K8: 0.167
A9: =IF(ISNA(VLOOKUP("B"&MID($B9,2,LEN($B9)-2)&"G",ClassAll,COLUMN(Classes!$B$4),0)),"error!","ok") -> ok | B9: F-0004R | C9: ="Depreciation Rate - "&IF(ISNA(VLOOKUP("B"&MID($B9,2,LEN($B9)-2)&"G",ClassAll,COLUMN(Classes!$B$4),0)),"PPE Class",VLOOKUP("B"&MID($B9,2,LEN($B9)-2)&"G",ClassAll,COLUMN(Classes!$B$4),0)) -> Depreciation Rate - Office equipment | D9: 0.2 | E9: 0.2 | F9: 0.2 | G9: 0.2 | H9: 0.2 | I9: 0.2 | J9: 0.2 | K9: 0.2
A10: =IF(ISNA(VLOOKUP("B"&MID($B10,2,LEN($B10)-2)&"G",ClassAll,COLUMN(Classes!$B$4),0)),"error!","ok") -> ok | B10: F-0005R | C10: ="Depreciation Rate - "&IF(ISNA(VLOOKUP("B"&MID($B10,2,LEN($B10)-2)&"G",ClassAll,COLUMN(Classes!$B$4),0)),"PPE Class",VLOOKUP("B"&MID($B10,2,LEN($B10)-2)&"G",ClassAll,COLUMN(Classes!$B$4),0)) -> Depreciation Rate - Computer equipment | D10: 0.333 | E10: 0.333 | F10: 0.333 | G10: 0.333 | H10: 0.333 | I10: 0.333 | J10: 0.333 | K10: 0.333
A11: =IF(ISNA(VLOOKUP("B"&MID($B11,2,LEN($B11)-2)&"G",ClassAll,COLUMN(Classes!$B$4),0)),"error!","ok") -> ok | B11: F-0006R | C11: ="Depreciation Rate - "&IF(ISNA(VLOOKUP("B"&MID($B11,2,LEN($B11)-2)&"G",ClassAll,COLUMN(Classes!$B$4),0)),"PPE Class",VLOOKUP("B"&MID($B11,2,LEN($B11)-2)&"G",ClassAll,COLUMN(Classes!$B$4),0)) -> Depreciation Rate - Motor vehicles | D11: 0.25 | E11: 0.25 | F11: 0.25 | G11: 0.25 | H11: 0.25 | I11: 0.25 | J11: 0.25 | K11: 0.25
A12: =IF(ISNA(VLOOKUP("B"&MID($B12,2,LEN($B12)-2)&"G",ClassAll,COLUMN(Classes!$B$4),0)),"error!","ok") -> ok | B12: F-0001D | C12: ="Disposals - Cost - "&IF(ISNA(VLOOKUP("B"&MID($B12,2,LEN($B12)-2)&"G",ClassAll,COLUMN(Classes!$B$4),0)),"PPE Class",VLOOKUP("B"&MID($B12,2,LEN($B12)-2)&"G",ClassAll,COLUMN(Classes!$B$4),0)) -> Disposals - Cost - Land & buildings | D12: 0 | E12: 0 | F12: 0 | G12: 0 | H12: 0 | I12: 0 | J12: 0 | K12: 0
A13: =IF(ISNA(VLOOKUP("B"&MID($B13,2,LEN($B13)-2)&"G",ClassAll,COLUMN(Classes!$B$4),0)),"error!","ok") -> ok | B13: F-0002D | C13: ="Disposals - Cost - "&IF(ISNA(VLOOKUP("B"&MID($B13,2,LEN($B13)-2)&"G",ClassAll,COLUMN(Classes!$B$4),0)),"PPE Class",VLOOKUP("B"&MID($B13,2,LEN($B13)-2)&"G",ClassAll,COLUMN(Classes!$B$4),0)) -> Disposals - Cost - Plant & equipment | D13: 0 | E13: -110000 | F13: 0 | G13: 0 | H13: 0 | I13: 0 | J13: 0 | K13: 0
A14: =IF(ISNA(VLOOKUP("B"&MID($B14,2,LEN($B14)-2)&"G",ClassAll,COLUMN(Classes!$B$4),0)),"error!","ok") -> ok | B14: F-0003D | C14: ="Disposals - Cost - "&IF(ISNA(VLOOKUP("B"&MID($B14,2,LEN($B14)-2)&"G",ClassAll,COLUMN(Classes!$B$4),0)),"PPE Class",VLOOKUP("B"&MID($B14,2,LEN($B14)-2)&"G",ClassAll,COLUMN(Classes!$B$4),0)) -> Disposals - Cost - Furniture & fittings | D14: 0 | E14: 0 | F14: 0 | G14: 0 | H14: 0 | I14: 0 | J14: 0 | K14: 0
A15: =IF(ISNA(VLOOKUP("B"&MID($B15,2,LEN($B15)-2)&"G",ClassAll,COLUMN(Classes!$B$4),0)),"error!","ok") -> ok | B15: F-0004D | C15: ="Disposals - Cost - "&IF(ISNA(VLOOKUP("B"&MID($B15,2,LEN($B15)-2)&"G",ClassAll,COLUMN(Classes!$B$4),0)),"PPE Class",VLOOKUP("B"&MID($B15,2,LEN($B15)-2)&"G",ClassAll,COLUMN(Classes!$B$4),0)) -> Disposals - Cost - Office equipment | D15: 0 | E15: 0 | F15: 0 | G15: 0 | H15: 0 | I15: 0 | J15: 0 | K15: 0
A16: =IF(ISNA(VLOOKUP("B"&MID($B16,2,LEN($B16)-2)&"G",ClassAll,COLUMN(Classes!$B$4),0)),"error!","ok") -> ok | B16: F-0005D | C16: ="Disposals - Cost - "&IF(ISNA(VLOOKUP("B"&MID($B16,2,LEN($B16)-2)&"G",ClassAll,COLUMN(Classes!$B$4),0)),"PPE Class",VLOOKUP("B"&MID($B16,2,LEN($B16)-2)&"G",ClassAll,COLUMN(Classes!$B$4),0)) -> Disposals - Cost - Computer equipment | D16: 0 | E16: 0 | F16: 0 | G16: 0 | H16: 0 | I16: 0 | J16: 0 | K16: 0
A17: =IF(ISNA(VLOOKUP("B"&MID($B17,2,LEN($B17)-2)&"G",ClassAll,COLUMN(Classes!$B$4),0)),"error!","ok") -> ok | B17: F-0006D | C17: ="Disposals - Cost - "&IF(ISNA(VLOOKUP("B"&MID($B17,2,LEN($B17)-2)&"G",ClassAll,COLUMN(Classes!$B$4),0)),"PPE Class",VLOOKUP("B"&MID($B17,2,LEN($B17)-2)&"G",ClassAll,COLUMN(Classes!$B$4),0)) -> Disposals - Cost - Motor vehicles | D17: 0 | E17: 0 | F17: -318000 | G17: 0 | H17: 0 | I17: 0 | J17: 0 | K17: 0
A18: =IF(ISNA(VLOOKUP("B"&MID($B18,2,LEN($B18)-2)&"G",ClassAll,COLUMN(Classes!$B$4),0)),"error!","ok") -> ok | B18: F-0001I | C18: ="Impairment - Cost - "&IF(ISNA(VLOOKUP("B"&MID($B18,2,LEN($B18)-2)&"G",ClassAll,COLUMN(Classes!$B$4),0)),"PPE Class",VLOOKUP("B"&MID($B18,2,LEN($B18)-2)&"G",ClassAll,COLUMN(Classes!$B$4),0)) -> Impairment - Cost - Land & buildings | D18: 0 | E18: 0 | F18: -100000 | G18: 0 | H18: 0 | I18: 0 | J18: 0 | K18: 0
A19: =IF(ISNA(VLOOKUP("B"&MID($B19,2,LEN($B19)-2)&"G",ClassAll,COLUMN(Classes!$B$4),0)),"error!","ok") -> ok | B19: F-0002I | C19: ="Impairment - Cost - "&IF(ISNA(VLOOKUP("B"&MID($B19,2,LEN($B19)-2)&"G",ClassAll,COLUMN(Classes!$B$4),0)),"PPE Class",VLOOKUP("B"&MID($B19,2,LEN($B19)-2)&"G",ClassAll,COLUMN(Classes!$B$4),0)) -> Impairment - Cost - Plant & equipment | D19: 0 | E19: 0 | F19: 0 | G19: 0 | H19: 0 | I19: 0 | J19: 0 | K19: 0
A20: =IF(ISNA(VLOOKUP("B"&MID($B20,2,LEN($B20)-2)&"G",ClassAll,COLUMN(Classes!$B$4),0)),"error!","ok") -> ok | B20: F-0003I | C20: ="Impairment - Cost - "&IF(ISNA(VLOOKUP("B"&MID($B20,2,LEN($B20)-2)&"G",ClassAll,COLUMN(Classes!$B$4),0)),"PPE Class",VLOOKUP("B"&MID($B20,2,LEN($B20)-2)&"G",ClassAll,COLUMN(Classes!$B$4),0)) -> Impairment - Cost - Furniture & fittings | D20: 0 | E20: 0 | F20: 0 | G20: 0 | H20: 0 | I20: 0 | J20: 0 | K20: 0
A21: =IF(ISNA(VLOOKUP("B"&MID($B21,2,LEN($B21)-2)&"G",ClassAll,COLUMN(Classes!$B$4),0)),"error!","ok") -> ok | B21: F-0004I | C21: ="Impairment - Cost - "&IF(ISNA(VLOOKUP("B"&MID($B21,2,LEN($B21)-2)&"G",ClassAll,COLUMN(Classes!$B$4),0)),"PPE Class",VLOOKUP("B"&MID($B21,2,LEN($B21)-2)&"G",ClassAll,COLUMN(Classes!$B$4),0)) -> Impairment - Cost - Office equipment | D21: 0 | E21: 0 | F21: 0 | G21: 0 | H21: 0 | I21: 0 | J21: 0 | K21: 0
A22: =IF(ISNA(VLOOKUP("B"&MID($B22,2,LEN($B22)-2)&"G",ClassAll,COLUMN(Classes!$B$4),0)),"error!","ok") -> ok | B22: F-0005I | C22: ="Impairment - Cost - "&IF(ISNA(VLOOKUP("B"&MID($B22,2,LEN($B22)-2)&"G",ClassAll,COLUMN(Classes!$B$4),0)),"PPE Class",VLOOKUP("B"&MID($B22,2,LEN($B22)-2)&"G",ClassAll,COLUMN(Classes!$B$4),0)) -> Impairment - Cost - Computer equipment | D22: 0 | E22: 0 | F22: 0 | G22: 0 | H22: 0 | I22: 0 | J22: 0 | K22: 0
A23: =IF(ISNA(VLOOKUP("B"&MID($B23,2,LEN($B23)-2)&"G",ClassAll,COLUMN(Classes!$B$4),0)),"error!","ok") -> ok | B23: F-0006I | C23: ="Impairment - Cost - "&IF(ISNA(VLOOKUP("B"&MID($B23,2,LEN($B23)-2)&"G",ClassAll,COLUMN(Classes!$B$4),0)),"PPE Class",VLOOKUP("B"&MID($B23,2,LEN($B23)-2)&"G",ClassAll,COLUMN(Classes!$B$4),0)) -> Impairment - Cost - Motor vehicles | D23: 0 | E23: 0 | F23: 0 | G23: 0 | H23: 0 | I23: 0 | J23: 0 | K23: 0
A24: =IF(ISNA(VLOOKUP("B"&MID($B24,2,LEN($B24)-2)&"G",ClassAll,COLUMN(Classes!$B$4),0)),"error!","ok") -> ok | B24: F-0101D | C24: ="Disposals - Accum Depr - "&IF(ISNA(VLOOKUP("B"&MID($B24,2,LEN($B24)-2)&"G",ClassAll,COLUMN(Classes!$B$4),0)),"PPE Class",VLOOKUP("B"&MID($B24,2,LEN($B24)-2)&"G",ClassAll,COLUMN(Classes!$B$4),0)) -> Disposals - Accum Depr - Land & buildings | D24: 0 | E24: 0 | F24: 0 | G24: 0 | H24: 0 | I24: 0 | J24: 0 | K24: 0
A25: =IF(ISNA(VLOOKUP("B"&MID($B25,2,LEN($B25)-2)&"G",ClassAll,COLUMN(Classes!$B$4),0)),"error!","ok") -> ok | B25: F-0102D | C25: ="Disposals - Accum Depr - "&IF(ISNA(VLOOKUP("B"&MID($B25,2,LEN($B25)-2)&"G",ClassAll,COLUMN(Classes!$B$4),0)),"PPE Class",VLOOKUP("B"&MID($B25,2,LEN($B25)-2)&"G",ClassAll,COLUMN(Classes!$B$4),0)) -> Disposals - Accum Depr - Plant & equipment | D25: 0 | E25: -50000 | F25: 0 | G25: 0 | H25: 0 | I25: 0 | J25: 0 | K25: 0
A26: =IF(ISNA(VLOOKUP("B"&MID($B26,2,LEN($B26)-2)&"G",ClassAll,COLUMN(Classes!$B$4),0)),"error!","ok") -> ok | B26: F-0103D | C26: ="Disposals - Accum Depr - "&IF(ISNA(VLOOKUP("B"&MID($B26,2,LEN($B26)-2)&"G",ClassAll,COLUMN(Classes!$B$4),0)),"PPE Class",VLOOKUP("B"&MID($B26,2,LEN($B26)-2)&"G",ClassAll,COLUMN(Classes!$B$4),0)) -> Disposals - Accum Depr - Furniture & fittings | D26: 0 | E26: 0 | F26: 0 | G26: 0 | H26: 0 | I26: 0 | J26: 0 | K26: 0
A27: =IF(ISNA(VLOOKUP("B"&MID($B27,2,LEN($B27)-2)&"G",ClassAll,COLUMN(Classes!$B$4),0)),"error!","ok") -> ok | B27: F-0104D | C27: ="Disposals - Accum Depr - "&IF(ISNA(VLOOKUP("B"&MID($B27,2,LEN($B27)-2)&"G",ClassAll,COLUMN(Classes!$B$4),0)),"PPE Class",VLOOKUP("B"&MID($B27,2,LEN($B27)-2)&"G",ClassAll,COLUMN(Classes!$B$4),0)) -> Disposals - Accum Depr - Office equipment | D27: 0 | E27: 0 | F27: 0 | G27: 0 | H27: 0 | I27: 0 | J27: 0 | K27: 0
A28: =IF(ISNA(VLOOKUP("B"&MID($B28,2,LEN($B28)-2)&"G",ClassAll,COLUMN(Classes!$B$4),0)),"error!","ok") -> ok | B28: F-0105D | C28: ="Disposals - Accum Depr - "&IF(ISNA(VLOOKUP("B"&MID($B28,2,LEN($B28)-2)&"G",ClassAll,COLUMN(Classes!$B$4),0)),"PPE Class",VLOOKUP("B"&MID($B28,2,LEN($B28)-2)&"G",ClassAll,COLUMN(Classes!$B$4),0)) -> Disposals - Accum Depr - Computer equipment | D28: 0 | E28: 0 | F28: 0 | G28: 0 | H28: 0 | I28: 0 | J28: 0 | K28: 0
A29: =IF(ISNA(VLOOKUP("B"&MID($B29,2,LEN($B29)-2)&"G",ClassAll,COLUMN(Classes!$B$4),0)),"error!","ok") -> ok | B29: F-0106D | C29: ="Disposals - Accum Depr - "&IF(ISNA(VLOOKUP("B"&MID($B29,2,LEN($B29)-2)&"G",ClassAll,COLUMN(Classes!$B$4),0)),"PPE Class",VLOOKUP("B"&MID($B29,2,LEN($B29)-2)&"G",ClassAll,COLUMN(Classes!$B$4),0)) -> Disposals - Accum Depr - Motor vehicles | D29: 0 | E29: 0 | F29: -278250 | G29: 0 | H29: 0 | I29: 0 | J29: 0 | K29: 0
A30: =IF(ISNA(VLOOKUP("B"&MID($B30,2,LEN($B30)-2)&"G",ClassAll,COLUMN(Classes!$B$4),0)),"error!","ok") -> ok | B30: F-0101I | C30: ="Impairment - Accum Depr - "&IF(ISNA(VLOOKUP("B"&MID($B30,2,LEN($B30)-2)&"G",ClassAll,COLUMN(Classes!$B$4),0)),"PPE Class",VLOOKUP("B"&MID($B30,2,LEN($B30)-2)&"G",ClassAll,COLUMN(Classes!$B$4),0)) -> Impairment - Accum Depr - Land & buildings | D30: 0 | E30: 0 | F30: 0 | G30: 0 | H30: 0 | I30: 0 | J30: 0 | K30: 0
A31: =IF(ISNA(VLOOKUP("B"&MID($B31,2,LEN($B31)-2)&"G",ClassAll,COLUMN(Classes!$B$4),0)),"error!","ok") -> ok | B31: F-0102I | C31: ="Impairment - Accum Depr - "&IF(ISNA(VLOOKUP("B"&MID($B31,2,LEN($B31)-2)&"G",ClassAll,COLUMN(Classes!$B$4),0)),"PPE Class",VLOOKUP("B"&MID($B31,2,LEN($B31)-2)&"G",ClassAll,COLUMN(Classes!$B$4),0)) -> Impairment - Accum Depr - Plant & equipment | D31: 0 | E31: 0 | F31: 0 | G31: 0 | H31: 0 | I31: 0 | J31: 0 | K31: 0
A32: =IF(ISNA(VLOOKUP("B"&MID($B32,2,LEN($B32)-2)&"G",ClassAll,COLUMN(Classes!$B$4),0)),"error!","ok") -> ok | B32: F-0103I | C32: ="Impairment - Accum Depr - "&IF(ISNA(VLOOKUP("B"&MID($B32,2,LEN($B32)-2)&"G",ClassAll,COLUMN(Classes!$B$4),0)),"PPE Class",VLOOKUP("B"&MID($B32,2,LEN($B32)-2)&"G",ClassAll,COLUMN(Classes!$B$4),0)) -> Impairment - Accum Depr - Furniture & fittings | D32: 0 | E32: 0 | F32: 0 | G32: 0 | H32: 0 | I32: 0 | J32: 0 | K32: 0
A33: =IF(ISNA(VLOOKUP("B"&MID($B33,2,LEN($B33)-2)&"G",ClassAll,COLUMN(Classes!$B$4),0)),"error!","ok") -> ok | B33: F-0104I | C33: ="Impairment - Accum Depr - "&IF(ISNA(VLOOKUP("B"&MID($B33,2,LEN($B33)-2)&"G",ClassAll,COLUMN(Classes!$B$4),0)),"PPE Class",VLOOKUP("B"&MID($B33,2,LEN($B33)-2)&"G",ClassAll,COLUMN(Classes!$B$4),0)) -> Impairment - Accum Depr - Office equipment | D33: 0 | E33: 0 | F33: 0 | G33: 0 | H33: 0 | I33: 0 | J33: 0 | K33: 0
A34: =IF(ISNA(VLOOKUP("B"&MID($B34,2,LEN($B34)-2)&"G",ClassAll,COLUMN(Classes!$B$4),0)),"error!","ok") -> ok | B34: F-0105I | C34: ="Impairment - Accum Depr - "&IF(ISNA(VLOOKUP("B"&MID($B34,2,LEN($B34)-2)&"G",ClassAll,COLUMN(Classes!$B$4),0)),"PPE Class",VLOOKUP("B"&MID($B34,2,LEN($B34)-2)&"G",ClassAll,COLUMN(Classes!$B$4),0)) -> Impairment - Accum Depr - Computer equipment | D34: 0 | E34: 0 | F34: 0 | G34: 0 | H34: 0 | I34: 0 | J34: 0 | K34: 0
A35: =IF(ISNA(VLOOKUP("B"&MID($B35,2,LEN($B35)-2)&"G",ClassAll,COLUMN(Classes!$B$4),0)),"error!","ok") -> ok | B35: F-0106I | C35: ="Impairment - Accum Depr - "&IF(ISNA(VLOOKUP("B"&MID($B35,2,LEN($B35)-2)&"G",ClassAll,COLUMN(Classes!$B$4),0)),"PPE Class",VLOOKUP("B"&MID($B35,2,LEN($B35)-2)&"G",ClassAll,COLUMN(Classes!$B$4),0)) -> Impairment - Accum Depr - Motor vehicles | D35: 0 | E35: 0 | F35: 0 | G35: 0 | H35: 0 | I35: 0 | J35: 0 | K35: 0
A36: =IF(ISNA(VLOOKUP("B"&MID($B36,2,LEN($B36)-2)&"G",ClassAll,COLUMN(Classes!$B$4),0)),"error!","ok") -> ok | B36: F-0201R | C36: ="Amortization Rate - "&IF(ISNA(VLOOKUP("B"&MID($B36,2,LEN($B36)-2)&"G",ClassAll,COLUMN(Classes!$B$4),0)),"Intangible Class",VLOOKUP("B"&MID($B36,2,LEN($B36)-2)&"G",ClassAll,COLUMN(Classes!$B$4),0)) -> Amortization Rate - Goodwill | D36: 0.1 | E36: 0.1 | F36: 0.1 | G36: 0.1 | H36: 0.1 | I36: 0.1 | J36: 0.1 | K36: 0.1
A37: =IF(ISNA(VLOOKUP("B"&MID($B37,2,LEN($B37)-2)&"G",ClassAll,COLUMN(Classes!$B$4),0)),"error!","ok") -> ok | B37: F-0202R | C37: ="Amortization Rate - "&IF(ISNA(VLOOKUP("B"&MID($B37,2,LEN($B37)-2)&"G",ClassAll,COLUMN(Classes!$B$4),0)),"Intangible Class",VLOOKUP("B"&MID($B37,2,LEN($B37)-2)&"G",ClassAll,COLUMN(Classes!$B$4),0)) -> Amortization Rate - Trademarks | D37: 0.1 | E37: 0.1 | F37: 0.1 | G37: 0.1 | H37: 0.1 | I37: 0.1 | J37: 0.1 | K37: 0.1
A38: =IF(ISNA(VLOOKUP("B"&MID($B38,2,LEN($B38)-2)&"G",ClassAll,COLUMN(Classes!$B$4),0)),"error!","ok") -> ok | B38: F-0203R | C38: ="Amortization Rate - "&IF(ISNA(VLOOKUP("B"&MID($B38,2,LEN($B38)-2)&"G",ClassAll,COLUMN(Classes!$B$4),0)),"Intangible Class",VLOOKUP("B"&MID($B38,2,LEN($B38)-2)&"G",ClassAll,COLUMN(Classes!$B$4),0)) -> Amortization Rate - Software | D38: 0.1 | E38: 0.1 | F38: 0.1 | G38: 0.1 | H38: 0.1 | I38: 0.1 | J38: 0.1 | K38: 0.1
A39: =IF(ISNA(VLOOKUP("B"&MID($B39,2,LEN($B39)-2)&"G",ClassAll,COLUMN(Classes!$B$4),0)),"error!","ok") -> ok | B39: F-0201D | C39: ="Disposals - Cost - "&IF(ISNA(VLOOKUP("B"&MID($B39,2,LEN($B39)-2)&"G",ClassAll,COLUMN(Classes!$B$4),0)),"Intangible Class",VLOOKUP("B"&MID($B39,2,LEN($B39)-2)&"G",ClassAll,COLUMN(Classes!$B$4),0)) -> Disposals - Cost - Goodwill | D39: 0 | E39: 0 | F39: 0 | G39: 0 | H39: 0 | I39: 0 | J39: 0 | K39: 0
A40: =IF(ISNA(VLOOKUP("B"&MID($B40,2,LEN($B40)-2)&"G",ClassAll,COLUMN(Classes!$B$4),0)),"error!","ok") -> ok | B40: F-0202D | C40: ="Disposals - Cost - "&IF(ISNA(VLOOKUP("B"&MID($B40,2,LEN($B40)-2)&"G",ClassAll,COLUMN(Classes!$B$4),0)),"Intangible Class",VLOOKUP("B"&MID($B40,2,LEN($B40)-2)&"G",ClassAll,COLUMN(Classes!$B$4),0)) -> Disposals - Cost - Trademarks | D40: 0 | E40: 0 | F40: 0 | G40: 0 | H40: 0 | I40: 0 | J40: 0 | K40: 0
A41: =IF(ISNA(VLOOKUP("B"&MID($B41,2,LEN($B41)-2)&"G",ClassAll,COLUMN(Classes!$B$4),0)),"error!","ok") -> ok | B41: F-0203D | C41: ="Disposals - Cost - "&IF(ISNA(VLOOKUP("B"&MID($B41,2,LEN($B41)-2)&"G",ClassAll,COLUMN(Classes!$B$4),0)),"Intangible Class",VLOOKUP("B"&MID($B41,2,LEN($B41)-2)&"G",ClassAll,COLUMN(Classes!$B$4),0)) -> Disposals - Cost - Software | D41: 0 | E41: 0 | F41: 0 | G41: 0 | H41: 0 | I41: 0 | J41: 0 | K41: 0
A42: =IF(ISNA(VLOOKUP("B"&MID($B42,2,LEN($B42)-2)&"G",ClassAll,COLUMN(Classes!$B$4),0)),"error!","ok") -> ok | B42: F-0201I | C42: ="Impairment - Cost - "&IF(ISNA(VLOOKUP("B"&MID($B42,2,LEN($B42)-2)&"G",ClassAll,COLUMN(Classes!$B$4),0)),"Intangible Class",VLOOKUP("B"&MID($B42,2,LEN($B42)-2)&"G",ClassAll,COLUMN(Classes!$B$4),0)) -> Impairment - Cost - Goodwill | D42: 0 | E42: 0 | F42: 0 | G42: 0 | H42: 0 | I42: 0 | J42: 0 | K42: 0
A43: =IF(ISNA(VLOOKUP("B"&MID($B43,2,LEN($B43)-2)&"G",ClassAll,COLUMN(Classes!$B$4),0)),"error!","ok") -> ok | B43: F-0202I | C43: ="Impairment - Cost - "&IF(ISNA(VLOOKUP("B"&MID($B43,2,LEN($B43)-2)&"G",ClassAll,COLUMN(Classes!$B$4),0)),"Intangible Class",VLOOKUP("B"&MID($B43,2,LEN($B43)-2)&"G",ClassAll,COLUMN(Classes!$B$4),0)) -> Impairment - Cost - Trademarks | D43: 0 | E43: 0 | F43: 0 | G43: 0 | H43: 0 | I43: 0 | J43: 0 | K43: 0
A44: =IF(ISNA(VLOOKUP("B"&MID($B44,2,LEN($B44)-2)&"G",ClassAll,COLUMN(Classes!$B$4),0)),"error!","ok") -> ok | B44: F-0203I | C44: ="Impairment - Cost - "&IF(ISNA(VLOOKUP("B"&MID($B44,2,LEN($B44)-2)&"G",ClassAll,COLUMN(Classes!$B$4),0)),"Intangible Class",VLOOKUP("B"&MID($B44,2,LEN($B44)-2)&"G",ClassAll,COLUMN(Classes!$B$4),0)) -> Impairment - Cost - Software | D44: 0 | E44: 0 | F44: 0 | G44: 0 | H44: 0 | I44: 0 | J44: 0 | K44: 0
A45: =IF(ISNA(VLOOKUP("B"&MID($B45,2,LEN($B45)-2)&"G",ClassAll,COLUMN(Classes!$B$4),0)),"error!","ok") -> ok | B45: F-0301D | C45: ="Disposals - Amort - "&IF(ISNA(VLOOKUP("B"&MID($B45,2,LEN($B45)-2)&"G",ClassAll,COLUMN(Classes!$B$4),0)),"Intangible Class",VLOOKUP("B"&MID($B45,2,LEN($B45)-2)&"G",ClassAll,COLUMN(Classes!$B$4),0)) -> Disposals - Amort - Goodwill | D45: 0 | E45: 0 | F45: 0 | G45: 0 | H45: 0 | I45: 0 | J45: 0 | K45: 0
A46: =IF(ISNA(VLOOKUP("B"&MID($B46,2,LEN($B46)-2)&"G",ClassAll,COLUMN(Classes!$B$4),0)),"error!","ok") -> ok | B46: F-0302D | C46: ="Disposals - Amort - "&IF(ISNA(VLOOKUP("B"&MID($B46,2,LEN($B46)-2)&"G",ClassAll,COLUMN(Classes!$B$4),0)),"Intangible Class",VLOOKUP("B"&MID($B46,2,LEN($B46)-2)&"G",ClassAll,COLUMN(Classes!$B$4),0)) -> Disposals - Amort - Trademarks | D46: 0 | E46: 0 | F46: 0 | G46: 0 | H46: 0 | I46: 0 | J46: 0 | K46: 0
A47: =IF(ISNA(VLOOKUP("B"&MID($B47,2,LEN($B47)-2)&"G",ClassAll,COLUMN(Classes!$B$4),0)),"error!","ok") -> ok | B47: F-0303D | C47: ="Disposals - Amort - "&IF(ISNA(VLOOKUP("B"&MID($B47,2,LEN($B47)-2)&"G",ClassAll,COLUMN(Classes!$B$4),0)),"Intangible Class",VLOOKUP("B"&MID($B47,2,LEN($B47)-2)&"G",ClassAll,COLUMN(Classes!$B$4),0)) -> Disposals - Amort - Software | D47: 0 | E47: 0 | F47: 0 | G47: 0 | H47: 0 | I47: 0 | J47: 0 | K47: 0
A48: =IF(ISNA(VLOOKUP("B"&MID($B48,2,LEN($B48)-2)&"G",ClassAll,COLUMN(Classes!$B$4),0)),"error!","ok") -> ok | B48: F-0301I | C48: ="Impairment - Amort - "&IF(ISNA(VLOOKUP("B"&MID($B48,2,LEN($B48)-2)&"G",ClassAll,COLUMN(Classes!$B$4),0)),"Intangible Class",VLOOKUP("B"&MID($B48,2,LEN($B48)-2)&"G",ClassAll,COLUMN(Classes!$B$4),0)) -> Impairment - Amort - Goodwill | D48: 0 | E48: 0 | F48: 0 | G48: 0 | H48: 0 | I48: 0 | J48: 0 | K48: 0
A49: =IF(ISNA(VLOOKUP("B"&MID($B49,2,LEN($B49)-2)&"G",ClassAll,COLUMN(Classes!$B$4),0)),"error!","ok") -> ok | B49: F-0302I | C49: ="Impairment - Amort - "&IF(ISNA(VLOOKUP("B"&MID($B49,2,LEN($B49)-2)&"G",ClassAll,COLUMN(Classes!$B$4),0)),"Intangible Class",VLOOKUP("B"&MID($B49,2,LEN($B49)-2)&"G",ClassAll,COLUMN(Classes!$B$4),0)) -> Impairment - Amort - Trademarks | D49: 0 | E49: 0 | F49: 0 | G49: 0 | H49: 0 | I49: 0 | J49: 0 | K49: 0
A50: =IF(ISNA(VLOOKUP("B"&MID($B50,2,LEN($B50)-2)&"G",ClassAll,COLUMN(Classes!$B$4),0)),"error!","ok") -> ok | B50: F-0303I | C50: ="Impairment - Amort - "&IF(ISNA(VLOOKUP("B"&MID($B50,2,LEN($B50)-2)&"G",ClassAll,COLUMN(Classes!$B$4),0)),"Intangible Class",VLOOKUP("B"&MID($B50,2,LEN($B50)-2)&"G",ClassAll,COLUMN(Classes!$B$4),0)) -> Impairment - Amort - Software | D50: 0 | E50: 0 | F50: 0 | G50: 0 | H50: 0 | I50: 0 | J50: 0 | K50: 0
A51: =IF(ISNA(VLOOKUP(LEFT($B51,LEN($B51)-1)&"G",FinData,COLUMN($C$62)-1,0)),"error!","ok") -> ok | B51: F-1601C | C51: ="Charges - "&IF(ISNA(VLOOKUP(LEFT($B51,LEN($B51)-1)&"G",FinData,COLUMN($C$62)-1,0)),"Provisions",VLOOKUP(LEFT($B51,LEN($B51)-1)&"G",FinData,COLUMN($C$62)-1,0)) -> Charges - Claims | D51: 45000 | E51: 48000 | F51: 53200 | G51: 0 | H51: 0 | I51: 0 | J51: 0 | K51: 0
A52: ok | B52: F-1602C | C52: ="Charges - "&IF(ISNA(VLOOKUP(LEFT($B52,LEN($B52)-1)&"G",FinData,COLUMN($C$62)-1,0)),"Provisions",VLOOKUP(LEFT($B52,LEN($B52)-1)&"G",FinData,COLUMN($C$62)-1,0)) -> Charges - Leave | D52: 59500 | E52: 69500 | F52: 51500 | G52: 0 | H52: 0 | I52: 0 | J52: 0 | K52: 0
A53: ok | B53: F-1603C | C53: ="Charges - "&IF(ISNA(VLOOKUP(LEFT($B53,LEN($B53)-1)&"G",FinData,COLUMN($C$62)-1,0)),"Provisions",VLOOKUP(LEFT($B53,LEN($B53)-1)&"G",FinData,COLUMN($C$62)-1,0)) -> Charges - Bonuses | D53: 72530 | E53: 90000 | F53: 97170 | G53: 0 | H53: 0 | I53: 0 | J53: 0 | K53: 0
A54: ok | B54: F-1601R | C54: ="Reversals - "&IF(ISNA(VLOOKUP(LEFT($B54,LEN($B54)-1)&"G",FinData,COLUMN($C$62)-1,0)),"Provisions",VLOOKUP(LEFT($B54,LEN($B54)-1)&"G",FinData,COLUMN($C$62)-1,0)) -> Reversals - Claims | D54: 1500 | E54: 2000 | F54: 1100 | G54: 0 | H54: 0 | I54: 0 | J54: 0 | K54: 0
A55: ok | B55: F-1602R | C55: ="Reversals - "&IF(ISNA(VLOOKUP(LEFT($B55,LEN($B55)-1)&"G",FinData,COLUMN($C$62)-1,0)),"Provisions",VLOOKUP(LEFT($B55,LEN($B55)-1)&"G",FinData,COLUMN($C$62)-1,0)) -> Reversals - Leave | D55: 0 | E55: 2500 | F55: 10000 | G55: 0 | H55: 0 | I55: 0 | J55: 0 | K55: 0
A56: ok | B56: F-1603R | C56: ="Reversals - "&IF(ISNA(VLOOKUP(LEFT($B56,LEN($B56)-1)&"G",FinData,COLUMN($C$62)-1,0)),"Provisions",VLOOKUP(LEFT($B56,LEN($B56)-1)&"G",FinData,COLUMN($C$62)-1,0)) -> Reversals - Bonuses | D56: 1589 | E56: 437 | F56: 1900 | G56: 0 | H56: 0 | I56: 0 | J56: 0 | K56: 0
B57: Items with descriptions and balances that are used on the financial statements
B58: F-22G | C58: Deferred tax
A59: =IF(ISNA(VLOOKUP($B59,AFSClass,1,0)),"add!","ok") -> ok | B59: F-2201G | C59: Prepayments | D59: -6328 | E59: -12460 | F59: -6720 | G59: 0 | H59: 0 | I59: 0 | J59: 0 | K59: 0
A60: =IF(ISNA(VLOOKUP($B60,AFSClass,1,0)),"add!","ok") -> ok | B60: F-2202G | C60: Provisions | D60: -59250 | E60: -60163 | F60: -60150 | G60: 0 | H60: 0 | I60: 0 | J60: 0 | K60: 0
A61: =IF(ISNA(VLOOKUP($B61,AFSClass,1,0)),"add!","ok") -> ok | B61: F-2203G | C61: Leases | D61: 18300 | E61: 90000 | F61: 33080 | G61: 0 | H61: 0 | I61: 0 | J61: 0 | K61: 0
B62: F-16G | C62: Other provisions
A63: =IF(ISNA(VLOOKUP($B63,AFSClass,1,0)),"add!","ok") -> ok | B63: F-1601G | C63: Claims | D63: -50000 | E63: -54300 | F63: -61800 | G63: 0 | H63: 0 | I63: 0 | J63: 0 | K63: 0
A64: =IF(ISNA(VLOOKUP($B64,AFSClass,1,0)),"add!","ok") -> ok | B64: F-1602G | C64: Leave | D64: -71200 | E64: -61500 | F64: -82650 | G64: 0 | H64: 0 | I64: 0 | J64: 0 | K64: 0
A65: =IF(ISNA(VLOOKUP($B65,AFSClass,1,0)),"add!","ok") -> ok | B65: F-1603G | C65: Bonuses | D65: -90437 | E65: -99070 | F65: -70373 | G65: 0 | H65: 0 | I65: 0 | J65: 0 | K65: 0
B66: Items with balances that are linked to specific reporting classes (as per Classes sheet)
A67: =IF(ISERROR(FIND("G",$B67)),"no G!",IF(COUNTIF(TBClass,IF(LEFT($B67,1)="E","I","B")&MID($B67,2,FIND("G",$B67)-1))=0,"class!",IF(ISNA(VLOOKUP($B67,AFSClass,1,0)),"add!","ok"))) -> ok | B67: F-08G | C67: Amounts due by related parties | D67: 3000 | E67: 5000 | F67: 8000 | G67: 0 | H67: 0 | I67: 0 | J67: 0 | K67: 0
A68: =IF(ISERROR(FIND("G",$B68)),"no G!",IF(COUNTIF(TBClass,IF(LEFT($B68,1)="E","I","B")&MID($B68,2,FIND("G",$B68)-1))=0,"class!",IF(ISNA(VLOOKUP($B68,AFSClass,1,0)),"add!","ok"))) -> ok | B68: F-12G | C68: Amounts due to related parties | D68: -5000 | E68: -8000 | F68: -12000 | G68: 0 | H68: 0 | I68: 0 | J68: 0 | K68: 0
A69: =IF(ISERROR(FIND("G",$B69)),"no G!",IF(COUNTIF(TBClass,IF(LEFT($B69,1)="E","I","B")&MID($B69,2,FIND("G",$B69)-1))=0,"class!",IF(ISNA(VLOOKUP($B69,AFSClass,1,0)),"add!","ok"))) -> ok | B69: F-1801G | C69: Short term loan - Bank One | D69: -545076 | E69: -546917 | F69: -547010 | G69: 0 | H69: 0 | I69: 0 | J69: 0 | K69: 0
A70: =IF(ISERROR(FIND("G",$B70)),"no G!",IF(COUNTIF(TBClass,IF(LEFT($B70,1)="E","I","B")&MID($B70,2,FIND("G",$B70)-1))=0,"class!",IF(ISNA(VLOOKUP($B70,AFSClass,1,0)),"add!","ok"))) -> ok | B70: F-1802G | C70: Short term loan - Bank Two | D70: 0 | E70: -154776 | F70: -155210 | G70: 0 | H70: 0 | I70: 0 | J70: 0 | K70: 0
A71: =IF(ISERROR(FIND("G",$B71)),"no G!",IF(COUNTIF(TBClass,IF(LEFT($B71,1)="E","I","B")&MID($B71,2,FIND("G",$B71)-1))=0,"class!",IF(ISNA(VLOOKUP($B71,AFSClass,1,0)),"add!","ok"))) -> ok | B71: F-2301G | C71: Current liability | D71: -62974 | E71: -69568 | F71: -77089 | G71: 0 | H71: 0 | I71: 0 | J71: 0 | K71: 0
A72: =IF(ISERROR(FIND("G",$B72)),"no G!",IF(COUNTIF(TBClass,IF(LEFT($B72,1)="E","I","B")&MID($B72,2,FIND("G",$B72)-1))=0,"class!",IF(ISNA(VLOOKUP($B72,AFSClass,1,0)),"add!","ok"))) -> ok | B72: E-06G01G | C72: Interest on finance leases | D72: 24074 | E72: 18105 | F72: 28483 | G72: 0 | H72: 0 | I72: 0 | J72: 0 | K72: 0
A73: =IF(ISERROR(FIND("G",$B73)),"no G!",IF(COUNTIF(TBClass,IF(LEFT($B73,1)="E","I","B")&MID($B73,2,FIND("G",$B73)-1))=0,"class!",IF(ISNA(VLOOKUP($B73,AFSClass,1,0)),"add!","ok"))) -> ok | B73: E-06G02G | C73: Interest received | D73: 0 | E73: 0 | F73: 0 | G73: 0 | H73: 0 | I73: 0 | J73: 0 | K73: 0
A74: =IF(ISERROR(FIND("G",$B74)),"no G!",IF(COUNTIF(TBClass,IF(LEFT($B74,1)="E","I","B")&MID($B74,2,FIND("G",$B74)-1))=0,"class!",IF(ISNA(VLOOKUP($B74,AFSClass,1,0)),"add!","ok"))) -> ok | B74: E-0900G | C74: Interest received | D74: 0 | E74: 0 | F74: 0 | G74: 0 | H74: 0 | I74: 0 | J74: 0 | K74: 0
B75: Items that are used in other disclosures
A76: =IF(ISNA(VLOOKUP($B76,AFSClass,1,0)),"missing!","ok") -> ok | B76: F-LEASENEW | C76: New finance leases | D76: 0 | E76: 0 | F76: 300000 | G76: 0 | H76: 0 | I76: 0 | J76: 0 | K76: 0
A77: ok | B77: F-LOANNEW | C77: Proceeds from new loans | D77: 0 | E77: 900000 | F77: 0 | G77: 0 | H77: 0 | I77: 0 | J77: 0 | K77: 0
A78: ok | B78: F-TAX% | C78: Income tax percentage | D78: 0 | E78: 28 | F78: 28 | G78: 0 | H78: 0 | I78: 0 | J78: 0 | K78: 0
A79: ok | B79: F-TAXR01 | C79: Exempt income | D79: 0 | E79: -0.3 | F79: -0.2 | G79: 0 | H79: 0 | I79: 0 | J79: 0 | K79: 0
A80: ok | B80: F-TAXR02 | C80: Disallowed charges | D80: 0 | E80: 0.9 | F80: 0.1 | G80: 0 | H80: 0 | I80: 0 | J80: 0 | K80: 0
A81: ok | B81: F-TAXR03 | C81: Assessed loss carried over from prior year | D81: 0 | E81: -7.8 | F81: 0 | G81: 0 | H81: 0 | I81: 0 | J81: 0 | K81: 0
A82: ok | B82: F-TAXR04 | C82: Prior year (over) / under estimation | D82: 0 | E82: 0 | F82: 0.8 | G82: 0 | H82: 0 | I82: 0 | J82: 0 | K82: 0
A83: ok | B83: F-00L | C83: Carrying amount of leased assets | D83: 159000 | E83: 79500 | F83: 395500 | G83: 0 | H83: 0 | I83: 0 | J83: 0 | K83: 0
A84: ok | B84: F-IMP | C84: Impairment of property, plant & equipment | D84: 0 | E84: 0 | F84: 100000 | G84: 0 | H84: 0 | I84: 0 | J84: 0 | K84: 0
A85: ok | B85: F-CONT01 | C85: Contingent liabilities | D85: 0 | E85: 0 | F85: 150000 | G85: 0 | H85: 0 | I85: 0 | J85: 0 | K85: 0
A86: ok | B86: F-EVENT01 | C86: Event after end of reporting period | D86: 0 | E86: 0 | F86: 175000 | G86: 0 | H86: 0 | I86: 0 | J86: 0 | K86: 0
A87: ok | B87: F-SCPAR | C87: Par value of shares | D87: 1 | E87: 1 | F87: 1 | G87: 0 | H87: 0 | I87: 0 | J87: 0 | K87: 0
A88: ok | B88: F-SCAUTH | C88: Number of authorized shares | D88: 2500 | E88: 2500 | F88: 2500 | G88: 0 | H88: 0 | I88: 0 | J88: 0 | K88: 0
A89: ok | B89: F-FLEASEP1 | C89: Minimum finance lease payments: < 1 year | D89: 81078 | E89: 81078 | F89: 115243 | G89: 0 | H89: 0 | I89: 0 | J89: 0 | K89: 0
A90: ok | B90: F-FLEASEP5 | C90: Minimum finance lease payments: 1 - 5 years | D90: 162156 | E90: 81078 | F90: 403353 | G90: 0 | H90: 0 | I90: 0 | J90: 0 | K90: 0
A91: ok | B91: F-FLEASEP9 | C91: Minimum finance lease payments: > 5 years | D91: 0 | E91: 0 | F91: 0 | G91: 0 | H91: 0 | I91: 0 | J91: 0 | K91: 0
A92: ok | B92: F-OLEASEAP | C92: Operating lease average period | D92: 3 | E92: 3 | F92: 3 | G92: 0 | H92: 0 | I92: 0 | J92: 0 | K92: 0
A93: ok | B93: F-OLEASEXP | C93: Operating lease expenses for the year | D93: 12500 | E93: 13400 | F93: 11850 | G93: 0 | H93: 0 | I93: 0 | J93: 0 | K93: 0
A94: ok | B94: F-OLEASEP1 | C94: Minimum operating lease payments: < 1 year | D94: 12000 | E94: 12000 | F94: 12000 | G94: 0 | H94: 0 | I94: 0 | J94: 0 | K94: 0
A95: ok | B95: F-OLEASEP5 | C95: Minimum operating lease payments: 1 - 5 years | D95: 28000 | E95: 30000 | F95: 24000 | G95: 0 | H95: 0 | I95: 0 | J95: 0 | K95: 0
A96: ok | B96: F-OLEASEP9 | C96: Minimum operating lease payments: > 5 years | D96: 0 | E96: 0 | F96: 0 | G96: 0 | H96: 0 | I96: 0 | J96: 0 | K96: 0
A97: ok | B97: F-REMUN | C97: Total remuneration of directors & management | D97: 401250 | E97: 434640 | F97: 685720 | G97: 0 | H97: 0 | I97: 0 | J97: 0 | K97: 0

Sheet AFS (hidden)
K1: NOTE: Print area is only from column B to J.
B5: =Setup!$A$1 -> Example Limited
B6: ="(Registration Number: "&IF(ISBLANK($E$88),"0000 000000 00",$E$88)&")" -> (Registration Number: 07000000)
B10: Financial statements
B11: ="for the year ended "&Setup!$F$12 -> for the year ended 31 March 2022
B27: =Setup!$A$1 -> Example Limited
B28: Financial Statements
B29: ="for the year ended "&Setup!$F$12 -> for the year ended 31 March 2022
B31: Table of contents | C31: =IF(INFO("system")="mac",CHAR(13),CHAR(10)) ->  | I31: Page
B33: General Information | I33: 3
B35: Audit Exemption Statement | I35: 4
B37: Directors' Report | I37: 5
B39: Statement of comprehensive income and retained earnings | I39: 6
B41: Statement of financial position | I41: 7
B43: Statement of changes in equity | I43: 8
B45: Statement of cash flows | I45: 9
B47: Accounting policies and explanatory notes to the financial statements | I47: =10&" - "&IF(ISBLANK(Setup!$B$14),"18",Setup!$B$14) -> 10 - 18
B49: Approval of financial statements
B51: ="These financial statements were approved by the directors & authorised for issue on "&TEXT(Setup!$C$16,"dd mmmm yyyy")&"." -> These financial statements were approved by the directors & authorised for issue on 31 May 2022.
K57: <<<== Enter director details
B58: Name of Director
B59: Director
B60: =TEXT(Setup!$C$16,"dd mmmm yyyy") -> 31 May 2022
B61: =Setup!$A$1 -> Example Limited
B62: Financial Statements
B63: ="for the year ended "&Setup!$F$12 -> for the year ended 31 March 2022
B65: General information | K65: Note: Enter the required information in column E.
B67: Country of incorporation | E67: United Kingdom
B69: Reporting currency | E69: British Pound
B71: Registered office | E71: Street Address
E72: Suburb
E73: City, Code
B75: Business address | E75: Street Address
E76: Suburb
E77: City, Code
B79: Postal address | E79: PO Box 9999, Suburb
E80: City, Code
B82: Bankers | E82: AAA Bank
B84: Accountants | E84: AN Accountants
B86: Company secretary | E86: XYZ Secretary Services
B88: Company registration number | E88: 07000000
B90: =Setup!$A$1 -> Example Limited
B91: Financial Statements
B92: ="for the year ended "&Setup!$F$12 -> for the year ended 31 March 2022
B94: AUDIT EXEMPTION STATEMENT | K94: Note: This report is intended as an example. Replace if needed.
B96: =P96 -> For the financial year ended 31 March 2022, the company was entitled to exemption from audit under the Companies Act 2006, (s. 477 relating to small companies, s. 479A relating to subsidiary companies or s. 480 relating to dormant companies) and the members have not required the company to obtain an audit of its accounts for the year in question in accordance with s. 476. | K96: Edit in column P ==>>> | P96: ="For the financial year ended "&Setup!$F$12&", the company was entitled to exemption from audit under the Companies Act 2006, (s. 477 relating to small companies, s. 479A relating to subsidiary companies or s. 480 relating to dormant companies) "&"and the members have not required the company to obtain an audit of its accounts for the year in question"&" in accordance with s. 476." -> For the financial year ended 31 March 2022, the company was entitled to exemption from audit under the Companies Act 2006, (s. 477 relating to small companies, s. 479A relating to subsidiary companies or s. 480 relating to dormant companies) and the members have not required the company to obtain an audit of its accounts for the year in question in accordance with s. 476.
B98: =P98 -> The directors acknowledge their responsibilities for complying with the requirements of the Companies Act 2006 with respect to accounting records and the preparation of accounts. | K98: Edit in column P ==>>> | P98: The directors acknowledge their responsibilities for complying with the requirements of the Companies Act 2006 with respect to accounting records and the preparation of accounts.
K108: <<<== Edit director details director details
B109: =B58 -> Name of Director
B110: =B59 -> Director
B111: =B60 -> 31 May 2022
B113: =Setup!$A$1 -> Example Limited
B114: Financial Statements
B115: ="for the year ended "&Setup!$F$12 -> for the year ended 31 March 2022
B117: DIRECTORS' REPORT | K117: Note: Review & make changes where necessary.
B119: =P119 -> The Directors of Example Limited present their Report together with the financial statements of the company for the year ended 31 March 2022. | K119: Edit in column P ==>>> | P119: ="The Directors of "&$B$113&" present their Report together with the financial statements of the company for the year ended "&Setup!$F$12&"." -> The Directors of Example Limited present their Report together with the financial statements of the company for the year ended 31 March 2022.
B121: Main business activities
B123: =P123 -> The company is a private limited company domiciled and incorporated in the United Kingdom. The main business activities of the company are the sale of fruit & vegetable juices. There has been no change in the main business activities of the company over the reporting period. | K123: Edit in column P ==>>> | P123: The company is a private limited company domiciled and incorporated in the United Kingdom. The main business activities of the company are the sale of fruit & vegetable juices. There has been no change in the main business activities of the company over the reporting period.
B125: Directors Details
B127: ="The following persons were directors of "&$B$113&" during or since the end of the financial year:" -> The following persons were directors of Example Limited during or since the end of the financial year:
B128: ■ Name of director 1
B129: ■ Name of director 2 | K129: <<<== Enter names of directors
B130: ■ Name of director 3
B131: ■ Name of director 4
B132: ■ Name of director 5
B134: Review of operations and financial results | K134: =IF($G$161-$I$161=0,"remained unchanged at ",IF((($G$161-$I$161)/$I$161)<0,"decreased by "&FIXED(ABS((($G$161-$I$161)/$I$161)*100),1)&"% to ","increased by "&FIXED(ABS((($G$161-$I$161)/$I$161)*100),1)&"% to ")) -> increased by 10.7% to | M134: =IF($G$304-$I$304=0,"remained unchanged ",IF((($G$304-$I$304)/ABS($I$304))>0,"increased by "&FIXED(ABS((($G$304-$I$304)/ABS($I$304))*100),1)&"% ","decreased by "&FIXED(ABS((($G$304-$I$304)/ABS($I$304))*100),1)&"% ")) -> increased by 9.4%
K135: =IF($G$192-$I$192=0,"remained unchanged at ",IF((($G$192-$I$192)/ABS($I$192))>0,"increased by "&FIXED(ABS((($G$192-$I$192)/ABS($I$192))*100),1)&"% to ","decreased by "&FIXED(ABS((($G$192-$I$192)/ABS($I$192))*100),1)&"% to ")) -> increased by 9.4% to | M135: =IF($G$226-$I$226=0,"remained unchanged at ",IF((($G$226-$I$226)/ABS($I$226))>0,"increased by "&FIXED(ABS((($G$226-$I$226)/ABS($I$226))*100),1)&"% to ","decreased by "&FIXED(ABS((($G$226-$I$226)/ABS($I$226))*100),1)&"% to ")) -> increased by 22.4% to
B136: =P136 -> The company's revenue increased by 10.7% to £6,911,623 during the financial year and the net profit increased by 9.4% to £1,098,654. Net cash flow from operating activities increased by 9.4% and the company's net assets increased by 22.4% to £5,189,459. | K136: Edit in column P ==>>> | P136: ="The company's revenue "&$K$134&Setup!$C$6&FIXED($G$161,0)&" during the financial year and the net profit "&$K$135&Setup!$C$6&FIXED($G$192,0)&". Net cash flow from operating activities "&M134&"and the company's net assets "&M$135&Setup!$C$6&FIXED($G$226,0)&"." -> The company's revenue increased by 10.7% to £6,911,623 during the financial year and the net profit increased by 9.4% to £1,098,654. Net cash flow from operating activities increased by 9.4% and the company's net assets increased by 22.4% to £5,189,459.
B138: Dividends
K139: =IF($G$194=0,"no dividends","dividends amounting to "&Setup!$C$6&FIXED(-$G$194,0)) -> dividends amounting to £150,000
B140: =P140 -> The company declared dividends amounting to £150,000 during the financial year (2021: £100,000). | K140: Edit in column P ==>>> | P140: ="The company declared "&$K$139&" during the financial year ("&$I$158&": "&Setup!$C$6&FIXED(-$I$194,0)&")." -> The company declared dividends amounting to £150,000 during the financial year (2021: £100,000).
B142: Share capital
B144: =P144 -> There have been no changes to the authorised or issued share capital during the year under review. | K144: Edit in column P ==>>> | P144: There have been no changes to the authorised or issued share capital during the year under review.
B146: Significant changes in the state of affairs
B148: =P148 -> There were no significant changes in the state of affairs of the company during the financial year or since the end of the financial year. | K148: Edit in column P ==>>> | P148: There were no significant changes in the state of affairs of the company during the financial year or since the end of the financial year.
B150: Events arising since the end of the reporting period
B152: =P152 -> The directors are not aware of any material fact or circumstance arising between the end of the financial year and the date of this report that would require adjustments to or disclosure in the financial statements. | K152: Edit in column P ==>>> | P152: ="The directors are not aware of any material fact or circumstance arising between the end of the financial year and the date of this report that would require adjustments to or disclosure in the financial statements." -> The directors are not aware of any material fact or circumstance arising between the end of the financial year and the date of this report that would require adjustments to or disclosure in the financial statements.
B154: =Setup!$A$1 -> Example Limited
B155: Statement of comprehensive income and retained earnings
B156: ="for the year ended "&Setup!$F$12 -> for the year ended 31 March 2022
E158: Notes | G158: =YEAR(Setup!$B$12) -> 2022 | I158: =$G$158-1 -> 2021
G159: =Setup!$C$6 -> £ | I159: =Setup!$C$6 -> £
B161: Revenue | E161: =$A$428 -> 2 | G161: =G433 -> 6911623 | I161: =I433 -> 6242037
A162: I-02G | B162: =IF(OR(LEFT($A162,1)="F",LEFT($A162,1)="E"),IF(ISNA(VLOOKUP($A162,FinData,COLUMN(FinInfo!$C$4)-1,0)),"Add to FinInfo sheet!",VLOOKUP($A162,FinData,COLUMN(FinInfo!$C$4)-1,0)),IF(ISNA(VLOOKUP($A162,ClassAll,COLUMN(Classes!$B$4),0)),"No class!",VLOOKUP($A162,ClassAll,COLUMN(Classes!$B$4),0))) -> Cost of sales | G162: =-IF(OR(LEFT($A162,1)="F",LEFT($A162,1)="E"),IF(ISNA(SUMIF(FinData,$A162,FinCYData)),0,SUMIF(FinData,$A162,FinCYData)),IF(ISNA(SUMIF(TBData,$A162&"*",TBCYData)),0,SUMIF(TBData,$A162&"*",TBCYData))-IF(LEFT($A162,1)="I",IF(ISNA(SUMIF(FinData,"E"&MID($A162,2,LEN($A162)-2)&"G*",FinCYData)),0,SUMIF(FinData,"E"&MID($A162,2,LEN($A162)-2)&"G*",FinCYData)),IF(ISNA(SUMIF(FinData,"F"&MID($A162,2,LEN($A162)-2)&"G*",FinCYData)),0,SUMIF(FinData,"F"&MID($A162,2,LEN($A162)-2)&"G*",FinCYData)))) -> -2881575 | I162: =-IF(OR(LEFT($A162,1)="F",LEFT($A162,1)="E"),IF(ISNA(SUMIF(FinData,$A162,FinPYData)),0,SUMIF(FinData,$A162,FinPYData)),IF(ISNA(SUMIF(TBData,$A162&"*",TBPYData)),0,SUMIF(TBData,$A162&"*",TBPYData))-IF(LEFT($A162,1)="I",IF(ISNA(SUMIF(FinData,"E"&MID($A162,2,LEN($A162)-2)&"G*",FinPYData)),0,SUMIF(FinData,"E"&MID($A162,2,LEN($A162)-2)&"G*",FinPYData)),IF(ISNA(SUMIF(FinData,"F"&MID($A162,2,LEN($A162)-2)&"G*",FinPYData)),0,SUMIF(FinData,"F"&MID($A162,2,LEN($A162)-2)&"G*",FinPYData)))) -> -2803264
B163: Gross profit | G163: =SUM(G161,G162) -> 4030048 | I163: =SUM(I161,I162) -> 3438773
B164: Other income | E164: =$A$439 -> 3 | G164: =G448 -> 99265 | I164: =I448 -> 38512
B165: Operating expenses | G165: =SUM(OFFSET(G165,1,0,ROW($B188)-ROW($B165)-1,1)) -> -2394201 | I165: =SUM(OFFSET(I165,1,0,ROW($B188)-ROW($B165)-1,1)) -> -1996411
A166: I-0301G | B166: =IF(OR(LEFT($A166,1)="F",LEFT($A166,1)="E"),IF(ISNA(VLOOKUP($A166,FinData,COLUMN(FinInfo!$C$4)-1,0)),"Add to FinInfo sheet!",VLOOKUP($A166,FinData,COLUMN(FinInfo!$C$4)-1,0)),IF(ISNA(VLOOKUP($A166,ClassAll,COLUMN(Classes!$B$4),0)),"No class!",VLOOKUP($A166,ClassAll,COLUMN(Classes!$B$4),0))) -> Accounting fees | G166: =-IF(OR(LEFT($A166,1)="F",LEFT($A166,1)="E"),IF(ISNA(SUMIF(FinData,$A166,FinCYData)),0,SUMIF(FinData,$A166,FinCYData)),IF(ISNA(SUMIF(TBData,$A166&"*",TBCYData)),0,SUMIF(TBData,$A166&"*",TBCYData))-IF(LEFT($A166,1)="I",IF(ISNA(SUMIF(FinData,"E"&MID($A166,2,LEN($A166)-2)&"G*",FinCYData)),0,SUMIF(FinData,"E"&MID($A166,2,LEN($A166)-2)&"G*",FinCYData)),IF(ISNA(SUMIF(FinData,"F"&MID($A166,2,LEN($A166)-2)&"G*",FinCYData)),0,SUMIF(FinData,"F"&MID($A166,2,LEN($A166)-2)&"G*",FinCYData)))) -> -24000 | I166: =-IF(OR(LEFT($A166,1)="F",LEFT($A166,1)="E"),IF(ISNA(SUMIF(FinData,$A166,FinPYData)),0,SUMIF(FinData,$A166,FinPYData)),IF(ISNA(SUMIF(TBData,$A166&"*",TBPYData)),0,SUMIF(TBData,$A166&"*",TBPYData))-IF(LEFT($A166,1)="I",IF(ISNA(SUMIF(FinData,"E"&MID($A166,2,LEN($A166)-2)&"G*",FinPYData)),0,SUMIF(FinData,"E"&MID($A166,2,LEN($A166)-2)&"G*",FinPYData)),IF(ISNA(SUMIF(FinData,"F"&MID($A166,2,LEN($A166)-2)&"G*",FinPYData)),0,SUMIF(FinData,"F"&MID($A166,2,LEN($A166)-2)&"G*",FinPYData)))) -> -18000
A167: I-0302G | B167: =IF(OR(LEFT($A167,1)="F",LEFT($A167,1)="E"),IF(ISNA(VLOOKUP($A167,FinData,COLUMN(FinInfo!$C$4)-1,0)),"Add to FinInfo sheet!",VLOOKUP($A167,FinData,COLUMN(FinInfo!$C$4)-1,0)),IF(ISNA(VLOOKUP($A167,ClassAll,COLUMN(Classes!$B$4),0)),"No class!",VLOOKUP($A167,ClassAll,COLUMN(Classes!$B$4),0))) -> Advertising & marketing | G167: =-IF(OR(LEFT($A167,1)="F",LEFT($A167,1)="E"),IF(ISNA(SUMIF(FinData,$A167,FinCYData)),0,SUMIF(FinData,$A167,FinCYData)),IF(ISNA(SUMIF(TBData,$A167&"*",TBCYData)),0,SUMIF(TBData,$A167&"*",TBCYData))-IF(LEFT($A167,1)="I",IF(ISNA(SUMIF(FinData,"E"&MID($A167,2,LEN($A167)-2)&"G*",FinCYData)),0,SUMIF(FinData,"E"&MID($A167,2,LEN($A167)-2)&"G*",FinCYData)),IF(ISNA(SUMIF(FinData,"F"&MID($A167,2,LEN($A167)-2)&"G*",FinCYData)),0,SUMIF(FinData,"F"&MID($A167,2,LEN($A167)-2)&"G*",FinCYData)))) -> -143644 | I167: =-IF(OR(LEFT($A167,1)="F",LEFT($A167,1)="E"),IF(ISNA(SUMIF(FinData,$A167,FinPYData)),0,SUMIF(FinData,$A167,FinPYData)),IF(ISNA(SUMIF(TBData,$A167&"*",TBPYData)),0,SUMIF(TBData,$A167&"*",TBPYData))-IF(LEFT($A167,1)="I",IF(ISNA(SUMIF(FinData,"E"&MID($A167,2,LEN($A167)-2)&"G*",FinPYData)),0,SUMIF(FinData,"E"&MID($A167,2,LEN($A167)-2)&"G*",FinPYData)),IF(ISNA(SUMIF(FinData,"F"&MID($A167,2,LEN($A167)-2)&"G*",FinPYData)),0,SUMIF(FinData,"F"&MID($A167,2,LEN($A167)-2)&"G*",FinPYData)))) -> -170000
A168: I-0502G | B168: =IF(OR(LEFT($A168,1)="F",LEFT($A168,1)="E"),IF(ISNA(VLOOKUP($A168,FinData,COLUMN(FinInfo!$C$4)-1,0)),"Add to FinInfo sheet!",VLOOKUP($A168,FinData,COLUMN(FinInfo!$C$4)-1,0)),IF(ISNA(VLOOKUP($A168,ClassAll,COLUMN(Classes!$B$4),0)),"No class!",VLOOKUP($A168,ClassAll,COLUMN(Classes!$B$4),0))) -> Amortisation of intangible assets | G168: =-IF(OR(LEFT($A168,1)="F",LEFT($A168,1)="E"),IF(ISNA(SUMIF(FinData,$A168,FinCYData)),0,SUMIF(FinData,$A168,FinCYData)),IF(ISNA(SUMIF(TBData,$A168&"*",TBCYData)),0,SUMIF(TBData,$A168&"*",TBCYData))-IF(LEFT($A168,1)="I",IF(ISNA(SUMIF(FinData,"E"&MID($A168,2,LEN($A168)-2)&"G*",FinCYData)),0,SUMIF(FinData,"E"&MID($A168,2,LEN($A168)-2)&"G*",FinCYData)),IF(ISNA(SUMIF(FinData,"F"&MID($A168,2,LEN($A168)-2)&"G*",FinCYData)),0,SUMIF(FinData,"F"&MID($A168,2,LEN($A168)-2)&"G*",FinCYData)))) -> -104050 | I168: =-IF(OR(LEFT($A168,1)="F",LEFT($A168,1)="E"),IF(ISNA(SUMIF(FinData,$A168,FinPYData)),0,SUMIF(FinData,$A168,FinPYData)),IF(ISNA(SUMIF(TBData,$A168&"*",TBPYData)),0,SUMIF(TBData,$A168&"*",TBPYData))-IF(LEFT($A168,1)="I",IF(ISNA(SUMIF(FinData,"E"&MID($A168,2,LEN($A168)-2)&"G*",FinPYData)),0,SUMIF(FinData,"E"&MID($A168,2,LEN($A168)-2)&"G*",FinPYData)),IF(ISNA(SUMIF(FinData,"F"&MID($A168,2,LEN($A168)-2)&"G*",FinPYData)),0,SUMIF(FinData,"F"&MID($A168,2,LEN($A168)-2)&"G*",FinPYData)))) -> -104050
A169: I-0303G | B169: =IF(OR(LEFT($A169,1)="F",LEFT($A169,1)="E"),IF(ISNA(VLOOKUP($A169,FinData,COLUMN(FinInfo!$C$4)-1,0)),"Add to FinInfo sheet!",VLOOKUP($A169,FinData,COLUMN(FinInfo!$C$4)-1,0)),IF(ISNA(VLOOKUP($A169,ClassAll,COLUMN(Classes!$B$4),0)),"No class!",VLOOKUP($A169,ClassAll,COLUMN(Classes!$B$4),0))) -> Bank charges | G169: =-IF(OR(LEFT($A169,1)="F",LEFT($A169,1)="E"),IF(ISNA(SUMIF(FinData,$A169,FinCYData)),0,SUMIF(FinData,$A169,FinCYData)),IF(ISNA(SUMIF(TBData,$A169&"*",TBCYData)),0,SUMIF(TBData,$A169&"*",TBCYData))-IF(LEFT($A169,1)="I",IF(ISNA(SUMIF(FinData,"E"&MID($A169,2,LEN($A169)-2)&"G*",FinCYData)),0,SUMIF(FinData,"E"&MID($A169,2,LEN($A169)-2)&"G*",FinCYData)),IF(ISNA(SUMIF(FinData,"F"&MID($A169,2,LEN($A169)-2)&"G*",FinCYData)),0,SUMIF(FinData,"F"&MID($A169,2,LEN($A169)-2)&"G*",FinCYData)))) -> -1180 | I169: =-IF(OR(LEFT($A169,1)="F",LEFT($A169,1)="E"),IF(ISNA(SUMIF(FinData,$A169,FinPYData)),0,SUMIF(FinData,$A169,FinPYData)),IF(ISNA(SUMIF(TBData,$A169&"*",TBPYData)),0,SUMIF(TBData,$A169&"*",TBPYData))-IF(LEFT($A169,1)="I",IF(ISNA(SUMIF(FinData,"E"&MID($A169,2,LEN($A169)-2)&"G*",FinPYData)),0,SUMIF(FinData,"E"&MID($A169,2,LEN($A169)-2)&"G*",FinPYData)),IF(ISNA(SUMIF(FinData,"F"&MID($A169,2,LEN($A169)-2)&"G*",FinPYData)),0,SUMIF(FinData,"F"&MID($A169,2,LEN($A169)-2)&"G*",FinPYData)))) -> -935
A170: I-0304G | B170: =IF(OR(LEFT($A170,1)="F",LEFT($A170,1)="E"),IF(ISNA(VLOOKUP($A170,FinData,COLUMN(FinInfo!$C$4)-1,0)),"Add to FinInfo sheet!",VLOOKUP($A170,FinData,COLUMN(FinInfo!$C$4)-1,0)),IF(ISNA(VLOOKUP($A170,ClassAll,COLUMN(Classes!$B$4),0)),"No class!",VLOOKUP($A170,ClassAll,COLUMN(Classes!$B$4),0))) -> Commission | G170: =-IF(OR(LEFT($A170,1)="F",LEFT($A170,1)="E"),IF(ISNA(SUMIF(FinData,$A170,FinCYData)),0,SUMIF(FinData,$A170,FinCYData)),IF(ISNA(SUMIF(TBData,$A170&"*",TBCYData)),0,SUMIF(TBData,$A170&"*",TBCYData))-IF(LEFT($A170,1)="I",IF(ISNA(SUMIF(FinData,"E"&MID($A170,2,LEN($A170)-2)&"G*",FinCYData)),0,SUMIF(FinData,"E"&MID($A170,2,LEN($A170)-2)&"G*",FinCYData)),IF(ISNA(SUMIF(FinData,"F"&MID($A170,2,LEN($A170)-2)&"G*",FinCYData)),0,SUMIF(FinData,"F"&MID($A170,2,LEN($A170)-2)&"G*",FinCYData)))) -> -27850 | I170: =-IF(OR(LEFT($A170,1)="F",LEFT($A170,1)="E"),IF(ISNA(SUMIF(FinData,$A170,FinPYData)),0,SUMIF(FinData,$A170,FinPYData)),IF(ISNA(SUMIF(TBData,$A170&"*",TBPYData)),0,SUMIF(TBData,$A170&"*",TBPYData))-IF(LEFT($A170,1)="I",IF(ISNA(SUMIF(FinData,"E"&MID($A170,2,LEN($A170)-2)&"G*",FinPYData)),0,SUMIF(FinData,"E"&MID($A170,2,LEN($A170)-2)&"G*",FinPYData)),IF(ISNA(SUMIF(FinData,"F"&MID($A170,2,LEN($A170)-2)&"G*",FinPYData)),0,SUMIF(FinData,"F"&MID($A170,2,LEN($A170)-2)&"G*",FinPYData)))) -> -22120
A171: I-0305G | B171: =IF(OR(LEFT($A171,1)="F",LEFT($A171,1)="E"),IF(ISNA(VLOOKUP($A171,FinData,COLUMN(FinInfo!$C$4)-1,0)),"Add to FinInfo sheet!",VLOOKUP($A171,FinData,COLUMN(FinInfo!$C$4)-1,0)),IF(ISNA(VLOOKUP($A171,ClassAll,COLUMN(Classes!$B$4),0)),"No class!",VLOOKUP($A171,ClassAll,COLUMN(Classes!$B$4),0))) -> Computer expenses | G171: =-IF(OR(LEFT($A171,1)="F",LEFT($A171,1)="E"),IF(ISNA(SUMIF(FinData,$A171,FinCYData)),0,SUMIF(FinData,$A171,FinCYData)),IF(ISNA(SUMIF(TBData,$A171&"*",TBCYData)),0,SUMIF(TBData,$A171&"*",TBCYData))-IF(LEFT($A171,1)="I",IF(ISNA(SUMIF(FinData,"E"&MID($A171,2,LEN($A171)-2)&"G*",FinCYData)),0,SUMIF(FinData,"E"&MID($A171,2,LEN($A171)-2)&"G*",FinCYData)),IF(ISNA(SUMIF(FinData,"F"&MID($A171,2,LEN($A171)-2)&"G*",FinCYData)),0,SUMIF(FinData,"F"&MID($A171,2,LEN($A171)-2)&"G*",FinCYData)))) -> -3477 | I171: =-IF(OR(LEFT($A171,1)="F",LEFT($A171,1)="E"),IF(ISNA(SUMIF(FinData,$A171,FinPYData)),0,SUMIF(FinData,$A171,FinPYData)),IF(ISNA(SUMIF(TBData,$A171&"*",TBPYData)),0,SUMIF(TBData,$A171&"*",TBPYData))-IF(LEFT($A171,1)="I",IF(ISNA(SUMIF(FinData,"E"&MID($A171,2,LEN($A171)-2)&"G*",FinPYData)),0,SUMIF(FinData,"E"&MID($A171,2,LEN($A171)-2)&"G*",FinPYData)),IF(ISNA(SUMIF(FinData,"F"&MID($A171,2,LEN($A171)-2)&"G*",FinPYData)),0,SUMIF(FinData,"F"&MID($A171,2,LEN($A171)-2)&"G*",FinPYData)))) -> -7210
A172: I-0306G | B172: =IF(OR(LEFT($A172,1)="F",LEFT($A172,1)="E"),IF(ISNA(VLOOKUP($A172,FinData,COLUMN(FinInfo!$C$4)-1,0)),"Add to FinInfo sheet!",VLOOKUP($A172,FinData,COLUMN(FinInfo!$C$4)-1,0)),IF(ISNA(VLOOKUP($A172,ClassAll,COLUMN(Classes!$B$4),0)),"No class!",VLOOKUP($A172,ClassAll,COLUMN(Classes!$B$4),0))) -> Consumables & cleaning | G172: =-IF(OR(LEFT($A172,1)="F",LEFT($A172,1)="E"),IF(ISNA(SUMIF(FinData,$A172,FinCYData)),0,SUMIF(FinData,$A172,FinCYData)),IF(ISNA(SUMIF(TBData,$A172&"*",TBCYData)),0,SUMIF(TBData,$A172&"*",TBCYData))-IF(LEFT($A172,1)="I",IF(ISNA(SUMIF(FinData,"E"&MID($A172,2,LEN($A172)-2)&"G*",FinCYData)),0,SUMIF(FinData,"E"&MID($A172,2,LEN($A172)-2)&"G*",FinCYData)),IF(ISNA(SUMIF(FinData,"F"&MID($A172,2,LEN($A172)-2)&"G*",FinCYData)),0,SUMIF(FinData,"F"&MID($A172,2,LEN($A172)-2)&"G*",FinCYData)))) -> -2500 | I172: =-IF(OR(LEFT($A172,1)="F",LEFT($A172,1)="E"),IF(ISNA(SUMIF(FinData,$A172,FinPYData)),0,SUMIF(FinData,$A172,FinPYData)),IF(ISNA(SUMIF(TBData,$A172&"*",TBPYData)),0,SUMIF(TBData,$A172&"*",TBPYData))-IF(LEFT($A172,1)="I",IF(ISNA(SUMIF(FinData,"E"&MID($A172,2,LEN($A172)-2)&"G*",FinPYData)),0,SUMIF(FinData,"E"&MID($A172,2,LEN($A172)-2)&"G*",FinPYData)),IF(ISNA(SUMIF(FinData,"F"&MID($A172,2,LEN($A172)-2)&"G*",FinPYData)),0,SUMIF(FinData,"F"&MID($A172,2,LEN($A172)-2)&"G*",FinPYData)))) -> -2000
A173: I-0501G | B173: =IF(OR(LEFT($A173,1)="F",LEFT($A173,1)="E"),IF(ISNA(VLOOKUP($A173,FinData,COLUMN(FinInfo!$C$4)-1,0)),"Add to FinInfo sheet!",VLOOKUP($A173,FinData,COLUMN(FinInfo!$C$4)-1,0)),IF(ISNA(VLOOKUP($A173,ClassAll,COLUMN(Classes!$B$4),0)),"No class!",VLOOKUP($A173,ClassAll,COLUMN(Classes!$B$4),0))) -> Depreciation on property, plant & equipment | G173: =-IF(OR(LEFT($A173,1)="F",LEFT($A173,1)="E"),IF(ISNA(SUMIF(FinData,$A173,FinCYData)),0,SUMIF(FinData,$A173,FinCYData)),IF(ISNA(SUMIF(TBData,$A173&"*",TBCYData)),0,SUMIF(TBData,$A173&"*",TBCYData))-IF(LEFT($A173,1)="I",IF(ISNA(SUMIF(FinData,"E"&MID($A173,2,LEN($A173)-2)&"G*",FinCYData)),0,SUMIF(FinData,"E"&MID($A173,2,LEN($A173)-2)&"G*",FinCYData)),IF(ISNA(SUMIF(FinData,"F"&MID($A173,2,LEN($A173)-2)&"G*",FinCYData)),0,SUMIF(FinData,"F"&MID($A173,2,LEN($A173)-2)&"G*",FinCYData)))) -> -513280 | I173: =-IF(OR(LEFT($A173,1)="F",LEFT($A173,1)="E"),IF(ISNA(SUMIF(FinData,$A173,FinPYData)),0,SUMIF(FinData,$A173,FinPYData)),IF(ISNA(SUMIF(TBData,$A173&"*",TBPYData)),0,SUMIF(TBData,$A173&"*",TBPYData))-IF(LEFT($A173,1)="I",IF(ISNA(SUMIF(FinData,"E"&MID($A173,2,LEN($A173)-2)&"G*",FinPYData)),0,SUMIF(FinData,"E"&MID($A173,2,LEN($A173)-2)&"G*",FinPYData)),IF(ISNA(SUMIF(FinData,"F"&MID($A173,2,LEN($A173)-2)&"G*",FinPYData)),0,SUMIF(FinData,"F"&MID($A173,2,LEN($A173)-2)&"G*",FinPYData)))) -> -550300
A174: I-0307G | B174: =IF(OR(LEFT($A174,1)="F",LEFT($A174,1)="E"),IF(ISNA(VLOOKUP($A174,FinData,COLUMN(FinInfo!$C$4)-1,0)),"Add to FinInfo sheet!",VLOOKUP($A174,FinData,COLUMN(FinInfo!$C$4)-1,0)),IF(ISNA(VLOOKUP($A174,ClassAll,COLUMN(Classes!$B$4),0)),"No class!",VLOOKUP($A174,ClassAll,COLUMN(Classes!$B$4),0))) -> Entertainment | G174: =-IF(OR(LEFT($A174,1)="F",LEFT($A174,1)="E"),IF(ISNA(SUMIF(FinData,$A174,FinCYData)),0,SUMIF(FinData,$A174,FinCYData)),IF(ISNA(SUMIF(TBData,$A174&"*",TBCYData)),0,SUMIF(TBData,$A174&"*",TBCYData))-IF(LEFT($A174,1)="I",IF(ISNA(SUMIF(FinData,"E"&MID($A174,2,LEN($A174)-2)&"G*",FinCYData)),0,SUMIF(FinData,"E"&MID($A174,2,LEN($A174)-2)&"G*",FinCYData)),IF(ISNA(SUMIF(FinData,"F"&MID($A174,2,LEN($A174)-2)&"G*",FinCYData)),0,SUMIF(FinData,"F"&MID($A174,2,LEN($A174)-2)&"G*",FinCYData)))) -> -12420 | I174: =-IF(OR(LEFT($A174,1)="F",LEFT($A174,1)="E"),IF(ISNA(SUMIF(FinData,$A174,FinPYData)),0,SUMIF(FinData,$A174,FinPYData)),IF(ISNA(SUMIF(TBData,$A174&"*",TBPYData)),0,SUMIF(TBData,$A174&"*",TBPYData))-IF(LEFT($A174,1)="I",IF(ISNA(SUMIF(FinData,"E"&MID($A174,2,LEN($A174)-2)&"G*",FinPYData)),0,SUMIF(FinData,"E"&MID($A174,2,LEN($A174)-2)&"G*",FinPYData)),IF(ISNA(SUMIF(FinData,"F"&MID($A174,2,LEN($A174)-2)&"G*",FinPYData)),0,SUMIF(FinData,"F"&MID($A174,2,LEN($A174)-2)&"G*",FinPYData)))) -> -10875
A175: I-0308G | B175: =IF(OR(LEFT($A175,1)="F",LEFT($A175,1)="E"),IF(ISNA(VLOOKUP($A175,FinData,COLUMN(FinInfo!$C$4)-1,0)),"Add to FinInfo sheet!",VLOOKUP($A175,FinData,COLUMN(FinInfo!$C$4)-1,0)),IF(ISNA(VLOOKUP($A175,ClassAll,COLUMN(Classes!$B$4),0)),"No class!",VLOOKUP($A175,ClassAll,COLUMN(Classes!$B$4),0))) -> Insurance | G175: =-IF(OR(LEFT($A175,1)="F",LEFT($A175,1)="E"),IF(ISNA(SUMIF(FinData,$A175,FinCYData)),0,SUMIF(FinData,$A175,FinCYData)),IF(ISNA(SUMIF(TBData,$A175&"*",TBCYData)),0,SUMIF(TBData,$A175&"*",TBCYData))-IF(LEFT($A175,1)="I",IF(ISNA(SUMIF(FinData,"E"&MID($A175,2,LEN($A175)-2)&"G*",FinCYData)),0,SUMIF(FinData,"E"&MID($A175,2,LEN($A175)-2)&"G*",FinCYData)),IF(ISNA(SUMIF(FinData,"F"&MID($A175,2,LEN($A175)-2)&"G*",FinCYData)),0,SUMIF(FinData,"F"&MID($A175,2,LEN($A175)-2)&"G*",FinCYData)))) -> -3840 | I175: =-IF(OR(LEFT($A175,1)="F",LEFT($A175,1)="E"),IF(ISNA(SUMIF(FinData,$A175,FinPYData)),0,SUMIF(FinData,$A175,FinPYData)),IF(ISNA(SUMIF(TBData,$A175&"*",TBPYData)),0,SUMIF(TBData,$A175&"*",TBPYData))-IF(LEFT($A175,1)="I",IF(ISNA(SUMIF(FinData,"E"&MID($A175,2,LEN($A175)-2)&"G*",FinPYData)),0,SUMIF(FinData,"E"&MID($A175,2,LEN($A175)-2)&"G*",FinPYData)),IF(ISNA(SUMIF(FinData,"F"&MID($A175,2,LEN($A175)-2)&"G*",FinPYData)),0,SUMIF(FinData,"F"&MID($A175,2,LEN($A175)-2)&"G*",FinPYData)))) -> -3420
A176: I-0309G | B176: =IF(OR(LEFT($A176,1)="F",LEFT($A176,1)="E"),IF(ISNA(VLOOKUP($A176,FinData,COLUMN(FinInfo!$C$4)-1,0)),"Add to FinInfo sheet!",VLOOKUP($A176,FinData,COLUMN(FinInfo!$C$4)-1,0)),IF(ISNA(VLOOKUP($A176,ClassAll,COLUMN(Classes!$B$4),0)),"No class!",VLOOKUP($A176,ClassAll,COLUMN(Classes!$B$4),0))) -> Office expenses | G176: =-IF(OR(LEFT($A176,1)="F",LEFT($A176,1)="E"),IF(ISNA(SUMIF(FinData,$A176,FinCYData)),0,SUMIF(FinData,$A176,FinCYData)),IF(ISNA(SUMIF(TBData,$A176&"*",TBCYData)),0,SUMIF(TBData,$A176&"*",TBCYData))-IF(LEFT($A176,1)="I",IF(ISNA(SUMIF(FinData,"E"&MID($A176,2,LEN($A176)-2)&"G*",FinCYData)),0,SUMIF(FinData,"E"&MID($A176,2,LEN($A176)-2)&"G*",FinCYData)),IF(ISNA(SUMIF(FinData,"F"&MID($A176,2,LEN($A176)-2)&"G*",FinCYData)),0,SUMIF(FinData,"F"&MID($A176,2,LEN($A176)-2)&"G*",FinCYData)))) -> -996 | I176: =-IF(OR(LEFT($A176,1)="F",LEFT($A176,1)="E"),IF(ISNA(SUMIF(FinData,$A176,FinPYData)),0,SUMIF(FinData,$A176,FinPYData)),IF(ISNA(SUMIF(TBData,$A176&"*",TBPYData)),0,SUMIF(TBData,$A176&"*",TBPYData))-IF(LEFT($A176,1)="I",IF(ISNA(SUMIF(FinData,"E"&MID($A176,2,LEN($A176)-2)&"G*",FinPYData)),0,SUMIF(FinData,"E"&MID($A176,2,LEN($A176)-2)&"G*",FinPYData)),IF(ISNA(SUMIF(FinData,"F"&MID($A176,2,LEN($A176)-2)&"G*",FinPYData)),0,SUMIF(FinData,"F"&MID($A176,2,LEN($A176)-2)&"G*",FinPYData)))) -> -660
A177: I-0310G | B177: =IF(OR(LEFT($A177,1)="F",LEFT($A177,1)="E"),IF(ISNA(VLOOKUP($A177,FinData,COLUMN(FinInfo!$C$4)-1,0)),"Add to FinInfo sheet!",VLOOKUP($A177,FinData,COLUMN(FinInfo!$C$4)-1,0)),IF(ISNA(VLOOKUP($A177,ClassAll,COLUMN(Classes!$B$4),0)),"No class!",VLOOKUP($A177,ClassAll,COLUMN(Classes!$B$4),0))) -> Office rent | G177: =-IF(OR(LEFT($A177,1)="F",LEFT($A177,1)="E"),IF(ISNA(SUMIF(FinData,$A177,FinCYData)),0,SUMIF(FinData,$A177,FinCYData)),IF(ISNA(SUMIF(TBData,$A177&"*",TBCYData)),0,SUMIF(TBData,$A177&"*",TBCYData))-IF(LEFT($A177,1)="I",IF(ISNA(SUMIF(FinData,"E"&MID($A177,2,LEN($A177)-2)&"G*",FinCYData)),0,SUMIF(FinData,"E"&MID($A177,2,LEN($A177)-2)&"G*",FinCYData)),IF(ISNA(SUMIF(FinData,"F"&MID($A177,2,LEN($A177)-2)&"G*",FinCYData)),0,SUMIF(FinData,"F"&MID($A177,2,LEN($A177)-2)&"G*",FinCYData)))) -> -144000 | I177: =-IF(OR(LEFT($A177,1)="F",LEFT($A177,1)="E"),IF(ISNA(SUMIF(FinData,$A177,FinPYData)),0,SUMIF(FinData,$A177,FinPYData)),IF(ISNA(SUMIF(TBData,$A177&"*",TBPYData)),0,SUMIF(TBData,$A177&"*",TBPYData))-IF(LEFT($A177,1)="I",IF(ISNA(SUMIF(FinData,"E"&MID($A177,2,LEN($A177)-2)&"G*",FinPYData)),0,SUMIF(FinData,"E"&MID($A177,2,LEN($A177)-2)&"G*",FinPYData)),IF(ISNA(SUMIF(FinData,"F"&MID($A177,2,LEN($A177)-2)&"G*",FinPYData)),0,SUMIF(FinData,"F"&MID($A177,2,LEN($A177)-2)&"G*",FinPYData)))) -> -120000
A178: I-0311G | B178: =IF(OR(LEFT($A178,1)="F",LEFT($A178,1)="E"),IF(ISNA(VLOOKUP($A178,FinData,COLUMN(FinInfo!$C$4)-1,0)),"Add to FinInfo sheet!",VLOOKUP($A178,FinData,COLUMN(FinInfo!$C$4)-1,0)),IF(ISNA(VLOOKUP($A178,ClassAll,COLUMN(Classes!$B$4),0)),"No class!",VLOOKUP($A178,ClassAll,COLUMN(Classes!$B$4),0))) -> Postage | G178: =-IF(OR(LEFT($A178,1)="F",LEFT($A178,1)="E"),IF(ISNA(SUMIF(FinData,$A178,FinCYData)),0,SUMIF(FinData,$A178,FinCYData)),IF(ISNA(SUMIF(TBData,$A178&"*",TBCYData)),0,SUMIF(TBData,$A178&"*",TBCYData))-IF(LEFT($A178,1)="I",IF(ISNA(SUMIF(FinData,"E"&MID($A178,2,LEN($A178)-2)&"G*",FinCYData)),0,SUMIF(FinData,"E"&MID($A178,2,LEN($A178)-2)&"G*",FinCYData)),IF(ISNA(SUMIF(FinData,"F"&MID($A178,2,LEN($A178)-2)&"G*",FinCYData)),0,SUMIF(FinData,"F"&MID($A178,2,LEN($A178)-2)&"G*",FinCYData)))) -> -524 | I178: =-IF(OR(LEFT($A178,1)="F",LEFT($A178,1)="E"),IF(ISNA(SUMIF(FinData,$A178,FinPYData)),0,SUMIF(FinData,$A178,FinPYData)),IF(ISNA(SUMIF(TBData,$A178&"*",TBPYData)),0,SUMIF(TBData,$A178&"*",TBPYData))-IF(LEFT($A178,1)="I",IF(ISNA(SUMIF(FinData,"E"&MID($A178,2,LEN($A178)-2)&"G*",FinPYData)),0,SUMIF(FinData,"E"&MID($A178,2,LEN($A178)-2)&"G*",FinPYData)),IF(ISNA(SUMIF(FinData,"F"&MID($A178,2,LEN($A178)-2)&"G*",FinPYData)),0,SUMIF(FinData,"F"&MID($A178,2,LEN($A178)-2)&"G*",FinPYData)))) -> -452
A179: I-0312G | B179: =IF(OR(LEFT($A179,1)="F",LEFT($A179,1)="E"),IF(ISNA(VLOOKUP($A179,FinData,COLUMN(FinInfo!$C$4)-1,0)),"Add to FinInfo sheet!",VLOOKUP($A179,FinData,COLUMN(FinInfo!$C$4)-1,0)),IF(ISNA(VLOOKUP($A179,ClassAll,COLUMN(Classes!$B$4),0)),"No class!",VLOOKUP($A179,ClassAll,COLUMN(Classes!$B$4),0))) -> Professional & legal fees | G179: =-IF(OR(LEFT($A179,1)="F",LEFT($A179,1)="E"),IF(ISNA(SUMIF(FinData,$A179,FinCYData)),0,SUMIF(FinData,$A179,FinCYData)),IF(ISNA(SUMIF(TBData,$A179&"*",TBCYData)),0,SUMIF(TBData,$A179&"*",TBCYData))-IF(LEFT($A179,1)="I",IF(ISNA(SUMIF(FinData,"E"&MID($A179,2,LEN($A179)-2)&"G*",FinCYData)),0,SUMIF(FinData,"E"&MID($A179,2,LEN($A179)-2)&"G*",FinCYData)),IF(ISNA(SUMIF(FinData,"F"&MID($A179,2,LEN($A179)-2)&"G*",FinCYData)),0,SUMIF(FinData,"F"&MID($A179,2,LEN($A179)-2)&"G*",FinCYData)))) -> -5652 | I179: =-IF(OR(LEFT($A179,1)="F",LEFT($A179,1)="E"),IF(ISNA(SUMIF(FinData,$A179,FinPYData)),0,SUMIF(FinData,$A179,FinPYData)),IF(ISNA(SUMIF(TBData,$A179&"*",TBPYData)),0,SUMIF(TBData,$A179&"*",TBPYData))-IF(LEFT($A179,1)="I",IF(ISNA(SUMIF(FinData,"E"&MID($A179,2,LEN($A179)-2)&"G*",FinPYData)),0,SUMIF(FinData,"E"&MID($A179,2,LEN($A179)-2)&"G*",FinPYData)),IF(ISNA(SUMIF(FinData,"F"&MID($A179,2,LEN($A179)-2)&"G*",FinPYData)),0,SUMIF(FinData,"F"&MID($A179,2,LEN($A179)-2)&"G*",FinPYData)))) -> -36250
A180: I-0401G | B180: =IF(OR(LEFT($A180,1)="F",LEFT($A180,1)="E"),IF(ISNA(VLOOKUP($A180,FinData,COLUMN(FinInfo!$C$4)-1,0)),"Add to FinInfo sheet!",VLOOKUP($A180,FinData,COLUMN(FinInfo!$C$4)-1,0)),IF(ISNA(VLOOKUP($A180,ClassAll,COLUMN(Classes!$B$4),0)),"No class!",VLOOKUP($A180,ClassAll,COLUMN(Classes!$B$4),0))) -> Salaries & wages | G180: =-IF(OR(LEFT($A180,1)="F",LEFT($A180,1)="E"),IF(ISNA(SUMIF(FinData,$A180,FinCYData)),0,SUMIF(FinData,$A180,FinCYData)),IF(ISNA(SUMIF(TBData,$A180&"*",TBCYData)),0,SUMIF(TBData,$A180&"*",TBCYData))-IF(LEFT($A180,1)="I",IF(ISNA(SUMIF(FinData,"E"&MID($A180,2,LEN($A180)-2)&"G*",FinCYData)),0,SUMIF(FinData,"E"&MID($A180,2,LEN($A180)-2)&"G*",FinCYData)),IF(ISNA(SUMIF(FinData,"F"&MID($A180,2,LEN($A180)-2)&"G*",FinCYData)),0,SUMIF(FinData,"F"&MID($A180,2,LEN($A180)-2)&"G*",FinCYData)))) -> -1234320 | I180: =-IF(OR(LEFT($A180,1)="F",LEFT($A180,1)="E"),IF(ISNA(SUMIF(FinData,$A180,FinPYData)),0,SUMIF(FinData,$A180,FinPYData)),IF(ISNA(SUMIF(TBData,$A180&"*",TBPYData)),0,SUMIF(TBData,$A180&"*",TBPYData))-IF(LEFT($A180,1)="I",IF(ISNA(SUMIF(FinData,"E"&MID($A180,2,LEN($A180)-2)&"G*",FinPYData)),0,SUMIF(FinData,"E"&MID($A180,2,LEN($A180)-2)&"G*",FinPYData)),IF(ISNA(SUMIF(FinData,"F"&MID($A180,2,LEN($A180)-2)&"G*",FinPYData)),0,SUMIF(FinData,"F"&MID($A180,2,LEN($A180)-2)&"G*",FinPYData)))) -> -870140
A181: I-0313G | B181: =IF(OR(LEFT($A181,1)="F",LEFT($A181,1)="E"),IF(ISNA(VLOOKUP($A181,FinData,COLUMN(FinInfo!$C$4)-1,0)),"Add to FinInfo sheet!",VLOOKUP($A181,FinData,COLUMN(FinInfo!$C$4)-1,0)),IF(ISNA(VLOOKUP($A181,ClassAll,COLUMN(Classes!$B$4),0)),"No class!",VLOOKUP($A181,ClassAll,COLUMN(Classes!$B$4),0))) -> Stationery | G181: =-IF(OR(LEFT($A181,1)="F",LEFT($A181,1)="E"),IF(ISNA(SUMIF(FinData,$A181,FinCYData)),0,SUMIF(FinData,$A181,FinCYData)),IF(ISNA(SUMIF(TBData,$A181&"*",TBCYData)),0,SUMIF(TBData,$A181&"*",TBCYData))-IF(LEFT($A181,1)="I",IF(ISNA(SUMIF(FinData,"E"&MID($A181,2,LEN($A181)-2)&"G*",FinCYData)),0,SUMIF(FinData,"E"&MID($A181,2,LEN($A181)-2)&"G*",FinCYData)),IF(ISNA(SUMIF(FinData,"F"&MID($A181,2,LEN($A181)-2)&"G*",FinCYData)),0,SUMIF(FinData,"F"&MID($A181,2,LEN($A181)-2)&"G*",FinCYData)))) -> -2491 | I181: =-IF(OR(LEFT($A181,1)="F",LEFT($A181,1)="E"),IF(ISNA(SUMIF(FinData,$A181,FinPYData)),0,SUMIF(FinData,$A181,FinPYData)),IF(ISNA(SUMIF(TBData,$A181&"*",TBPYData)),0,SUMIF(TBData,$A181&"*",TBPYData))-IF(LEFT($A181,1)="I",IF(ISNA(SUMIF(FinData,"E"&MID($A181,2,LEN($A181)-2)&"G*",FinPYData)),0,SUMIF(FinData,"E"&MID($A181,2,LEN($A181)-2)&"G*",FinPYData)),IF(ISNA(SUMIF(FinData,"F"&MID($A181,2,LEN($A181)-2)&"G*",FinPYData)),0,SUMIF(FinData,"F"&MID($A181,2,LEN($A181)-2)&"G*",FinPYData)))) -> -1257
A182: I-0314G | B182: =IF(OR(LEFT($A182,1)="F",LEFT($A182,1)="E"),IF(ISNA(VLOOKUP($A182,FinData,COLUMN(FinInfo!$C$4)-1,0)),"Add to FinInfo sheet!",VLOOKUP($A182,FinData,COLUMN(FinInfo!$C$4)-1,0)),IF(ISNA(VLOOKUP($A182,ClassAll,COLUMN(Classes!$B$4),0)),"No class!",VLOOKUP($A182,ClassAll,COLUMN(Classes!$B$4),0))) -> Subscriptions & memberships | G182: =-IF(OR(LEFT($A182,1)="F",LEFT($A182,1)="E"),IF(ISNA(SUMIF(FinData,$A182,FinCYData)),0,SUMIF(FinData,$A182,FinCYData)),IF(ISNA(SUMIF(TBData,$A182&"*",TBCYData)),0,SUMIF(TBData,$A182&"*",TBCYData))-IF(LEFT($A182,1)="I",IF(ISNA(SUMIF(FinData,"E"&MID($A182,2,LEN($A182)-2)&"G*",FinCYData)),0,SUMIF(FinData,"E"&MID($A182,2,LEN($A182)-2)&"G*",FinCYData)),IF(ISNA(SUMIF(FinData,"F"&MID($A182,2,LEN($A182)-2)&"G*",FinCYData)),0,SUMIF(FinData,"F"&MID($A182,2,LEN($A182)-2)&"G*",FinCYData)))) -> -5200 | I182: =-IF(OR(LEFT($A182,1)="F",LEFT($A182,1)="E"),IF(ISNA(SUMIF(FinData,$A182,FinPYData)),0,SUMIF(FinData,$A182,FinPYData)),IF(ISNA(SUMIF(TBData,$A182&"*",TBPYData)),0,SUMIF(TBData,$A182&"*",TBPYData))-IF(LEFT($A182,1)="I",IF(ISNA(SUMIF(FinData,"E"&MID($A182,2,LEN($A182)-2)&"G*",FinPYData)),0,SUMIF(FinData,"E"&MID($A182,2,LEN($A182)-2)&"G*",FinPYData)),IF(ISNA(SUMIF(FinData,"F"&MID($A182,2,LEN($A182)-2)&"G*",FinPYData)),0,SUMIF(FinData,"F"&MID($A182,2,LEN($A182)-2)&"G*",FinPYData)))) -> -4800
A183: I-0315G | B183: =IF(OR(LEFT($A183,1)="F",LEFT($A183,1)="E"),IF(ISNA(VLOOKUP($A183,FinData,COLUMN(FinInfo!$C$4)-1,0)),"Add to FinInfo sheet!",VLOOKUP($A183,FinData,COLUMN(FinInfo!$C$4)-1,0)),IF(ISNA(VLOOKUP($A183,ClassAll,COLUMN(Classes!$B$4),0)),"No class!",VLOOKUP($A183,ClassAll,COLUMN(Classes!$B$4),0))) -> Telephone & internet | G183: =-IF(OR(LEFT($A183,1)="F",LEFT($A183,1)="E"),IF(ISNA(SUMIF(FinData,$A183,FinCYData)),0,SUMIF(FinData,$A183,FinCYData)),IF(ISNA(SUMIF(TBData,$A183&"*",TBCYData)),0,SUMIF(TBData,$A183&"*",TBCYData))-IF(LEFT($A183,1)="I",IF(ISNA(SUMIF(FinData,"E"&MID($A183,2,LEN($A183)-2)&"G*",FinCYData)),0,SUMIF(FinData,"E"&MID($A183,2,LEN($A183)-2)&"G*",FinCYData)),IF(ISNA(SUMIF(FinData,"F"&MID($A183,2,LEN($A183)-2)&"G*",FinCYData)),0,SUMIF(FinData,"F"&MID($A183,2,LEN($A183)-2)&"G*",FinCYData)))) -> -8867 | I183: =-IF(OR(LEFT($A183,1)="F",LEFT($A183,1)="E"),IF(ISNA(SUMIF(FinData,$A183,FinPYData)),0,SUMIF(FinData,$A183,FinPYData)),IF(ISNA(SUMIF(TBData,$A183&"*",TBPYData)),0,SUMIF(TBData,$A183&"*",TBPYData))-IF(LEFT($A183,1)="I",IF(ISNA(SUMIF(FinData,"E"&MID($A183,2,LEN($A183)-2)&"G*",FinPYData)),0,SUMIF(FinData,"E"&MID($A183,2,LEN($A183)-2)&"G*",FinPYData)),IF(ISNA(SUMIF(FinData,"F"&MID($A183,2,LEN($A183)-2)&"G*",FinPYData)),0,SUMIF(FinData,"F"&MID($A183,2,LEN($A183)-2)&"G*",FinPYData)))) -> -7504
A184: I-0316G | B184: =IF(OR(LEFT($A184,1)="F",LEFT($A184,1)="E"),IF(ISNA(VLOOKUP($A184,FinData,COLUMN(FinInfo!$C$4)-1,0)),"Add to FinInfo sheet!",VLOOKUP($A184,FinData,COLUMN(FinInfo!$C$4)-1,0)),IF(ISNA(VLOOKUP($A184,ClassAll,COLUMN(Classes!$B$4),0)),"No class!",VLOOKUP($A184,ClassAll,COLUMN(Classes!$B$4),0))) -> Training | G184: =-IF(OR(LEFT($A184,1)="F",LEFT($A184,1)="E"),IF(ISNA(SUMIF(FinData,$A184,FinCYData)),0,SUMIF(FinData,$A184,FinCYData)),IF(ISNA(SUMIF(TBData,$A184&"*",TBCYData)),0,SUMIF(TBData,$A184&"*",TBCYData))-IF(LEFT($A184,1)="I",IF(ISNA(SUMIF(FinData,"E"&MID($A184,2,LEN($A184)-2)&"G*",FinCYData)),0,SUMIF(FinData,"E"&MID($A184,2,LEN($A184)-2)&"G*",FinCYData)),IF(ISNA(SUMIF(FinData,"F"&MID($A184,2,LEN($A184)-2)&"G*",FinCYData)),0,SUMIF(FinData,"F"&MID($A184,2,LEN($A184)-2)&"G*",FinCYData)))) -> -4043 | I184: =-IF(OR(LEFT($A184,1)="F",LEFT($A184,1)="E"),IF(ISNA(SUMIF(FinData,$A184,FinPYData)),0,SUMIF(FinData,$A184,FinPYData)),IF(ISNA(SUMIF(TBData,$A184&"*",TBPYData)),0,SUMIF(TBData,$A184&"*",TBPYData))-IF(LEFT($A184,1)="I",IF(ISNA(SUMIF(FinData,"E"&MID($A184,2,LEN($A184)-2)&"G*",FinPYData)),0,SUMIF(FinData,"E"&MID($A184,2,LEN($A184)-2)&"G*",FinPYData)),IF(ISNA(SUMIF(FinData,"F"&MID($A184,2,LEN($A184)-2)&"G*",FinPYData)),0,SUMIF(FinData,"F"&MID($A184,2,LEN($A184)-2)&"G*",FinPYData)))) -> -1521
A185: I-0317G | B185: =IF(OR(LEFT($A185,1)="F",LEFT($A185,1)="E"),IF(ISNA(VLOOKUP($A185,FinData,COLUMN(FinInfo!$C$4)-1,0)),"Add to FinInfo sheet!",VLOOKUP($A185,FinData,COLUMN(FinInfo!$C$4)-1,0)),IF(ISNA(VLOOKUP($A185,ClassAll,COLUMN(Classes!$B$4),0)),"No class!",VLOOKUP($A185,ClassAll,COLUMN(Classes!$B$4),0))) -> Travelling & accommodation | G185: =-IF(OR(LEFT($A185,1)="F",LEFT($A185,1)="E"),IF(ISNA(SUMIF(FinData,$A185,FinCYData)),0,SUMIF(FinData,$A185,FinCYData)),IF(ISNA(SUMIF(TBData,$A185&"*",TBCYData)),0,SUMIF(TBData,$A185&"*",TBCYData))-IF(LEFT($A185,1)="I",IF(ISNA(SUMIF(FinData,"E"&MID($A185,2,LEN($A185)-2)&"G*",FinCYData)),0,SUMIF(FinData,"E"&MID($A185,2,LEN($A185)-2)&"G*",FinCYData)),IF(ISNA(SUMIF(FinData,"F"&MID($A185,2,LEN($A185)-2)&"G*",FinCYData)),0,SUMIF(FinData,"F"&MID($A185,2,LEN($A185)-2)&"G*",FinCYData)))) -> -13705 | I185: =-IF(OR(LEFT($A185,1)="F",LEFT($A185,1)="E"),IF(ISNA(SUMIF(FinData,$A185,FinPYData)),0,SUMIF(FinData,$A185,FinPYData)),IF(ISNA(SUMIF(TBData,$A185&"*",TBPYData)),0,SUMIF(TBData,$A185&"*",TBPYData))-IF(LEFT($A185,1)="I",IF(ISNA(SUMIF(FinData,"E"&MID($A185,2,LEN($A185)-2)&"G*",FinPYData)),0,SUMIF(FinData,"E"&MID($A185,2,LEN($A185)-2)&"G*",FinPYData)),IF(ISNA(SUMIF(FinData,"F"&MID($A185,2,LEN($A185)-2)&"G*",FinPYData)),0,SUMIF(FinData,"F"&MID($A185,2,LEN($A185)-2)&"G*",FinPYData)))) -> -4589
A186: I-0318G | B186: =IF(OR(LEFT($A186,1)="F",LEFT($A186,1)="E"),IF(ISNA(VLOOKUP($A186,FinData,COLUMN(FinInfo!$C$4)-1,0)),"Add to FinInfo sheet!",VLOOKUP($A186,FinData,COLUMN(FinInfo!$C$4)-1,0)),IF(ISNA(VLOOKUP($A186,ClassAll,COLUMN(Classes!$B$4),0)),"No class!",VLOOKUP($A186,ClassAll,COLUMN(Classes!$B$4),0))) -> Utilities | G186: =-IF(OR(LEFT($A186,1)="F",LEFT($A186,1)="E"),IF(ISNA(SUMIF(FinData,$A186,FinCYData)),0,SUMIF(FinData,$A186,FinCYData)),IF(ISNA(SUMIF(TBData,$A186&"*",TBCYData)),0,SUMIF(TBData,$A186&"*",TBCYData))-IF(LEFT($A186,1)="I",IF(ISNA(SUMIF(FinData,"E"&MID($A186,2,LEN($A186)-2)&"G*",FinCYData)),0,SUMIF(FinData,"E"&MID($A186,2,LEN($A186)-2)&"G*",FinCYData)),IF(ISNA(SUMIF(FinData,"F"&MID($A186,2,LEN($A186)-2)&"G*",FinCYData)),0,SUMIF(FinData,"F"&MID($A186,2,LEN($A186)-2)&"G*",FinCYData)))) -> -6540 | I186: =-IF(OR(LEFT($A186,1)="F",LEFT($A186,1)="E"),IF(ISNA(SUMIF(FinData,$A186,FinPYData)),0,SUMIF(FinData,$A186,FinPYData)),IF(ISNA(SUMIF(TBData,$A186&"*",TBPYData)),0,SUMIF(TBData,$A186&"*",TBPYData))-IF(LEFT($A186,1)="I",IF(ISNA(SUMIF(FinData,"E"&MID($A186,2,LEN($A186)-2)&"G*",FinPYData)),0,SUMIF(FinData,"E"&MID($A186,2,LEN($A186)-2)&"G*",FinPYData)),IF(ISNA(SUMIF(FinData,"F"&MID($A186,2,LEN($A186)-2)&"G*",FinPYData)),0,SUMIF(FinData,"F"&MID($A186,2,LEN($A186)-2)&"G*",FinPYData)))) -> -6090
A187: I-08G | B187: =IF(OR(LEFT($A187,1)="F",LEFT($A187,1)="E"),IF(ISNA(VLOOKUP($A187,FinData,COLUMN(FinInfo!$C$4)-1,0)),"Add to FinInfo sheet!",VLOOKUP($A187,FinData,COLUMN(FinInfo!$C$4)-1,0)),IF(ISNA(VLOOKUP($A187,ClassAll,COLUMN(Classes!$B$4),0)),"No class!",VLOOKUP($A187,ClassAll,COLUMN(Classes!$B$4),0))) -> Other expenses | G187: =-IF(OR(LEFT($A187,1)="F",LEFT($A187,1)="E"),IF(ISNA(SUMIF(FinData,$A187,FinCYData)),0,SUMIF(FinData,$A187,FinCYData)),IF(ISNA(SUMIF(TBData,$A187&"*",TBCYData)),0,SUMIF(TBData,$A187&"*",TBCYData))-IF(LEFT($A187,1)="I",IF(ISNA(SUMIF(FinData,"E"&MID($A187,2,LEN($A187)-2)&"G*",FinCYData)),0,SUMIF(FinData,"E"&MID($A187,2,LEN($A187)-2)&"G*",FinCYData)),IF(ISNA(SUMIF(FinData,"F"&MID($A187,2,LEN($A187)-2)&"G*",FinCYData)),0,SUMIF(FinData,"F"&MID($A187,2,LEN($A187)-2)&"G*",FinCYData)))) -> -131622 | I187: =-IF(OR(LEFT($A187,1)="F",LEFT($A187,1)="E"),IF(ISNA(SUMIF(FinData,$A187,FinPYData)),0,SUMIF(FinData,$A187,FinPYData)),IF(ISNA(SUMIF(TBData,$A187&"*",TBPYData)),0,SUMIF(TBData,$A187&"*",TBPYData))-IF(LEFT($A187,1)="I",IF(ISNA(SUMIF(FinData,"E"&MID($A187,2,LEN($A187)-2)&"G*",FinPYData)),0,SUMIF(FinData,"E"&MID($A187,2,LEN($A187)-2)&"G*",FinPYData)),IF(ISNA(SUMIF(FinData,"F"&MID($A187,2,LEN($A187)-2)&"G*",FinPYData)),0,SUMIF(FinData,"F"&MID($A187,2,LEN($A187)-2)&"G*",FinPYData)))) -> -54238
B188: Profit / (Loss) before interest & tax | G188: =SUM(G163,G164,G165) -> 1735112 | I188: =SUM(I163,I164,I165) -> 1480874
B189: Finance costs | E189: =$A$450 -> 4 | G189: =G455 -> -194222 | I189: =I455 -> -212354
B190: Profit / (Loss) before tax | E190: =$A$457 -> 5 | G190: =SUM(G188:G189) -> 1540890 | I190: =SUM(I188:I189) -> 1268520
B191: Income tax expense | E191: =$A$469 -> 6 | G191: =G474 -> -442236 | I191: =I474 -> -263853 | K191: ="control "&$G$158 -> control 2022 | L191: ="control "&$I$158 -> control 2021
B192: Profit / (Loss) for the year | G192: =SUM(G190:G191) -> 1098654 | I192: =SUM(I190:I191) -> 1004667 | K192: =IF(ISNA(SUMIF(TBData,"I-*",TBCYData)),0,SUMIF(TBData,"I-*",TBCYData))+$G$192+$G$194 -> 0 | L192: =IF(ISNA(SUMIF(TBData,"I-*",TBPYData)),0,SUMIF(TBData,"I-*",TBPYData))+$I$192+$I$194 -> 0
A193: B-21G | B193: Retained earnings at start of year | G193: =-IF(ISNA(SUMIF(TBData,$A193&"*",TBPYData)),0,SUMIF(TBData,$A193&"*",TBPYData))-IF(ISNA(SUMIF(TBData,"I-*",TBPYData)),0,SUMIF(TBData,"I-*",TBPYData)) -> 4239805 | I193: =-IF(ISNA(SUMIF(TBData,$A193&"*",TBP2Data)),0,SUMIF(TBData,$A193&"*",TBP2Data))-IF(ISNA(SUMIF(TBData,"I-*",TBP2Data)),0,SUMIF(TBData,"I-*",TBP2Data)) -> 3335138
A194: I-10G | B194: =IF(OR(LEFT($A194,1)="F",LEFT($A194,1)="E"),IF(ISNA(VLOOKUP($A194,FinData,COLUMN(FinInfo!$C$4)-1,0)),"Add to FinInfo sheet!",VLOOKUP($A194,FinData,COLUMN(FinInfo!$C$4)-1,0)),IF(ISNA(VLOOKUP($A194,ClassAll,COLUMN(Classes!$B$4),0)),"No class!",VLOOKUP($A194,ClassAll,COLUMN(Classes!$B$4),0))) -> Dividends paid | G194: =-IF(OR(LEFT($A194,1)="F",LEFT($A194,1)="E"),IF(ISNA(SUMIF(FinData,$A194,FinCYData)),0,SUMIF(FinData,$A194,FinCYData)),IF(ISNA(SUMIF(TBData,$A194&"*",TBCYData)),0,SUMIF(TBData,$A194&"*",TBCYData))-IF(LEFT($A194,1)="I",IF(ISNA(SUMIF(FinData,"E"&MID($A194,2,LEN($A194)-2)&"G*",FinCYData)),0,SUMIF(FinData,"E"&MID($A194,2,LEN($A194)-2)&"G*",FinCYData)),IF(ISNA(SUMIF(FinData,"F"&MID($A194,2,LEN($A194)-2)&"G*",FinCYData)),0,SUMIF(FinData,"F"&MID($A194,2,LEN($A194)-2)&"G*",FinCYData)))) -> -150000 | I194: =-IF(OR(LEFT($A194,1)="F",LEFT($A194,1)="E"),IF(ISNA(SUMIF(FinData,$A194,FinPYData)),0,SUMIF(FinData,$A194,FinPYData)),IF(ISNA(SUMIF(TBData,$A194&"*",TBPYData)),0,SUMIF(TBData,$A194&"*",TBPYData))-IF(LEFT($A194,1)="I",IF(ISNA(SUMIF(FinData,"E"&MID($A194,2,LEN($A194)-2)&"G*",FinPYData)),0,SUMIF(FinData,"E"&MID($A194,2,LEN($A194)-2)&"G*",FinPYData)),IF(ISNA(SUMIF(FinData,"F"&MID($A194,2,LEN($A194)-2)&"G*",FinPYData)),0,SUMIF(FinData,"F"&MID($A194,2,LEN($A194)-2)&"G*",FinPYData)))) -> -100000
B195: Prior year adjustments | G195: =-IF(ISNA(SUMIF(TBData,$A193&"*",TBCYData)),0,SUMIF(TBData,$A193&"*",TBCYData))-G193 -> 0 | I195: =-IF(ISNA(SUMIF(TBData,$A193&"*",TBPYData)),0,SUMIF(TBData,$A193&"*",TBPYData))-I193 -> 0
B196: Retained earnings at end of year | G196: =SUM(G192:G195) -> 5188459 | I196: =SUM(I192:I195) -> 4239805 | K196: =IF($G$193<>$I$196,$G$158&" retained earnings at start of year does not match "&$I$158&" end of year balance","") -> 
B198: =Setup!$A$1 -> Example Limited
B199: Statement of financial position
B200: ="at "&Setup!$F$12 -> at 31 March 2022
E202: Notes | G202: =YEAR(Setup!$B$12) -> 2022 | I202: =$G$158-1 -> 2021 | K202: =$G$158-2 -> 2020
G203: =Setup!$C$6 -> £ | I203: =Setup!$C$6 -> £ | K203: =Setup!$C$6 -> £
B204: ASSETS
B206: Non-current assets
B207: Property, plant & equipment | E207: =$A$491 -> 7 | G207: =I512 -> 3548797 | I207: =C512 -> 3494827 | K207: =K512 -> 3780377
B208: Intangible assets | E208: =$A$518 -> 8 | G208: =I539 -> 624300 | I208: =C539 -> 728350 | K208: =K539 -> 832400
B209: Investments | E209: =$A$543 -> 9 | G209: =G548 -> 2302500 | I209: =I548 -> 1682500 | K209: =K548 -> 300000
B210: Deferred tax asset | E210: =$A$555 -> 10 | G210: =IF(I$564<0,-I$564,0) -> 33790 | I210: =IF(E$564<0,-E$564,0) -> 0 | K210: =IF(K$564<0,-K$564,0) -> 47278
G211: =SUM(OFFSET(G206,0,0,ROW($B211)-ROW($B206),1)) -> 6509387 | I211: =SUM(OFFSET(I206,0,0,ROW($B211)-ROW($B206),1)) -> 5905677 | K211: =SUM(OFFSET(K206,0,0,ROW($B211)-ROW($B206),1)) -> 4960055
B213: Current assets
B214: Inventories | E214: =$A$574 -> 11 | G214: =G580 -> 352913 | I214: =I580 -> 313745 | K214: =K580 -> 248196
B215: Trade and other receivables | E215: =$A$582 -> 12 | G215: =G590 -> 652079 | I215: =I590 -> 588642 | K215: =K590 -> 508859
B216: Cash and cash equivalents | E216: =$A$592 -> 13 | G216: =G597 -> 327674 | I216: =I597 -> 394970 | K216: =K597 -> 188624
G217: =SUM(OFFSET(G213,0,0,ROW($B217)-ROW($B213),1)) -> 1332666 | I217: =SUM(OFFSET(I213,0,0,ROW($B217)-ROW($B213),1)) -> 1297357 | K217: =SUM(OFFSET(K213,0,0,ROW($B217)-ROW($B213),1)) -> 945679
B218: Total assets | G218: =SUM(G211,G217) -> 7842053 | I218: =SUM(I211,I217) -> 7203034 | K218: =SUM(K211,K217) -> 5905734
B220: EQUITY & LIABILITIES
B222: Equity
B223: Share capital | E223: =$A$603 -> 14 | G223: =G606 -> 1000 | I223: =I606 -> 1000 | K223: =K606 -> 1000
B224: Reserves | E224: =$A$610 -> 15 | G224: =G613 -> 0 | I224: =I613 -> 0 | K224: =K613 -> 0
B225: Retained earnings | G225: =G196 -> 5188459 | I225: =I196 -> 4239805 | K225: =IF(ISNA(MATCH($K$202,TBYears,0)),0,$I$193) -> 3335138
G226: =SUM(OFFSET(G222,0,0,ROW($B226)-ROW($B222),1)) -> 5189459 | I226: =SUM(OFFSET(I222,0,0,ROW($B226)-ROW($B222),1)) -> 4240805 | K226: =SUM(OFFSET(K222,0,0,ROW($B226)-ROW($B222),1)) -> 3336138
B228: Non-current liabilities
B229: Long term loans | E229: =$A$621 -> 16 | G229: =G627 -> 563772 | I229: =I627 -> 1265992 | K229: =K627 -> 1101104
B230: Finance leases | E230: =$A$635 -> 17 | G230: =G648 -> 339151 | I230: =I648 -> 76852 | K230: =K648 -> 146420
B231: Deferred tax liability | E231: =$A$555 -> 10 | G231: =IF(I$564>0,I$564,0) -> 0 | I231: =IF(E$564>0,E$564,0) -> 17377 | K231: =IF(K$564>0,K$564,0) -> 0
G232: =SUM(OFFSET(G228,0,0,ROW($B232)-ROW($B228),1)) -> 902923 | I232: =SUM(OFFSET(I228,0,0,ROW($B232)-ROW($B228),1)) -> 1360221 | K232: =SUM(OFFSET(K228,0,0,ROW($B232)-ROW($B228),1)) -> 1247524
B234: Current liabilities
B235: Short term loans | E235: =$A$621 -> 16 | G235: =G631 -> 702220 | I235: =I631 -> 701693 | K235: =K631 -> 545076
B236: Current portion of finance leases | E236: =$A$635 -> 17 | G236: =G647 -> 77089 | I236: =I647 -> 69568 | K236: =K647 -> 62974
B237: Bank overdraft | E237: =$A$592 -> 13 | G237: =-G598 -> 0 | I237: =-I598 -> 0 | K237: =-K598 -> 0
B238: Trade payables | E238: =$A$670 -> 19 | G238: =G677 -> 373630 | I238: =I677 -> 366255 | K238: =K677 -> 293924
B239: Provisions | E239: =$A$679 -> 20 | G239: =I686 -> 214823 | I239: =C686 -> 214870 | K239: =K686 -> 211637
A240: B-1310G | B240: =IF(OR(LEFT($A240,1)="F",LEFT($A240,1)="E"),IF(ISNA(VLOOKUP($A240,FinData,COLUMN(FinInfo!$C$4)-1,0)),"Add to FinInfo sheet!",VLOOKUP($A240,FinData,COLUMN(FinInfo!$C$4)-1,0)),IF(ISNA(VLOOKUP($A240,ClassAll,COLUMN(Classes!$B$4),0)),"No class!",VLOOKUP($A240,ClassAll,COLUMN(Classes!$B$4),0))) -> Interest payable | G240: =-IF(OR(LEFT($A240,1)="F",LEFT($A240,1)="E"),IF(ISNA(SUMIF(FinData,$A240,FinCYData)),0,SUMIF(FinData,$A240,FinCYData)),IF(ISNA(SUMIF(TBData,$A240&"*",TBCYData)),0,SUMIF(TBData,$A240&"*",TBCYData))-IF(LEFT($A240,1)="I",IF(ISNA(SUMIF(FinData,"E"&MID($A240,2,LEN($A240)-2)&"G*",FinCYData)),0,SUMIF(FinData,"E"&MID($A240,2,LEN($A240)-2)&"G*",FinCYData)),IF(ISNA(SUMIF(FinData,"F"&MID($A240,2,LEN($A240)-2)&"G*",FinCYData)),0,SUMIF(FinData,"F"&MID($A240,2,LEN($A240)-2)&"G*",FinCYData)))) -> 16185 | I240: =-IF(OR(LEFT($A240,1)="F",LEFT($A240,1)="E"),IF(ISNA(SUMIF(FinData,$A240,FinPYData)),0,SUMIF(FinData,$A240,FinPYData)),IF(ISNA(SUMIF(TBData,$A240&"*",TBPYData)),0,SUMIF(TBData,$A240&"*",TBPYData))-IF(LEFT($A240,1)="I",IF(ISNA(SUMIF(FinData,"E"&MID($A240,2,LEN($A240)-2)&"G*",FinPYData)),0,SUMIF(FinData,"E"&MID($A240,2,LEN($A240)-2)&"G*",FinPYData)),IF(ISNA(SUMIF(FinData,"F"&MID($A240,2,LEN($A240)-2)&"G*",FinPYData)),0,SUMIF(FinData,"F"&MID($A240,2,LEN($A240)-2)&"G*",FinPYData)))) -> 17696 | K240: =-IF(OR(LEFT($A240,1)="F",LEFT($A240,1)="E"),IF(ISNA(SUMIF(FinData,$A240,FinP2Data)),0,SUMIF(FinData,$A240,FinP2Data)),IF(ISNA(SUMIF(TBData,$A240,TBP2Data)),0,SUMIF(TBData,$A240,TBP2Data))-IF(LEFT($A240,1)="I",IF(ISNA(SUMIF(FinData,"E"&MID($A240,2,LEN($A240)-2)&"G*",FinP2Data)),0,SUMIF(FinData,"E"&MID($A240,2,LEN($A240)-2)&"G*",FinP2Data)),IF(ISNA(SUMIF(FinData,"F"&MID($A240,2,LEN($A240)-2)&"G*",FinP2Data)),0,SUMIF(FinData,"F"&MID($A240,2,LEN($A240)-2)&"G*",FinP2Data)))) -> 15061
A241: B-15G | B241: =IF(OR(LEFT($A241,1)="F",LEFT($A241,1)="E"),IF(ISNA(VLOOKUP($A241,FinData,COLUMN(FinInfo!$C$4)-1,0)),"Add to FinInfo sheet!",VLOOKUP($A241,FinData,COLUMN(FinInfo!$C$4)-1,0)),IF(ISNA(VLOOKUP($A241,ClassAll,COLUMN(Classes!$B$4),0)),"No class!",VLOOKUP($A241,ClassAll,COLUMN(Classes!$B$4),0))) -> Provision for taxation | G241: =-IF(OR(LEFT($A241,1)="F",LEFT($A241,1)="E"),IF(ISNA(SUMIF(FinData,$A241,FinCYData)),0,SUMIF(FinData,$A241,FinCYData)),IF(ISNA(SUMIF(TBData,$A241&"*",TBCYData)),0,SUMIF(TBData,$A241&"*",TBCYData))-IF(LEFT($A241,1)="I",IF(ISNA(SUMIF(FinData,"E"&MID($A241,2,LEN($A241)-2)&"G*",FinCYData)),0,SUMIF(FinData,"E"&MID($A241,2,LEN($A241)-2)&"G*",FinCYData)),IF(ISNA(SUMIF(FinData,"F"&MID($A241,2,LEN($A241)-2)&"G*",FinCYData)),0,SUMIF(FinData,"F"&MID($A241,2,LEN($A241)-2)&"G*",FinCYData)))) -> 215724 | I241: =-IF(OR(LEFT($A241,1)="F",LEFT($A241,1)="E"),IF(ISNA(SUMIF(FinData,$A241,FinPYData)),0,SUMIF(FinData,$A241,FinPYData)),IF(ISNA(SUMIF(TBData,$A241&"*",TBPYData)),0,SUMIF(TBData,$A241&"*",TBPYData))-IF(LEFT($A241,1)="I",IF(ISNA(SUMIF(FinData,"E"&MID($A241,2,LEN($A241)-2)&"G*",FinPYData)),0,SUMIF(FinData,"E"&MID($A241,2,LEN($A241)-2)&"G*",FinPYData)),IF(ISNA(SUMIF(FinData,"F"&MID($A241,2,LEN($A241)-2)&"G*",FinPYData)),0,SUMIF(FinData,"F"&MID($A241,2,LEN($A241)-2)&"G*",FinPYData)))) -> 131926 | K241: =-IF(OR(LEFT($A241,1)="F",LEFT($A241,1)="E"),IF(ISNA(SUMIF(FinData,$A241,FinP2Data)),0,SUMIF(FinData,$A241,FinP2Data)),IF(ISNA(SUMIF(TBData,$A241,TBP2Data)),0,SUMIF(TBData,$A241,TBP2Data))-IF(LEFT($A241,1)="I",IF(ISNA(SUMIF(FinData,"E"&MID($A241,2,LEN($A241)-2)&"G*",FinP2Data)),0,SUMIF(FinData,"E"&MID($A241,2,LEN($A241)-2)&"G*",FinP2Data)),IF(ISNA(SUMIF(FinData,"F"&MID($A241,2,LEN($A241)-2)&"G*",FinP2Data)),0,SUMIF(FinData,"F"&MID($A241,2,LEN($A241)-2)&"G*",FinP2Data)))) -> 118400
A242: B-14G | B242: =IF(OR(LEFT($A242,1)="F",LEFT($A242,1)="E"),IF(ISNA(VLOOKUP($A242,FinData,COLUMN(FinInfo!$C$4)-1,0)),"Add to FinInfo sheet!",VLOOKUP($A242,FinData,COLUMN(FinInfo!$C$4)-1,0)),IF(ISNA(VLOOKUP($A242,ClassAll,COLUMN(Classes!$B$4),0)),"No class!",VLOOKUP($A242,ClassAll,COLUMN(Classes!$B$4),0))) -> Dividends payable | G242: =-IF(OR(LEFT($A242,1)="F",LEFT($A242,1)="E"),IF(ISNA(SUMIF(FinData,$A242,FinCYData)),0,SUMIF(FinData,$A242,FinCYData)),IF(ISNA(SUMIF(TBData,$A242&"*",TBCYData)),0,SUMIF(TBData,$A242&"*",TBCYData))-IF(LEFT($A242,1)="I",IF(ISNA(SUMIF(FinData,"E"&MID($A242,2,LEN($A242)-2)&"G*",FinCYData)),0,SUMIF(FinData,"E"&MID($A242,2,LEN($A242)-2)&"G*",FinCYData)),IF(ISNA(SUMIF(FinData,"F"&MID($A242,2,LEN($A242)-2)&"G*",FinCYData)),0,SUMIF(FinData,"F"&MID($A242,2,LEN($A242)-2)&"G*",FinCYData)))) -> 150000 | I242: =-IF(OR(LEFT($A242,1)="F",LEFT($A242,1)="E"),IF(ISNA(SUMIF(FinData,$A242,FinPYData)),0,SUMIF(FinData,$A242,FinPYData)),IF(ISNA(SUMIF(TBData,$A242&"*",TBPYData)),0,SUMIF(TBData,$A242&"*",TBPYData))-IF(LEFT($A242,1)="I",IF(ISNA(SUMIF(FinData,"E"&MID($A242,2,LEN($A242)-2)&"G*",FinPYData)),0,SUMIF(FinData,"E"&MID($A242,2,LEN($A242)-2)&"G*",FinPYData)),IF(ISNA(SUMIF(FinData,"F"&MID($A242,2,LEN($A242)-2)&"G*",FinPYData)),0,SUMIF(FinData,"F"&MID($A242,2,LEN($A242)-2)&"G*",FinPYData)))) -> 100000 | K242: =-IF(OR(LEFT($A242,1)="F",LEFT($A242,1)="E"),IF(ISNA(SUMIF(FinData,$A242,FinP2Data)),0,SUMIF(FinData,$A242,FinP2Data)),IF(ISNA(SUMIF(TBData,$A242,TBP2Data)),0,SUMIF(TBData,$A242,TBP2Data))-IF(LEFT($A242,1)="I",IF(ISNA(SUMIF(FinData,"E"&MID($A242,2,LEN($A242)-2)&"G*",FinP2Data)),0,SUMIF(FinData,"E"&MID($A242,2,LEN($A242)-2)&"G*",FinP2Data)),IF(ISNA(SUMIF(FinData,"F"&MID($A242,2,LEN($A242)-2)&"G*",FinP2Data)),0,SUMIF(FinData,"F"&MID($A242,2,LEN($A242)-2)&"G*",FinP2Data)))) -> 75000
G243: =SUM(OFFSET(G234,0,0,ROW($B243)-ROW($B234),1)) -> 1749671 | I243: =SUM(OFFSET(I234,0,0,ROW($B243)-ROW($B234),1)) -> 1602008 | K243: =SUM(OFFSET(K234,0,0,ROW($B243)-ROW($B234),1)) -> 1322072
B244: Total liabilities | G244: =SUM(G232,G243) -> 2652594 | I244: =SUM(I232,I243) -> 2962229 | K244: =SUM(K232,K243) -> 2569596
B245: Total equity & liabilities | G245: =SUM(G226,G244) -> 7842053 | I245: =SUM(I226,I244) -> 7203034 | K245: =SUM(K226,K244) -> 5905734
B247: =Setup!$A$1 -> Example Limited
B248: Statement of changes in equity
B249: ="for the year ended "&Setup!$F$12 -> for the year ended 31 March 2022
C251: Share Capital | E251: Reserves | G251: Retained Earnings | I251: Total
C252: =Setup!$C$6 -> £ | E252: =Setup!$C$6 -> £ | G252: =Setup!$C$6 -> £ | I252: =Setup!$C$6 -> £
B254: ="At "&TEXT(DATE(YEAR(Setup!$B$12)-2,MONTH(Setup!$B$12)+1,1),"dd mmmm yyyy") -> At 01 April 2020 | C254: =K606 -> 1000 | E254: =K224 -> 0 | G254: =I193 -> 3335138 | I254: =SUM(C254:H254) -> 3336138 | K254: Note: If you do not need Reserves, move share capital column to replace
K255: the Reserves column. Also delete the "Movement in reserves" rows.
B256: Profit / (Loss) for the year | C256: 0 | E256: 0 | G256: =I192 -> 1004667 | I256: =SUM(C256:H256) -> 1004667
B258: Movement in reserves | C258: 0 | E258: =I224-K224 -> 0 | G258: 0 | I258: =SUM(C258:H258) -> 0
B260: Dividends | C260: 0 | E260: 0 | G260: =I194 -> -100000 | I260: =SUM(C260:H260) -> -100000
B262: Shares issued | C262: =I606-K606 -> 0 | E262: 0 | G262: 0 | I262: =SUM(C262:H262) -> 0
B264: ="At "&TEXT(DATE(YEAR(Setup!$B$12)-1,MONTH(Setup!$B$12)+1,0),"dd mmmm yyyy") -> At 31 March 2021 | C264: =SUM(C254:C263) -> 1000 | E264: =SUM(E254:E263) -> 0 | G264: =SUM(G254:G263) -> 4239805 | I264: =SUM(C264:H264) -> 4240805
B266: Profit / (Loss) for the year | C266: 0 | E266: 0 | G266: =G192 -> 1098654 | I266: =SUM(C266:H266) -> 1098654
B268: Movement in reserves | C268: 0 | E268: =G224-I224 -> 0 | G268: 0 | I268: =SUM(C268:H268) -> 0
B270: Dividends | C270: 0 | E270: 0 | G270: =G194 -> -150000 | I270: =SUM(C270:H270) -> -150000
B272: Shares issued | C272: =G606-I606 -> 0 | E272: 0 | G272: 0 | I272: =SUM(C272:H272) -> 0
B274: ="At "&Setup!$F$12 -> At 31 March 2022 | C274: =SUM(C264:C273) -> 1000 | E274: =SUM(E264:E273) -> 0 | G274: =SUM(G264:G273) -> 5188459 | I274: =SUM(C274:H274) -> 5189459
B276: =Setup!$A$1 -> Example Limited
B277: Statement of cash flows
B278: ="for the year ended "&Setup!$F$12 -> for the year ended 31 March 2022
E280: Notes | G280: =YEAR(Setup!$B$12) -> 2022 | I280: =$G$158-1 -> 2021
G281: =Setup!$C$6 -> £ | I281: =Setup!$C$6 -> £
B282: Cash flows from operating activities
B283: Profit / (Loss) for the year | G283: =G192 -> 1098654 | I283: =I192 -> 1004667
B284: ="- Finance costs" -> - Finance costs | G284: =-G189 -> 194222 | I284: =-I189 -> 212354
B285: ="- Income taxes" -> - Income taxes | G285: =-G191 -> 442236 | I285: =-I191 -> 263853
B286: ="- Interest received" -> - Interest received | G286: =-G443-G444-G445 -> -5100 | I286: =-I443-I444-I445 -> -4562
B287: ="- Dividends received" -> - Dividends received | G287: =-G442 -> -4065 | I287: =-I442 -> -3050
B288: Adjustments for non-cash income and expenses:
B289: ="- Depreciation" -> - Depreciation | G289: =E510 -> 563280 | I289: =-O506 -> 500300
B290: ="- Amortisation" -> - Amortisation | G290: =-N536 -> 104050 | I290: =-O536 -> 104050
B291: ="- (Fair value gains) / Impairment losses" -> - (Fair value gains) / Impairment losses | G291: =-(N495+N505)-(N522+N535) -> 100000 | I291: =-(O495+O505)-(O522+O535) -> 0
B292: ="- Increase / (Decrease) in provisions" -> - Increase / (Decrease) in provisions | G292: =G239-I239 -> -47 | I292: =I239-K239 -> 3233
B293: ="- Increase / (Decrease) in reserves" -> - Increase / (Decrease) in reserves | G293: =G224-I224 -> 0 | I293: =I224-K224 -> 0
B294: ="- Prior year adjustments" -> - Prior year adjustments | G294: =G195 -> 0 | I294: =I195 -> 0
B295: Cash flow included in investing activities:
B296: ="- (Gains) / Losses on sale of equipment" -> - (Gains) / Losses on sale of equipment | G296: =G466-G446 -> -48250 | I296: =I466-I446 -> -18000
B297: Changes in operating assets and liabilities:
B298: ="- Decrease / (Increase) in trade and other receivables" -> - Decrease / (Increase) in trade and other receivables | G298: =I215-G215 -> -63437 | I298: =K215-I215 -> -79783
B299: ="- Decrease / (Increase) in inventories" -> - Decrease / (Increase) in inventories | G299: =I214-G214 -> -39168 | I299: =K214-I214 -> -65549
B300: ="- Increase / (Decrease) in trade and other payables" -> - Increase / (Decrease) in trade and other payables | G300: =G238-I238 -> 7375 | I300: =I238-K238 -> 72331
... 304 more rows

Sheet TBImport (hidden)
A1: =IF(ISBLANK(Setup!$B$4),"Example (Pty) Limited",Setup!$B$4) -> Example Limited
A2: Trial Balance Sequence & Rounding
A3: © www.excel-skills.co.uk | E3: =SUBTOTAL(9,OFFSET($E$4,1,0,1000,1)) -> 0 | F3: =IF(E3<>0,"Error! Rounded TB values in column E do not balance.","ok") -> ok
A4: Acc No | B4: Account Description | C4: Amount | D4: Check | E4: Amount
A5: BS-0005 | B5: Land & Buildings - Cost | C5: 2400000 | D5: =IF(OFFSET(TB!$C$4,ROW($A5)-ROW($A$4),0,1,1)=$A5,"ok","error!") -> ok | E5: =ROUND(C5,0) -> 2400000
A6: BS-0010 | B6: Plant & Equipment - Cost | C6: 1546045 | D6: =IF(OFFSET(TB!$C$4,ROW($A6)-ROW($A$4),0,1,1)=$A6,"ok","error!") -> ok | E6: =ROUND(C6,0) -> 1546045
A7: BS-0015 | B7: Furniture & Fittings - Cost | C7: 410000 | D7: =IF(OFFSET(TB!$C$4,ROW($A7)-ROW($A$4),0,1,1)=$A7,"ok","error!") -> ok | E7: 410000
A8: BS-0020 | B8: Office Equipment - Cost | C8: 240000 | D8: =IF(OFFSET(TB!$C$4,ROW($A8)-ROW($A$4),0,1,1)=$A8,"ok","error!") -> ok | E8: 240000
A9: BS-0025 | B9: Computer Equipment - Cost | C9: 165500 | D9: =IF(OFFSET(TB!$C$4,ROW($A9)-ROW($A$4),0,1,1)=$A9,"ok","error!") -> ok | E9: 165500
A10: BS-0030 | B10: Motor Vehicles - Cost | C10: 452000 | D10: =IF(OFFSET(TB!$C$4,ROW($A10)-ROW($A$4),0,1,1)=$A10,"ok","error!") -> ok | E10: 452000
A11: BS-0105 | B11: Land & Buildings - Accum Depreciation | C11: 0 | D11: =IF(OFFSET(TB!$C$4,ROW($A11)-ROW($A$4),0,1,1)=$A11,"ok","error!") -> ok | E11: 0
A12: BS-0110 | B12: Plant & Equipment - Accum Depreciation | C12: -1051018 | D12: =IF(OFFSET(TB!$C$4,ROW($A12)-ROW($A$4),0,1,1)=$A12,"ok","error!") -> ok | E12: -1051018
A13: BS-0115 | B13: Furniture & Fittings - Accum Depreciation | C13: -224700 | D13: =IF(OFFSET(TB!$C$4,ROW($A13)-ROW($A$4),0,1,1)=$A13,"ok","error!") -> ok | E13: -224700
A14: BS-0120 | B14: Office Equipment - Accum Depreciation | C14: -186980 | D14: =IF(OFFSET(TB!$C$4,ROW($A14)-ROW($A$4),0,1,1)=$A14,"ok","error!") -> ok | E14: -186980
A15: BS-0125 | B15: Computer Equipment - Accum Depreciation | C15: -145550 | D15: =IF(OFFSET(TB!$C$4,ROW($A15)-ROW($A$4),0,1,1)=$A15,"ok","error!") -> ok | E15: -145550
A16: BS-0130 | B16: Motor Vehicles - Accum Depreciation | C16: -56500 | D16: =IF(OFFSET(TB!$C$4,ROW($A16)-ROW($A$4),0,1,1)=$A16,"ok","error!") -> ok | E16: -56500
A17: BS-0205 | B17: Goodwill - Cost | C17: 500000 | D17: =IF(OFFSET(TB!$C$4,ROW($A17)-ROW($A$4),0,1,1)=$A17,"ok","error!") -> ok | E17: 500000
A18: BS-0210 | B18: Trademarks - Cost | C18: 390500 | D18: =IF(OFFSET(TB!$C$4,ROW($A18)-ROW($A$4),0,1,1)=$A18,"ok","error!") -> ok | E18: 390500
A19: BS-0215 | B19: Software - Cost | C19: 150000 | D19: =IF(OFFSET(TB!$C$4,ROW($A19)-ROW($A$4),0,1,1)=$A19,"ok","error!") -> ok | E19: 150000
A20: BS-0305 | B20: Goodwill - Accum Amortization | C20: -200000 | D20: =IF(OFFSET(TB!$C$4,ROW($A20)-ROW($A$4),0,1,1)=$A20,"ok","error!") -> ok | E20: -200000
A21: BS-0310 | B21: Trademarks - Accum Amortization | C21: -156200 | D21: =IF(OFFSET(TB!$C$4,ROW($A21)-ROW($A$4),0,1,1)=$A21,"ok","error!") -> ok | E21: -156200
A22: BS-0315 | B22: Software - Accum Amortization | C22: -60000 | D22: =IF(OFFSET(TB!$C$4,ROW($A22)-ROW($A$4),0,1,1)=$A22,"ok","error!") -> ok | E22: -60000
A23: BS-0400 | B23: Share Investment - XYZ | C23: 802500 | D23: =IF(OFFSET(TB!$C$4,ROW($A23)-ROW($A$4),0,1,1)=$A23,"ok","error!") -> ok | E23: 802500
A24: BS-0405 | B24: Fixed Deposit - Bank One | C24: 1500000 | D24: =IF(OFFSET(TB!$C$4,ROW($A24)-ROW($A$4),0,1,1)=$A24,"ok","error!") -> ok | E24: =ROUND(C24,0) -> 1500000
A25: BS-0500 | B25: Loans & Advances | C25: 60000 | D25: =IF(OFFSET(TB!$C$4,ROW($A25)-ROW($A$4),0,1,1)=$A25,"ok","error!") -> ok | E25: 60000
A26: BS-0700 | B26: Cash On Hand | C26: 0 | D26: =IF(OFFSET(TB!$C$4,ROW($A26)-ROW($A$4),0,1,1)=$A26,"ok","error!") -> ok | E26: 0
A27: BS-0799 | B27: Cash Transfer Control | C27: 0 | D27: =IF(OFFSET(TB!$C$4,ROW($A27)-ROW($A$4),0,1,1)=$A27,"ok","error!") -> ok | E27: 0
A28: BS-0900 | B28: Other Debtors | C28: 0 | D28: =IF(OFFSET(TB!$C$4,ROW($A28)-ROW($A$4),0,1,1)=$A28,"ok","error!") -> ok | E28: 0
A29: BS-0905 | B29: Prepayments | C29: 24000 | D29: =IF(OFFSET(TB!$C$4,ROW($A29)-ROW($A$4),0,1,1)=$A29,"ok","error!") -> ok | E29: 24000
A30: BS-1001 | B30: Raw Materials | C30: 85200 | D30: =IF(OFFSET(TB!$C$4,ROW($A30)-ROW($A$4),0,1,1)=$A30,"ok","error!") -> ok | E30: =ROUND(C30,0) -> 85200
A31: BS-1002 | B31: Work in progress | C31: 22653 | D31: =IF(OFFSET(TB!$C$4,ROW($A31)-ROW($A$4),0,1,1)=$A31,"ok","error!") -> ok | E31: 22653
A32: BS-1003 | B32: Finished goods | C32: 0 | D32: =IF(OFFSET(TB!$C$4,ROW($A32)-ROW($A$4),0,1,1)=$A32,"ok","error!") -> ok | E32: 0
A33: BS-1100 | B33: Bank Overdraft | C33: 0 | D33: =IF(OFFSET(TB!$C$4,ROW($A33)-ROW($A$4),0,1,1)=$A33,"ok","error!") -> ok | E33: 0
A34: BS-1300 | B34: Accruals | C34: -90365 | D34: =IF(OFFSET(TB!$C$4,ROW($A34)-ROW($A$4),0,1,1)=$A34,"ok","error!") -> ok | E34: -90365
A35: BS-1305 | B35: Payroll Accruals | C35: -20572 | D35: =IF(OFFSET(TB!$C$4,ROW($A35)-ROW($A$4),0,1,1)=$A35,"ok","error!") -> ok | E35: -20572
A36: BS-1310 | B36: Interest Payable | C36: -16185 | D36: =IF(OFFSET(TB!$C$4,ROW($A36)-ROW($A$4),0,1,1)=$A36,"ok","error!") -> ok | E36: -16185
A37: BS-1405 | B37: Dividends Payable | C37: -150000 | D37: =IF(OFFSET(TB!$C$4,ROW($A37)-ROW($A$4),0,1,1)=$A37,"ok","error!") -> ok | E37: -150000
A38: BS-1505 | B38: Provision For Taxation | C38: -215724 | D38: =IF(OFFSET(TB!$C$4,ROW($A38)-ROW($A$4),0,1,1)=$A38,"ok","error!") -> ok | E38: -215724
A39: BS-1610 | B39: Other provisions | C39: -214823 | D39: =IF(OFFSET(TB!$C$4,ROW($A39)-ROW($A$4),0,1,1)=$A39,"ok","error!") -> ok | E39: -214823
A40: BS-1700 | B40: Sales Tax Control | C40: -75891 | D40: =IF(OFFSET(TB!$C$4,ROW($A40)-ROW($A$4),0,1,1)=$A40,"ok","error!") -> ok | E40: -75891
A41: BS-1805 | B41: Loan - Bank One | C41: -604187 | D41: =IF(OFFSET(TB!$C$4,ROW($A41)-ROW($A$4),0,1,1)=$A41,"ok","error!") -> ok | E41: -604187
A42: BS-1810 | B42: Loan - Bank Two | C42: -661805 | D42: =IF(OFFSET(TB!$C$4,ROW($A42)-ROW($A$4),0,1,1)=$A42,"ok","error!") -> ok | E42: =ROUND(C42,0) -> -661805
A43: BS-1815 | B43: Finance Leases | C43: -416240 | D43: =IF(OFFSET(TB!$C$4,ROW($A43)-ROW($A$4),0,1,1)=$A43,"ok","error!") -> ok | E43: -416240
A44: BS-1900 | B44: Reserves | C44: 0 | D44: =IF(OFFSET(TB!$C$4,ROW($A44)-ROW($A$4),0,1,1)=$A44,"ok","error!") -> ok | E44: 0
A45: BS-2000 | B45: Shareholders' Contributions | C45: -1500 | D45: =IF(OFFSET(TB!$C$4,ROW($A45)-ROW($A$4),0,1,1)=$A45,"ok","error!") -> ok | E45: -1500
A46: BS-2200 | B46: Deferred Tax | C46: 33790 | D46: =IF(OFFSET(TB!$C$4,ROW($A46)-ROW($A$4),0,1,1)=$A46,"ok","error!") -> ok | E46: =ROUND(C46,0) -> 33790
A47: IS-0105 | B47: Sales - Fruit Juice | C47: -4370245 | D47: =IF(OFFSET(TB!$C$4,ROW($A47)-ROW($A$4),0,1,1)=$A47,"ok","error!") -> ok | E47: -4370245
A48: IS-0110 | B48: Sales - Vegetable Juice | C48: -2541378 | D48: =IF(OFFSET(TB!$C$4,ROW($A48)-ROW($A$4),0,1,1)=$A48,"ok","error!") -> ok | E48: -2541378
A49: IS-0205 | B49: Cost of Sales - Fruit Juice | C49: 1966610 | D49: =IF(OFFSET(TB!$C$4,ROW($A49)-ROW($A$4),0,1,1)=$A49,"ok","error!") -> ok | E49: 1966610
A50: IS-0210 | B50: Cost of Sales - Vegetable Juice | C50: 914965 | D50: =IF(OFFSET(TB!$C$4,ROW($A50)-ROW($A$4),0,1,1)=$A50,"ok","error!") -> ok | E50: 914965
A51: IS-0299 | B51: Cost of Sales - Direct Costs | C51: 0 | D51: =IF(OFFSET(TB!$C$4,ROW($A51)-ROW($A$4),0,1,1)=$A51,"ok","error!") -> ok | E51: 0
A52: IS-0305 | B52: Accounting Fees | C52: 24000 | D52: =IF(OFFSET(TB!$C$4,ROW($A52)-ROW($A$4),0,1,1)=$A52,"ok","error!") -> ok | E52: 24000
A53: IS-0310 | B53: Advertising & Marketing | C53: 143644 | D53: =IF(OFFSET(TB!$C$4,ROW($A53)-ROW($A$4),0,1,1)=$A53,"ok","error!") -> ok | E53: 143644
A54: IS-0315 | B54: Bank Charges | C54: 1180 | D54: =IF(OFFSET(TB!$C$4,ROW($A54)-ROW($A$4),0,1,1)=$A54,"ok","error!") -> ok | E54: 1180
A55: IS-0320 | B55: Commission | C55: 27850 | D55: =IF(OFFSET(TB!$C$4,ROW($A55)-ROW($A$4),0,1,1)=$A55,"ok","error!") -> ok | E55: 27850
A56: IS-0325 | B56: Computer Expenses | C56: 3477 | D56: =IF(OFFSET(TB!$C$4,ROW($A56)-ROW($A$4),0,1,1)=$A56,"ok","error!") -> ok | E56: 3477
A57: IS-0330 | B57: Consumables & Cleaning | C57: 2500 | D57: =IF(OFFSET(TB!$C$4,ROW($A57)-ROW($A$4),0,1,1)=$A57,"ok","error!") -> ok | E57: 2500
A58: IS-0335 | B58: Entertainment | C58: 12420 | D58: =IF(OFFSET(TB!$C$4,ROW($A58)-ROW($A$4),0,1,1)=$A58,"ok","error!") -> ok | E58: 12420
A59: IS-0340 | B59: Insurance | C59: 3840 | D59: =IF(OFFSET(TB!$C$4,ROW($A59)-ROW($A$4),0,1,1)=$A59,"ok","error!") -> ok | E59: 3840
A60: IS-0345 | B60: Office Expenses | C60: 996 | D60: =IF(OFFSET(TB!$C$4,ROW($A60)-ROW($A$4),0,1,1)=$A60,"ok","error!") -> ok | E60: 996
A61: IS-0350 | B61: Office Rent | C61: 144000 | D61: =IF(OFFSET(TB!$C$4,ROW($A61)-ROW($A$4),0,1,1)=$A61,"ok","error!") -> ok | E61: 144000
A62: IS-0355 | B62: Postage | C62: 524 | D62: =IF(OFFSET(TB!$C$4,ROW($A62)-ROW($A$4),0,1,1)=$A62,"ok","error!") -> ok | E62: 524
A63: IS-0360 | B63: Professional & Legal Fees | C63: 5652 | D63: =IF(OFFSET(TB!$C$4,ROW($A63)-ROW($A$4),0,1,1)=$A63,"ok","error!") -> ok | E63: 5652
A64: IS-0365 | B64: Stationery | C64: 2491 | D64: =IF(OFFSET(TB!$C$4,ROW($A64)-ROW($A$4),0,1,1)=$A64,"ok","error!") -> ok | E64: 2491
A65: IS-0370 | B65: Subscriptions & Memberships | C65: 5200 | D65: =IF(OFFSET(TB!$C$4,ROW($A65)-ROW($A$4),0,1,1)=$A65,"ok","error!") -> ok | E65: 5200
A66: IS-0375 | B66: Telephone & Internet | C66: 8867 | D66: =IF(OFFSET(TB!$C$4,ROW($A66)-ROW($A$4),0,1,1)=$A66,"ok","error!") -> ok | E66: 8867
A67: IS-0380 | B67: Training | C67: 4043 | D67: =IF(OFFSET(TB!$C$4,ROW($A67)-ROW($A$4),0,1,1)=$A67,"ok","error!") -> ok | E67: 4043
A68: IS-0385 | B68: Travelling & Accommodation | C68: 13705 | D68: =IF(OFFSET(TB!$C$4,ROW($A68)-ROW($A$4),0,1,1)=$A68,"ok","error!") -> ok | E68: 13705
A69: IS-0390 | B69: Utilities | C69: 6540 | D69: =IF(OFFSET(TB!$C$4,ROW($A69)-ROW($A$4),0,1,1)=$A69,"ok","error!") -> ok | E69: 6540
A70: IS-0405 | B70: Salaries & Wages - Staff | C70: 548600 | D70: =IF(OFFSET(TB!$C$4,ROW($A70)-ROW($A$4),0,1,1)=$A70,"ok","error!") -> ok | E70: 548600
A71: IS-0410 | B71: Salaries & Wages - Management | C71: 685720 | D71: =IF(OFFSET(TB!$C$4,ROW($A71)-ROW($A$4),0,1,1)=$A71,"ok","error!") -> ok | E71: 685720
A72: IS-0505 | B72: Depreciation | C72: 513280 | D72: =IF(OFFSET(TB!$C$4,ROW($A72)-ROW($A$4),0,1,1)=$A72,"ok","error!") -> ok | E72: 513280
A73: IS-0510 | B73: Amortization | C73: 104050 | D73: =IF(OFFSET(TB!$C$4,ROW($A73)-ROW($A$4),0,1,1)=$A73,"ok","error!") -> ok | E73: 104050
A74: IS-0605 | B74: Interest Paid | C74: 194222 | D74: =IF(OFFSET(TB!$C$4,ROW($A74)-ROW($A$4),0,1,1)=$A74,"ok","error!") -> ok | E74: 194222
A75: IS-0700 | B75: Taxation | C75: 442236 | D75: =IF(OFFSET(TB!$C$4,ROW($A75)-ROW($A$4),0,1,1)=$A75,"ok","error!") -> ok | E75: 442236
A76: IS-0800 | B76: Other Expenses | C76: 125362 | D76: =IF(OFFSET(TB!$C$4,ROW($A76)-ROW($A$4),0,1,1)=$A76,"ok","error!") -> ok | E76: 125362
A77: IS-0805 | B77: Foreign Exchange Loss | C77: 6260 | D77: =IF(OFFSET(TB!$C$4,ROW($A77)-ROW($A$4),0,1,1)=$A77,"ok","error!") -> ok | E77: 6260
A78: IS-0810 | B78: Loss on Disposal of Assets | C78: 0 | D78: =IF(OFFSET(TB!$C$4,ROW($A78)-ROW($A$4),0,1,1)=$A78,"ok","error!") -> ok | E78: 0
A79: IS-0900 | B79: Other Income | C79: -41850 | D79: =IF(OFFSET(TB!$C$4,ROW($A79)-ROW($A$4),0,1,1)=$A79,"ok","error!") -> ok | E79: -41850
A80: IS-0905 | B80: Dividends Received | C80: -4065 | D80: =IF(OFFSET(TB!$C$4,ROW($A80)-ROW($A$4),0,1,1)=$A80,"ok","error!") -> ok | E80: =ROUND(C80,0) -> -4065
A81: IS-0910 | B81: Profit on Disposal of Assets | C81: -48250 | D81: =IF(OFFSET(TB!$C$4,ROW($A81)-ROW($A$4),0,1,1)=$A81,"ok","error!") -> ok | E81: -48250
A82: IS-0915 | B82: Interest Received | C82: -5100 | D82: =IF(OFFSET(TB!$C$4,ROW($A82)-ROW($A$4),0,1,1)=$A82,"ok","error!") -> ok | E82: -5100
A83: IS-1000 | B83: Dividends | C83: 150000 | D83: =IF(OFFSET(TB!$C$4,ROW($A83)-ROW($A$4),0,1,1)=$A83,"ok","error!") -> ok | E83: 150000
A84: BS-BB1 | B84: B1 Bank Account | C84: 277026 | D84: =IF(OFFSET(TB!$C$4,ROW($A84)-ROW($A$4),0,1,1)=$A84,"ok","error!") -> ok | E84: 277026
A85: BS-BB2 | B85: B2 Bank Account | C85: 40691 | D85: =IF(OFFSET(TB!$C$4,ROW($A85)-ROW($A$4),0,1,1)=$A85,"ok","error!") -> ok | E85: 40691
A86: BS-BB3 | B86: B3 Bank Account | C86: 9457 | D86: =IF(OFFSET(TB!$C$4,ROW($A86)-ROW($A$4),0,1,1)=$A86,"ok","error!") -> ok | E86: 9457
A87: BS-BPC | B87: PC Petty Cash | C87: 1000 | D87: =IF(OFFSET(TB!$C$4,ROW($A87)-ROW($A$4),0,1,1)=$A87,"ok","error!") -> ok | E87: 1000
A88: BS-BJC | B88: GL Journal Control | C88: 0 | D88: =IF(OFFSET(TB!$C$4,ROW($A88)-ROW($A$4),0,1,1)=$A88,"ok","error!") -> ok | E88: 0
A89: BS-STG | B89: Inventory | C89: 245060 | D89: =IF(OFFSET(TB!$C$4,ROW($A89)-ROW($A$4),0,1,1)=$A89,"ok","error!") -> ok | E89: 245060
A90: BS-RCG | B90: Trade Debtors | C90: 568079 | D90: =IF(OFFSET(TB!$C$4,ROW($A90)-ROW($A$4),0,1,1)=$A90,"ok","error!") -> ok | E90: 568079
A91: BS-PAG | B91: Trade Creditors | C91: -186802 | D91: =IF(OFFSET(TB!$C$4,ROW($A91)-ROW($A$4),0,1,1)=$A91,"ok","error!") -> ok | E91: -186802
A92: BS-RTG | B92: Retained Earnings | C92: -4239805 | D92: =IF(OFFSET(TB!$C$4,ROW($A92)-ROW($A$4),0,1,1)=$A92,"ok","error!") -> ok | E92: -4239805
